Workbook

Sheet 01.09.25
B1: Согласовано Начальник МКУ "Управление образования" Муслюмовского района РТ ________________ /Л.Я. Хабибуллина/ | F1: Согласовано Директор ОУ ____________________________________________________________________________ | Y1: Утверждаю Индивидуальный предприниматель Ибрагимова Э.И. ______________ /Э.И. Ибрагимова/ | CB1: =IF(B5<>"",B5,"") -> 
A2: ЦИКЛИЧНОЕ ОСЕНЕЕ (ЗИМНЕЕ) ДВУХНЕДЕЛЬНОЕ МЕНЮ ДЛЯ ОРГАНИЗАЦИИ ПИТАНИЯ ДЕТЕЙ В ВОЗРАСТЕ ОТ 3 ДО 7 ЛЕТ, ПОСЕЩАЮЩИХ ДОШКОЛЬНЫЕ ОБРАЗОВАТЕЛЬНЫЕ УЧРЕЖДЕНИЯ И ДОШКОЛЬНЫЕ ГРУППЫ ОБРАЗОВАТЕЛЬНЫХ УЧРЕЖДЕНИЙ МУСЛЮМОВСКОГО МУНИЦИПАЛЬНОГО РАЙОНА РТ НА 2025 г.
A6: =IF(#REF!<>"",#REF!,"") ->  | AG6: =IF(Дата_Сост<>"",Дата_Сост,"") -> 
AD7: с 01.09.2025
A8: Но-мер рец. | B8: Прием пищи, наименование изделий (блюд) | C8: Выход, г | D8: Белки, г | E8: Жиры, г | F8: Угле-воды, г | G8: ЭЦ, ккал | H8: НЖК | I8: ПНЖК | J8: МЖК | K8: Холестерин | L8: МД | M8: Крахмал | N8: ПВ | O8: РПВ | P8: НПВ | Q8: Органические кислоты | R8: Зола | S8: Na | T8: K | U8: Минеральные элементы, мг | Y8: Витамины, мг | AG8: Вита-мин С, мг | AH8: Алкоголь, г | AI8: Валин | AJ8: изолейцин | AK8: лейцин | AL8: лизин | AM8: метионин | AN8: треонин | AO8: триптофан | AP8: фенилаланин | AQ8: аланин | AR8: аргинин | AS8: аспарагиновая | AT8: гистидин | AU8: глицин | AV8: глутаминовая | AW8: оксипролин | AX8: пролин | AY8: серин | AZ8: тирозин | BA8: цистин | BB8: масляная | BC8: капроновая | BD8: каприловая | BE8: каприновая | BF8: лауриновая | BG8: миристиновая | BH8: пентадекановая | BI8: пальмитиновая | BJ8: маргариновая | BK8: стеариновая | BL8: арахиновая | BM8: бегеновая | BN8: лигноцериновая | BO8: миристолеиновая | BP8: пальмитолеиновая | BQ8: олеиновая | BR8: гадолеиновая | BS8: эруковая | BT8: линолевая | BU8: линоленовая | BV8: арахидоновая | BW8: Аденин | BX8: Гуанин | BY8: Ph | CA8: Цена, руб | CB8: Доля, % | CE8: I (макс.), мкг | CF8: I (мин.), мкг | CG8: I (сред.), мкг | CH8: Zn (макс.), мкг | CI8: Zn (мин.), мкг | CJ8: Zn (сред.), мкг | CK8: Se (макс.), мкг | CL8: Se (мин.), мкг | CM8: Se (сред.), мкг | CN8: Вложен-ный сахар, г | CO8: Вложен-ная соль, г
D9: всего | E9: всего | U9: Ca | V9: Mg | W9: P | X9: Fe | Y9: А | Z9: B | AA9: РЭ,мкг | AB9: ТЭ,мг | AC9: В1 | AD9: В2 | AE9: РР | AF9: НЭ
B10: 1 НЕДЕЛЯ
B11: 1 день
B12: Завтрак
A13: ="-" -> - | B13: Батон | C13: 30 | D13: 2.3 | E13: 1.5 | F13: 11.2 | G13: 66 | H13: 0.15 | I13: 0 | J13: 0 | K13: 0 | L13: 0.99 | M13: 9.24 | N13: 0.96 | O13: 0 | P13: 0 | Q13: 0.09 | R13: 0.48 | S13: 128.7 | T13: 39.3 | U13: 6.6 | V13: 9.9 | W13: 25.5 | X13: 0.6 | Y13: 0.0 | Z13: 0.0 | AA13: 0.0 | AB13: 0.5 | AC13: 0.1 | AD13: 0.0 | AE13: 0.5 | AF13: 0.9 | AG13: 0.0 | AH13: 0 | AI13: 111.6 | AJ13: 115.8 | AK13: 177.3 | AL13: 59.7 | AM13: 35.1 | AN13: 70.2 | AO13: 26.4 | AP13: 126 | AQ13: 78.3 | AR13: 108.9 | AS13: 90.3 | AT13: 48.3 | AU13: 84 | AV13: 697.5 | AW13: 0 | AX13: 227.1 | AY13: 99.3 | AZ13: 66.6 | BA13: 51.9 | BB13: 0 | BC13: 0 | BD13: 0 | BE13: 0 | BF13: 0 | BG13: 0.01 | BH13: 0 | BI13: 0.1 | BJ13: 0 | BK13: 0.05 | BL13: 0 | BM13: 0 | BN13: 0 | BO13: 0 | BP13: 0 | BQ13: 0.35 | BR13: 0 | BS13: 0 | BT13: 0.26 | BU13: 0.01 | BV13: 0 | BW13: 0 | BX13: 0 | BY13: 0 | BZ13: 10.23 | CC13: 0 | CE13: 0 | CF13: 0 | CG13: 0 | CH13: 570 | CI13: 219.6 | CJ13: 394.8 | CK13: 4.56 | CL13: 4.56 | CM13: 4.56 | CN13: 0 | CO13: 0
A14: ="4/13" -> 4/13 | B14: Сыр (порциями) | C14: 10 | D14: 1.5 | E14: 2.7 | F14: 0.0 | G14: 31 | H14: 1.53 | I14: 0 | J14: 0 | K14: 0 | L14: 0 | M14: 0 | N14: 0 | O14: 0 | P14: 0 | Q14: 0.2 | R14: 0.43 | S14: 110 | T14: 10 | U14: 100.0 | V14: 5.5 | W14: 60.0 | X14: 0.1 | Y14: 21.0 | Z14: 17.0 | AA14: 23.8 | AB14: 0.0 | AC14: 0.0 | AD14: 0.0 | AE14: 0.0 | AF14: 0.7 | AG14: 0.1 | AH14: 0 | AI14: 157 | AJ14: 117 | AK14: 230 | AL14: 158 | AM14: 56 | AN14: 95 | AO14: 70 | AP14: 134 | AQ14: 76 | AR14: 87 | AS14: 156 | AT14: 70 | AU14: 51 | AV14: 517 | AW14: 0 | AX14: 273 | AY14: 129 | AZ14: 139 | BA14: 21.5 | BB14: 0 | BC14: 0.01 | BD14: 0.04 | BE14: 0.11 | BF14: 0.13 | BG14: 0.33 | BH14: 0.04 | BI14: 0.7 | BJ14: 0.01 | BK14: 0.16 | BL14: 0.01 | BM14: 0 | BN14: 0 | BO14: 0.05 | BP14: 0.07 | BQ14: 0.52 | BR14: 0 | BS14: 0 | BT14: 0.07 | BU14: 0 | BV14: 0 | BW14: 0 | BX14: 0 | BY14: 0 | BZ14: 4.08 | CC14: 23.83 | CE14: 0 | CF14: 0 | CG14: 0 | CH14: 500 | CI14: 370 | CJ14: 435 | CK14: 1.53 | CL14: 0.97 | CM14: 1.25 | CN14: 0 | CO14: 0
A15: ="31/10" -> 31/10 | B15: Чай с молоком (вариант 3) | C15: 180 | D15: 1.5 | E15: 1.2 | F15: 6.7 | G15: 41 | H15: 0.77 | I15: 0 | J15: 0 | K15: 0 | L15: 6.55 | M15: 0 | N15: 0.09 | O15: 0 | P15: 0 | Q15: 0.05 | R15: 0.37 | S15: 22.32 | T15: 65.18 | U15: 52.5 | V15: 6.0 | W15: 37.7 | X15: 0.1 | Y15: 9.0 | Z15: 4.1 | AA15: 9.9 | AB15: 0.0 | AC15: 0.0 | AD15: 0.1 | AE15: 0.0 | AF15: 0.4 | AG15: 0.2 | AH15: 0 | AI15: 0 | AJ15: 0 | AK15: 0 | AL15: 0 | AM15: 0 | AN15: 0 | AO15: 0 | AP15: 0 | AQ15: 0 | AR15: 0 | AS15: 0 | AT15: 0 | AU15: 0 | AV15: 0 | AW15: 0 | AX15: 0 | AY15: 0 | AZ15: 0 | BA15: 0 | BB15: 0 | BC15: 0 | BD15: 0 | BE15: 0 | BF15: 0 | BG15: 0 | BH15: 0 | BI15: 0 | BJ15: 0 | BK15: 0 | BL15: 0 | BM15: 0 | BN15: 0 | BO15: 0 | BP15: 0 | BQ15: 0 | BR15: 0 | BS15: 0 | BT15: 0 | BU15: 0 | BV15: 0 | BW15: 0 | BX15: 0 | BY15: 0 | BZ15: 175.13 | CC15: 9.68 | CE15: 6.84 | CF15: 3.69 | CG15: 5.26 | CH15: 567 | CI15: 214.2 | CJ15: 390.6 | CK15: 35.65 | CL15: 19 | CM15: 27.32 | CN15: 4.5 | CO15: 0
A16: ="15/4" -> 15/4 | B16: Каша ячневая молочная с маслом сливочным | C16: 200 | D16: 6.0 | E16: 4.8 | F16: 33.8 | G16: 197 | H16: 3.4 | I16: 0.09 | J16: 0 | K16: 0 | L16: 7.57 | M16: 23.22 | N16: 2.95 | O16: 0 | P16: 0 | Q16: 0.08 | R16: 1.6 | S16: 240.19 | T16: 176.15 | U16: 115.2 | V16: 27.2 | W16: 183.4 | X16: 0.7 | Y16: 19.2 | Z16: 16.0 | AA16: 35.6 | AB16: 0.6 | AC16: 0.1 | AD16: 0.1 | AE16: 0.9 | AF16: 2.5 | AG16: 0.4 | AH16: 0 | AI16: 182.06 | AJ16: 176.38 | AK16: 194.62 | AL16: 133.29 | AM16: 60.8 | AN16: 95.77 | AO16: 46.74 | AP16: 197.1 | AQ16: 153.63 | AR16: 185.22 | AS16: 240.9 | AT16: 87.8 | AU16: 155.06 | AV16: 905.86 | AW16: 0 | AX16: 494.36 | AY16: 148.67 | AZ16: 114.38 | BA16: 75.58 | BB16: 0.09 | BC16: 0.04 | BD16: 0.02 | BE16: 0.05 | BF16: 0.06 | BG16: 0.28 | BH16: 0 | BI16: 0.78 | BJ16: 0 | BK16: 0.24 | BL16: 0 | BM16: 0 | BN16: 0 | BO16: 0.05 | BP16: 0.08 | BQ16: 0.63 | BR16: 0 | BS16: 0 | BT16: 0.04 | BU16: 0 | BV16: 0 | BW16: 0 | BX16: 0 | BY16: 0 | BZ16: 177.81 | CC16: 21.87 | CE16: 34.24 | CF16: 14.52 | CG16: 24.38 | CH16: 2147.67 | CI16: 982.95 | CJ16: 1565.31 | CK16: 45.21 | CL16: 23.88 | CM16: 34.54 | CN16: 4 | CO16: 0.5
B17: Итого за 'Завтрак' | C17: =SUM(C13:C16) -> 420 | D17: 11.2 | E17: 10.1 | F17: 51.6 | G17: 335 | H17: 5.85 | I17: 0.09 | J17: 0 | K17: 0 | L17: 15.12 | M17: 32.46 | N17: 4 | O17: 0 | P17: 0 | Q17: 0.42 | R17: 2.88 | S17: 501.21 | T17: 290.62 | U17: 274.3 | V17: 48.6 | W17: 306.5 | X17: 1.5 | Y17: 49.2 | Z17: 37.1 | AA17: 69.3 | AB17: 1.2 | AC17: 0.2 | AD17: 0.2 | AE17: 1.5 | AF17: 4.5 | AG17: 0.7 | AH17: 0 | AI17: 450.66 | AJ17: 409.18 | AK17: 601.92 | AL17: 350.99 | AM17: 151.9 | AN17: 260.97 | AO17: 143.14 | AP17: 457.1 | AQ17: 307.93 | AR17: 381.12 | AS17: 487.2 | AT17: 206.1 | AU17: 290.06 | AV17: 2120.36 | AW17: 0 | AX17: 994.46 | AY17: 376.97 | AZ17: 319.98 | BA17: 148.98 | BB17: 0.09 | BC17: 0.05 | BD17: 0.06 | BE17: 0.16 | BF17: 0.19 | BG17: 0.62 | BH17: 0.04 | BI17: 1.57 | BJ17: 0.01 | BK17: 0.44 | BL17: 0.01 | BM17: 0 | BN17: 0 | BO17: 0.1 | BP17: 0.15 | BQ17: 1.5 | BR17: 0 | BS17: 0 | BT17: 0.37 | BU17: 0.01 | BV17: 0 | BW17: 0 | BX17: 0 | BY17: 0 | BZ17: 367.25 | CB17: =$G$17/#REF!*100 ->  | CC17: 55.38 | CE17: 41.07 | CF17: 18.2 | CG17: 29.64 | CH17: 3784.67 | CI17: 1786.75 | CJ17: 2785.71 | CK17: 86.95 | CL17: 48.41 | CM17: 67.68 | CN17: 8.5 | CO17: 0.5
B18: 10:00
A19: ="-" -> - | B19: Фрукты (яблоки) | C19: 100 | D19: 0.4 | E19: 0.4 | F19: 11.6 | G19: 50 | H19: 0.1 | I19: 0 | J19: 0 | K19: 0 | L19: 10 | M19: 0.8 | N19: 0.8 | O19: 0 | P19: 0 | Q19: 0.8 | R19: 0.5 | S19: 26 | T19: 278 | U19: 16.0 | V19: 9.0 | W19: 11.0 | X19: 2.2 | Y19: 0.0 | Z19: 30.0 | AA19: 5.0 | AB19: 0.2 | AC19: 0.0 | AD19: 0.0 | AE19: 0.3 | AF19: 0.4 | AG19: 10.0 | AH19: 0 | AI19: 12 | AJ19: 13 | AK19: 19 | AL19: 18 | AM19: 3 | AN19: 11 | AO19: 3 | AP19: 9 | AQ19: 17 | AR19: 10 | AS19: 78 | AT19: 7 | AU19: 14 | AV19: 42 | AW19: 0 | AX19: 13 | AY19: 16 | AZ19: 6 | BA19: 5 | BB19: 0 | BC19: 0 | BD19: 0 | BE19: 0 | BF19: 0 | BG19: 0 | BH19: 0 | BI19: 0 | BJ19: 0 | BK19: 0 | BL19: 0 | BM19: 0 | BN19: 0 | BO19: 0 | BP19: 0 | BQ19: 0 | BR19: 0 | BS19: 0 | BT19: 0 | BU19: 0 | BV19: 0 | BW19: 0 | BX19: 0 | BY19: 0 | BZ19: 86.3 | CC19: 5 | CE19: 2 | CF19: 2 | CG19: 2 | CH19: 150 | CI19: 150 | CJ19: 150 | CK19: 0 | CL19: 0 | CM19: 0 | CN19: 0 | CO19: 0
B20: Итого за '10:00' | C20: =SUM(C19) -> 100 | D20: =SUM(D19) -> 0.4 | E20: 0.4 | F20: 11.6 | G20: 50 | H20: 0.1 | I20: 0 | J20: 0 | K20: 0 | L20: 10 | M20: 0.8 | N20: 0.8 | O20: 0 | P20: 0 | Q20: 0.8 | R20: 0.5 | S20: 26 | T20: 278 | U20: 16.0 | V20: 9.0 | W20: 11.0 | X20: 2.2 | Y20: 0.0 | Z20: 30.0 | AA20: 5.0 | AB20: 0.2 | AC20: 0.0 | AD20: 0.0 | AE20: 0.3 | AF20: 0.4 | AG20: 10.0 | AH20: 0 | AI20: 12 | AJ20: 13 | AK20: 19 | AL20: 18 | AM20: 3 | AN20: 11 | AO20: 3 | AP20: 9 | AQ20: 17 | AR20: 10 | AS20: 78 | AT20: 7 | AU20: 14 | AV20: 42 | AW20: 0 | AX20: 13 | AY20: 16 | AZ20: 6 | BA20: 5 | BB20: 0 | BC20: 0 | BD20: 0 | BE20: 0 | BF20: 0 | BG20: 0 | BH20: 0 | BI20: 0 | BJ20: 0 | BK20: 0 | BL20: 0 | BM20: 0 | BN20: 0 | BO20: 0 | BP20: 0 | BQ20: 0 | BR20: 0 | BS20: 0 | BT20: 0 | BU20: 0 | BV20: 0 | BW20: 0 | BX20: 0 | BY20: 0 | BZ20: 86.3 | CB20: =$G$20/#REF!*100 ->  | CC20: 5 | CE20: 2 | CF20: 2 | CG20: 2 | CH20: 150 | CI20: 150 | CJ20: 150 | CK20: 0 | CL20: 0 | CM20: 0 | CN20: 0 | CO20: 0
B21: Обед
A22: ="-" -> - | B22: Хлеб пшеничный | C22: 20 | D22: 1.2 | E22: 0.1 | F22: 7.4 | G22: 36 | H22: 0 | I22: 0 | J22: 0 | K22: 0 | L22: 0.22 | M22: 7.12 | N22: 0.04 | O22: 0 | P22: 0 | Q22: 0 | R22: 0.36 | S22: 0 | T22: 0 | U22: 0.0 | V22: 0.0 | W22: 0.0 | X22: 0.0 | Y22: 0.0 | Z22: 0.0 | AA22: 0.0 | AB22: 0.0 | AC22: 0.0 | AD22: 0.0 | AE22: 0.0 | AF22: 0.0 | AG22: 0.0 | AH22: 0 | AI22: 63.86 | AJ22: 66.47 | AK22: 101.79 | AL22: 33.76 | AM22: 20.01 | AN22: 40.02 | AO22: 15.14 | AP22: 72.38 | AQ22: 44.89 | AR22: 62.64 | AS22: 51.68 | AT22: 27.14 | AU22: 48.02 | AV22: 401.59 | AW22: 0 | AX22: 130.85 | AY22: 56.9 | AZ22: 37.76 | BA22: 29.93 | BB22: 0 | BC22: 0 | BD22: 0 | BE22: 0 | BF22: 0 | BG22: 0 | BH22: 0 | BI22: 0.02 | BJ22: 0 | BK22: 0 | BL22: 0 | BM22: 0 | BN22: 0 | BO22: 0 | BP22: 0 | BQ22: 0.01 | BR22: 0 | BS22: 0 | BT22: 0.06 | BU22: 0 | BV22: 0 | BW22: 0 | BX22: 0 | BY22: 0 | BZ22: 7.82 | CC22: 0 | CE22: 0 | CF22: 0 | CG22: 0 | CH22: 380 | CI22: 146.4 | CJ22: 263.2 | CK22: 3.04 | CL22: 3.04 | CM22: 3.04 | CN22: 0 | CO22: 0
A23: ="-" -> - | B23: Хлеб ржаной | C23: 30 | D23: 1.8 | E23: 0.4 | F23: 12.5 | G23: 57 | H23: 0.06 | I23: 0 | J23: 0 | K23: 0 | L23: 0.36 | M23: 9.66 | N23: 2.49 | O23: 0 | P23: 0 | Q23: 0.3 | R23: 0.75 | S23: 183 | T23: 73.5 | U23: 10.5 | V23: 14.1 | W23: 47.4 | X23: 1.2 | Y23: 0.0 | Z23: 1.5 | AA23: 0.3 | AB23: 0.4 | AC23: 0.1 | AD23: 0.0 | AE23: 0.2 | AF23: 0.6 | AG23: 0.0 | AH23: 0 | AI23: 96.6 | AJ23: 74.4 | AK23: 128.1 | AL23: 66.9 | AM23: 27.9 | AN23: 59.4 | AO23: 24 | AP23: 111.3 | AQ23: 89.1 | AR23: 87.3 | AS23: 139.2 | AT23: 37.2 | AU23: 93 | AV23: 467.7 | AW23: 0 | AX23: 157.8 | AY23: 87.3 | AZ23: 54 | BA23: 39 | BB23: 0 | BC23: 0 | BD23: 0 | BE23: 0 | BF23: 0 | BG23: 0 | BH23: 0 | BI23: 0.04 | BJ23: 0 | BK23: 0 | BL23: 0.01 | BM23: 0 | BN23: 0 | BO23: 0 | BP23: 0 | BQ23: 0.03 | BR23: 0 | BS23: 0 | BT23: 0.14 | BU23: 0.02 | BV23: 0 | BW23: 0 | BX23: 0 | BY23: 0 | BZ23: 14.1 | CC23: 0.25 | CE23: 3 | CF23: 3 | CG23: 3 | CH23: 570 | CI23: 219.6 | CJ23: 394.8 | CK23: 5.7 | CL23: 4.74 | CM23: 5.22 | CN23: 0 | CO23: 0
A24: ="6/10" -> 6/10 | B24: Компот из сухофруктов | C24: 180 | D24: 0.9 | E24: 0.1 | F24: 20.9 | G24: 79 | H24: 0.02 | I24: 0 | J24: 0 | K24: 0 | L24: 17.27 | M24: 0.51 | N24: 3.08 | O24: 0 | P24: 0 | Q24: 0.27 | R24: 0.73 | S24: 3.12 | T24: 306.24 | U24: 28.2 | V24: 18.0 | W24: 24.4 | X24: 0.6 | Y24: 0.0 | Z24: 567.0 | AA24: 104.9 | AB24: 1.0 | AC24: 0.0 | AD24: 0.1 | AE24: 0.5 | AF24: 0.7 | AG24: 0.4 | AH24: 0 | AI24: 0.01 | AJ24: 0.01 | AK24: 0.01 | AL24: 0.02 | AM24: 0 | AN24: 0.01 | AO24: 0 | AP24: 0.01 | AQ24: 0.01 | AR24: 0.01 | AS24: 0.05 | AT24: 0 | AU24: 0.01 | AV24: 0.02 | AW24: 0 | AX24: 0.01 | AY24: 0.01 | AZ24: 0.01 | BA24: 0 | BB24: 0 | BC24: 0 | BD24: 0 | BE24: 0 | BF24: 0 | BG24: 0 | BH24: 0 | BI24: 0 | BJ24: 0 | BK24: 0 | BL24: 0 | BM24: 0 | BN24: 0 | BO24: 0 | BP24: 0 | BQ24: 0.01 | BR24: 0 | BS24: 0 | BT24: 0.01 | BU24: 0 | BV24: 0 | BW24: 0 | BX24: 0 | BY24: 0 | BZ24: 192.61 | CC24: 94.5 | CE24: 3.95 | CF24: 3.95 | CG24: 3.95 | CH24: 454.5 | CI24: 172.98 | CJ24: 313.74 | CK24: 41.94 | CL24: 24.93 | CM24: 33.44 | CN24: 9 | CO24: 0
A25: ="6/1" -> 6/1 | B25: Салат из белокочанной капусты с морковью и растительным маслом | C25: 50 | D25: 0.8 | E25: 3.0 | F25: 4.7 | G25: 46 | H25: 0.38 | I25: 1.95 | J25: 0 | K25: 0 | L25: 3.68 | M25: 0.05 | N25: 0.92 | O25: 0 | P25: 0 | Q25: 0.13 | R25: 0.58 | S25: 101.28 | T25: 126 | U25: 20.7 | V25: 8.9 | W25: 16.0 | X25: 0.3 | Y25: 0.0 | Z25: 948.2 | AA25: 161.1 | AB25: 1.4 | AC25: 0.0 | AD25: 0.0 | AE25: 0.3 | AF25: 0.4 | AG25: 16.9 | AH25: 0 | AI25: 24.69 | AJ25: 21.12 | AK25: 26.97 | AL25: 25.4 | AM25: 8.79 | AN25: 19.05 | AO25: 4.3 | AP25: 23.01 | AQ25: 29.86 | AR25: 34.45 | AS25: 73.79 | AT25: 11.39 | AU25: 19.55 | AV25: 119.49 | AW25: 0 | AX25: 24.03 | AY25: 24.27 | AZ25: 19.79 | BA25: 8.29 | BB25: 0 | BC25: 0 | BD25: 0 | BE25: 0 | BF25: 0 | BG25: 0 | BH25: 0 | BI25: 0.18 | BJ25: 0 | BK25: 0.12 | BL25: 0.01 | BM25: 0.02 | BN25: 0 | BO25: 0 | BP25: 0 | BQ25: 0.7 | BR25: 0 | BS25: 0 | BT25: 1.73 | BU25: 0 | BV25: 0 | BW25: 0 | BX25: 0 | BY25: 0 | BZ25: 40.95 | CC25: 158.03 | CE25: 13.55 | CF25: 6.21 | CG25: 9.88 | CH25: 406.33 | CI25: 97.29 | CJ25: 251.81 | CK25: 6.53 | CL25: 6.16 | CM25: 6.34 | CN25: 1.5 | CO25: 0.25
A26: ="18/2" -> 18/2 | B26: Суп картофельный с макаронными изделиями на говяжьем бульоне | C26: 180 | D26: 2.9 | E26: 6.4 | F26: 14.6 | G26: 126 | H26: 1.6 | I26: 0.94 | J26: 0 | K26: 0 | L26: 1.75 | M26: 11.6 | N26: 1.25 | O26: 0 | P26: 0 | Q26: 0.14 | R26: 1.81 | S26: 418.59 | T26: 318.02 | U26: 13.8 | V26: 16.1 | W26: 40.5 | X26: 0.7 | Y26: 0.0 | Z26: 942.2 | AA26: 174.3 | AB26: 0.8 | AC26: 0.1 | AD26: 0.1 | AE26: 0.7 | AF26: 1.2 | AG26: 4.4 | AH26: 0 | AI26: 48.91 | AJ26: 52.8 | AK26: 84.78 | AL26: 50.35 | AM26: 16.42 | AN26: 44.18 | AO26: 17.54 | AP26: 57.87 | AQ26: 55.81 | AR26: 110.44 | AS26: 69.8 | AT26: 22.08 | AU26: 47.19 | AV26: 343.9 | AW26: 0 | AX26: 85.19 | AY26: 51.12 | AZ26: 33.84 | BA26: 21.41 | BB26: 0 | BC26: 0 | BD26: 0 | BE26: 0 | BF26: 0 | BG26: 0 | BH26: 0 | BI26: 0.14 | BJ26: 0 | BK26: 0.07 | BL26: 0 | BM26: 0.01 | BN26: 0 | BO26: 0 | BP26: 0 | BQ26: 0.42 | BR26: 0 | BS26: 0 | BT26: 0.9 | BU26: 0 | BV26: 0 | BW26: 0 | BX26: 0 | BY26: 0 | BZ26: 187.49 | CC26: 157.03 | CE26: 49.17 | CF26: 27.53 | CG26: 38.35 | CH26: 625.17 | CI26: 375.25 | CJ26: 500.21 | CK26: 38.79 | CL26: 19.02 | CM26: 28.9 | CN26: 0 | CO26: 1.08
A27: ="4/9" -> 4/9 | B27: Плов из мяса цыплят-бройлеров | C27: 180 | D27: 16.2 | E27: 17.6 | F27: 33.8 | G27: 358 | H27: 4.72 | I27: 5.27 | J27: 0 | K27: 0 | L27: 1.61 | M27: 30.47 | N27: 1.73 | O27: 0 | P27: 0 | Q27: 0.05 | R27: 1.48 | S27: 122.23 | T27: 128.48 | U27: 18.3 | V27: 30.4 | W27: 145.2 | X27: 1.5 | Y27: 28.5 | Z27: 1196.1 | AA27: 256.6 | AB27: 4.2 | AC27: 0.1 | AD27: 0.1 | AE27: 5.6 | AF27: 11.7 | AG27: 0.8 | AH27: 0 | AI27: 803.86 | AJ27: 634.59 | AK27: 1270.87 | AL27: 1258.78 | AM27: 405.82 | AN27: 719.12 | AO27: 252.84 | AP27: 686.61 | AQ27: 995.86 | AR27: 1092.34 | AS27: 1409.27 | AT27: 421.02 | AU27: 1128.95 | AV27: 2361.87 | AW27: 110.57 | AX27: 768.88 | AY27: 755.96 | AZ27: 579.97 | BA27: 216.58 | BB27: 0 | BC27: 0 | BD27: 0 | BE27: 0 | BF27: 0 | BG27: 0 | BH27: 0 | BI27: 0.43 | BJ27: 0 | BK27: 0.26 | BL27: 0.02 | BM27: 0.04 | BN27: 0 | BO27: 0 | BP27: 0 | BQ27: 1.54 | BR27: 0 | BS27: 0 | BT27: 3.65 | BU27: 0 | BV27: 0 | BW27: 0 | BX27: 0 | BY27: 0 | BZ27: 158.86 | CC27: 227.83 | CE27: 21.96 | CF27: 11.1 | CG27: 16.53 | CH27: 4297.8 | CI27: 2473.03 | CJ27: 3385.41 | CK27: 22.31 | CL27: 14.18 | CM27: 18.24 | CN27: 0 | CO27: 0.72
B28: Итого за 'Обед' | C28: =SUM(C22:C27) -> 640 | D28: =SUM(D22:D27) -> 23.7 | E28: 27.5 | F28: 93.8 | G28: 702 | H28: 6.78 | I28: 8.16 | J28: 0 | K28: 0 | L28: 24.89 | M28: 59.41 | N28: 9.51 | O28: 0 | P28: 0 | Q28: 0.89 | R28: 5.71 | S28: 828.22 | T28: 952.24 | U28: 91.5 | V28: 87.4 | W28: 273.5 | X28: 4.2 | Y28: 28.5 | Z28: 3655.0 | AA28: 697.3 | AB28: 7.8 | AC28: 0.3 | AD28: 0.3 | AE28: 7.4 | AF28: 14.7 | AG28: 22.6 | AH28: 0 | AI28: 1037.92 | AJ28: 849.39 | AK28: 1612.52 | AL28: 1435.2 | AM28: 478.94 | AN28: 881.78 | AO28: 313.83 | AP28: 951.18 | AQ28: 1215.53 | AR28: 1387.18 | AS28: 1743.79 | AT28: 518.84 | AU28: 1336.72 | AV28: 3694.57 | AW28: 110.57 | AX28: 1166.77 | AY28: 975.57 | AZ28: 725.35 | BA28: 315.21 | BB28: 0 | BC28: 0 | BD28: 0 | BE28: 0 | BF28: 0 | BG28: 0 | BH28: 0 | BI28: 0.81 | BJ28: 0 | BK28: 0.45 | BL28: 0.04 | BM28: 0.07 | BN28: 0 | BO28: 0 | BP28: 0.01 | BQ28: 2.71 | BR28: 0 | BS28: 0 | BT28: 6.49 | BU28: 0.03 | BV28: 0 | BW28: 0 | BX28: 0 | BY28: 0 | BZ28: 601.83 | CB28: =$G$28/#REF!*100 ->  | CC28: 637.64 | CE28: 91.62 | CF28: 51.78 | CG28: 71.7 | CH28: 6733.8 | CI28: 3484.56 | CJ28: 5109.18 | CK28: 118.3 | CL28: 72.06 | CM28: 95.18 | CN28: 10.5 | CO28: 2.05
B29: Уплотненный полдник
A30: ="-" -> - | B30: Хлеб пшеничный | C30: 20 | D30: 1.2 | E30: 0.1 | F30: 7.4 | G30: 36 | H30: 0 | I30: 0 | J30: 0 | K30: 0 | L30: 0.22 | M30: 7.12 | N30: 0.04 | O30: 0 | P30: 0 | Q30: 0 | R30: 0.36 | S30: 0 | T30: 0 | U30: 0.0 | V30: 0.0 | W30: 0.0 | X30: 0.0 | Y30: 0.0 | Z30: 0.0 | AA30: 0.0 | AB30: 0.0 | AC30: 0.0 | AD30: 0.0 | AE30: 0.0 | AF30: 0.0 | AG30: 0.0 | AH30: 0 | AI30: 63.86 | AJ30: 66.47 | AK30: 101.79 | AL30: 33.76 | AM30: 20.01 | AN30: 40.02 | AO30: 15.14 | AP30: 72.38 | AQ30: 44.89 | AR30: 62.64 | AS30: 51.68 | AT30: 27.14 | AU30: 48.02 | AV30: 401.59 | AW30: 0 | AX30: 130.85 | AY30: 56.9 | AZ30: 37.76 | BA30: 29.93 | BB30: 0 | BC30: 0 | BD30: 0 | BE30: 0 | BF30: 0 | BG30: 0 | BH30: 0 | BI30: 0.02 | BJ30: 0 | BK30: 0 | BL30: 0 | BM30: 0 | BN30: 0 | BO30: 0 | BP30: 0 | BQ30: 0.01 | BR30: 0 | BS30: 0 | BT30: 0.06 | BU30: 0 | BV30: 0 | BW30: 0 | BX30: 0 | BY30: 0 | BZ30: 7.82 | CC30: 0 | CE30: 0 | CF30: 0 | CG30: 0 | CH30: 570 | CI30: 219.6 | CJ30: 394.8 | CK30: 4.56 | CL30: 4.56 | CM30: 4.56 | CN30: 0 | CO30: 0
A31: ="-" -> - | B31: Хлеб ржаной | C31: 10 | D31: 0.6 | E31: 0.1 | F31: 4.2 | G31: 19 | H31: 0.02 | I31: 0 | J31: 0 | K31: 0 | L31: 0.12 | M31: 3.22 | N31: 0.83 | O31: 0 | P31: 0 | Q31: 0.1 | R31: 0.25 | S31: 61 | T31: 24.5 | U31: 3.5 | V31: 4.7 | W31: 15.8 | X31: 0.4 | Y31: 0.0 | Z31: 0.5 | AA31: 0.1 | AB31: 0.1 | AC31: 0.0 | AD31: 0.0 | AE31: 0.1 | AF31: 0.2 | AG31: 0.0 | AH31: 0 | AI31: 32.2 | AJ31: 24.8 | AK31: 42.7 | AL31: 22.3 | AM31: 9.3 | AN31: 19.8 | AO31: 8 | AP31: 37.1 | AQ31: 29.7 | AR31: 29.1 | AS31: 46.4 | AT31: 12.4 | AU31: 31 | AV31: 155.9 | AW31: 0 | AX31: 52.6 | AY31: 29.1 | AZ31: 18 | BA31: 13 | BB31: 0 | BC31: 0 | BD31: 0 | BE31: 0 | BF31: 0 | BG31: 0 | BH31: 0 | BI31: 0.01 | BJ31: 0 | BK31: 0 | BL31: 0 | BM31: 0 | BN31: 0 | BO31: 0 | BP31: 0 | BQ31: 0.01 | BR31: 0 | BS31: 0 | BT31: 0.05 | BU31: 0.01 | BV31: 0 | BW31: 0 | BX31: 0 | BY31: 0 | BZ31: 4.7 | CC31: 0.08 | CE31: 3 | CF31: 3 | CG31: 3 | CH31: 570 | CI31: 219.6 | CJ31: 394.8 | CK31: 5.7 | CL31: 4.74 | CM31: 5.22 | CN31: 0 | CO31: 0
A32: ="27/10" -> 27/10 | B32: Чай полусладкий | C32: 180 | D32: 0.2 | E32: 0.0 | F32: 4.5 | G32: 18 | H32: 0 | I32: 0 | J32: 0 | K32: 0 | L32: 4.44 | M32: 0 | N32: 0.09 | O32: 0 | P32: 0 | Q32: 0 | R32: 0.05 | S32: 0.04 | T32: 0.13 | U32: 0.1 | V32: 0.0 | W32: 0.0 | X32: 0.0 | Y32: 0.0 | Z32: 0.0 | AA32: 0.0 | AB32: 0.0 | AC32: 0.0 | AD32: 0.0 | AE32: 0.0 | AF32: 0.0 | AG32: 0.0 | AH32: 0 | AI32: 0 | AJ32: 0 | AK32: 0 | AL32: 0 | AM32: 0 | AN32: 0 | AO32: 0 | AP32: 0 | AQ32: 0 | AR32: 0 | AS32: 0 | AT32: 0 | AU32: 0 | AV32: 0 | AW32: 0 | AX32: 0 | AY32: 0 | AZ32: 0 | BA32: 0 | BB32: 0 | BC32: 0 | BD32: 0 | BE32: 0 | BF32: 0 | BG32: 0 | BH32: 0 | BI32: 0 | BJ32: 0 | BK32: 0 | BL32: 0 | BM32: 0 | BN32: 0 | BO32: 0 | BP32: 0 | BQ32: 0 | BR32: 0 | BS32: 0 | BT32: 0 | BU32: 0 | BV32: 0 | BW32: 0 | BX32: 0 | BY32: 0 | BZ32: 180.08 | CC32: 0 | CE32: 3.69 | CF32: 3.69 | CG32: 3.69 | CH32: 398.25 | CI32: 156.6 | CJ32: 277.43 | CK32: 39.61 | CL32: 23.41 | CM32: 31.51 | CN32: 4.5 | CO32: 0
A33: ="2/4" -> 2/4 | B33: Каша гречневая молочная с маслом сливочным | C33: 180 | D33: 7.1 | E33: 6.6 | F33: 31.0 | G33: 205 | H33: 3.9 | I33: 0.1 | J33: 0.0 | K33: 0.0 | L33: 8.2 | M33: 19.0 | N33: 3.9 | O33: 0.0 | P33: 0.0 | Q33: 0.1 | R33: 1.8 | S33: 218.8 | T33: 267.0 | U33: 114.5 | V33: 80.5 | W33: 176.7 | X33: 2.5 | Y33: 36.0 | Z33: 23.5 | AA33: 40.8 | AB33: 0.3 | AC33: 0.2 | AD33: 0.2 | AE33: 1.4 | AF33: 3.3 | AG33: 0.5 | AH33: 0 | AI33: 210 | AJ33: 164.1 | AK33: 266.19 | AL33: 188.97 | AM33: 113.65 | AN33: 143.19 | AO33: 65.4 | AP33: 210.71 | AQ33: 206.21 | AR33: 396.28 | AS33: 391.3 | AT33: 107.38 | AU33: 255.07 | AV33: 803.59 | AW33: 0 | AX33: 178.52 | AY33: 216.18 | AZ33: 153.56 | BA33: 116.87 | BB33: 0.12 | BC33: 0.05 | BD33: 0.03 | BE33: 0.07 | BF33: 0.08 | BG33: 0.35 | BH33: 0 | BI33: 1.16 | BJ33: 0 | BK33: 0.31 | BL33: 0 | BM33: 0 | BN33: 0 | BO33: 0.07 | BP33: 0.11 | BQ33: 1.17 | BR33: 0.01 | BS33: 0 | BT33: 0.41 | BU33: 0.04 | BV33: 0 | BW33: 0 | BX33: 0 | BY33: 0 | BZ33: 149.27 | CC33: 39.92 | CE33: 28.8 | CF33: 13.36 | CG33: 21.08 | CH33: 1984.2 | CI33: 901.05 | CJ33: 1442.62 | CK33: 35.28 | CL33: 18.22 | CM33: 26.75 | CN33: 3.6 | CO33: 0.45
B34: Итого за 'Ужин' | C34: =SUM(C30:C33) -> 390 | D34: =SUM(D30:D33) -> 9.1 | E34: 6.9 | F34: 47.1 | G34: 278 | H34: 3.89 | I34: 0.1 | J34: 0 | K34: 0 | L34: 13 | M34: 29.29 | N34: 4.82 | O34: 0 | P34: 0 | Q34: 0.19 | R34: 2.42 | S34: 279.82 | T34: 291.63 | U34: 118.1 | V34: 85.2 | W34: 192.5 | X34: 2.9 | Y34: 36.0 | Z34: 24.0 | AA34: 40.9 | AB34: 0.5 | AC34: 0.2 | AD34: 0.2 | AE34: 1.4 | AF34: 3.5 | AG34: 0.5 | AH34: 0 | AI34: 449.83 | AJ34: 397.37 | AK34: 654.11 | AL34: 440.83 | AM34: 208.22 | AN34: 317.67 | AO34: 126.46 | AP34: 448.97 | AQ34: 280.8 | AR34: 488.02 | AS34: 489.38 | AT34: 146.93 | AU34: 334.1 | AV34: 1361.08 | AW34: 0 | AX34: 361.96 | AY34: 302.18 | AZ34: 371.6 | BA34: 182.73 | BB34: 0.12 | BC34: 0.05 | BD34: 0.03 | BE34: 0.07 | BF34: 0.08 | BG34: 0.35 | BH34: 0 | BI34: 1.19 | BJ34: 0 | BK34: 0.32 | BL34: 0.01 | BM34: 0 | BN34: 0 | BO34: 0.07 | BP34: 0.11 | BQ34: 1.2 | BR34: 0.01 | BS34: 0 | BT34: 0.51 | BU34: 0.05 | BV34: 0 | BW34: 0 | BX34: 0 | BY34: 0 | BZ34: 341.33 | CB34: =$G$34/#REF!*100 ->  | CC34: 40 | CE34: 35.48 | CF34: 20.05 | CG34: 27.76 | CH34: 3522.45 | CI34: 1496.85 | CJ34: 2509.65 | CK34: 85.15 | CL34: 50.93 | CM34: 68.04 | CN34: 8.1 | CO34: 0.45
B35: Итого за день | C35: =C17+C20+C28+C34 -> 1550 | D35: 44.4 | E35: 44.8 | F35: 204.1 | G35: 1366 | H35: 16.62 | I35: 8.35 | J35: 0 | K35: 0 | L35: 63.01 | M35: 121.96 | N35: 19.13 | O35: 0 | P35: 0 | Q35: 2.3 | R35: 11.51 | S35: 1635.25 | T35: 1812.49 | U35: 500.0 | V35: 230.2 | W35: 783.5 | X35: 10.7 | Y35: 113.7 | Z35: 3746.0 | AA35: 812.4 | AB35: 9.7 | AC35: 0.6 | AD35: 0.7 | AE35: 10.6 | AF35: 23.1 | AG35: 33.8 | AH35: 0 | AI35: 1950.41 | AJ35: 1668.93 | AK35: 2887.55 | AL35: 2245.02 | AM35: 842.07 | AN35: 1471.41 | AO35: 586.43 | AP35: 1866.25 | AQ35: 1821.27 | AR35: 2266.32 | AS35: 2798.37 | AT35: 878.86 | AU35: 1974.88 | AV35: 7218.01 | AW35: 110.57 | AX35: 2536.2 | AY35: 1670.71 | AZ35: 1422.93 | BA35: 651.91 | BB35: 0.21 | BC35: 0.11 | BD35: 0.09 | BE35: 0.23 | BF35: 0.27 | BG35: 0.98 | BH35: 0.04 | BI35: 3.58 | BJ35: 0.01 | BK35: 1.21 | BL35: 0.06 | BM35: 0.07 | BN35: 0 | BO35: 0.17 | BP35: 0.27 | BQ35: 5.41 | BR35: 0.01 | BS35: 0 | BT35: 7.37 | BU35: 0.09 | BV35: 0 | BW35: 0 | BX35: 0 | BY35: 0 | BZ35: 1396.71 | CC35: 738.01 | CE35: 170.18 | CF35: 92.03 | CG35: 131.1 | CH35: 14190.92 | CI35: 6918.15 | CJ35: 10554.53 | CK35: 290.4 | CL35: 171.4 | CM35: 230.9 | CN35: 27.1 | CO35: 3
B37: 2 день
B38: Завтрак
A39: ="-" -> - | B39: Хлеб пшеничный | C39: 25 | D39: 1.5 | E39: 0.2 | F39: 9.2 | G39: 45 | H39: 0 | I39: 0 | J39: 0 | K39: 0 | L39: 0.28 | M39: 8.9 | N39: 0.05 | O39: 0 | P39: 0 | Q39: 0 | R39: 0.45 | S39: 0 | T39: 0 | U39: 0.0 | V39: 0.0 | W39: 0.0 | X39: 0.0 | Y39: 0.0 | Z39: 0.0 | AA39: 0.0 | AB39: 0.0 | AC39: 0.0 | AD39: 0.0 | AE39: 0.0 | AF39: 0.0 | AG39: 0.0 | AH39: 0 | AI39: 79.82 | AJ39: 83.09 | AK39: 127.24 | AL39: 42.2 | AM39: 25.01 | AN39: 50.03 | AO39: 18.92 | AP39: 90.48 | AQ39: 56.12 | AR39: 78.3 | AS39: 64.6 | AT39: 33.93 | AU39: 60.03 | AV39: 501.99 | AW39: 0 | AX39: 163.56 | AY39: 71.12 | AZ39: 47.2 | BA39: 37.41 | BB39: 0 | BC39: 0 | BD39: 0 | BE39: 0 | BF39: 0 | BG39: 0 | BH39: 0 | BI39: 0.02 | BJ39: 0 | BK39: 0 | BL39: 0 | BM39: 0 | BN39: 0 | BO39: 0 | BP39: 0 | BQ39: 0.02 | BR39: 0 | BS39: 0 | BT39: 0.07 | BU39: 0 | BV39: 0 | BW39: 0 | BX39: 0 | BY39: 0 | BZ39: 9.78 | CC39: 0 | CE39: 0 | CF39: 0 | CG39: 0 | CH39: 570 | CI39: 219.6 | CJ39: 394.8 | CK39: 4.56 | CL39: 4.56 | CM39: 4.56 | CN39: 0 | CO39: 0
A40: ="-" -> - | B40: Масло сливочное | C40: 5 | D40: 0.0 | E40: 3.6 | F40: 0.1 | G40: 33 | H40: 2.36 | I40: 0.11 | J40: 0 | K40: 0 | L40: 0.07 | M40: 0 | N40: 0 | O40: 0 | P40: 0 | Q40: 0 | R40: 0.07 | S40: 0.75 | T40: 1.5 | U40: 1.2 | V40: 0.0 | W40: 1.5 | X40: 0.0 | Y40: 20.0 | Z40: 15.0 | AA40: 22.5 | AB40: 0.1 | AC40: 0.0 | AD40: 0.0 | AE40: 0.0 | AF40: 0.0 | AG40: 0.0 | AH40: 0 | AI40: 2.1 | AJ40: 2.05 | AK40: 3.8 | AL40: 2.25 | AM40: 0.85 | AN40: 2.35 | AO40: 2.15 | AP40: 2.1 | AQ40: 1.8 | AR40: 1.3 | AS40: 2.85 | AT40: 1.75 | AU40: 1.2 | AV40: 7.1 | AW40: 0 | AX40: 2.4 | AY40: 2.7 | AZ40: 2.1 | BA40: 0.5 | BB40: 0.13 | BC40: 0.06 | BD40: 0.03 | BE40: 0.08 | BF40: 0.09 | BG40: 0.4 | BH40: 0 | BI40: 1.1 | BJ40: 0 | BK40: 0.34 | BL40: 0 | BM40: 0 | BN40: 0 | BO40: 0.08 | BP40: 0.12 | BQ40: 0.9 | BR40: 0 | BS40: 0 | BT40: 0.05 | BU40: 0 | BV40: 0 | BW40: 0 | BX40: 0 | BY40: 0 | BZ40: 1.25 | CC40: 22.5 | CE40: 0.2 | CF40: 0.05 | CG40: 0.13 | CH40: 10 | CI40: 4.1 | CJ40: 7.05 | CK40: 0.86 | CL40: 0.44 | CM40: 0.65 | CN40: 0 | CO40: 0
A41: ="29/10" -> 29/10 | B41: Чай с лимоном | C41: 180 | D41: 0.2 | E41: 0.1 | F41: 8.9 | G41: 36 | H41: 0 | I41: 0 | J41: 0 | K41: 0 | L41: 8.75 | M41: 0 | N41: 0.18 | O41: 0 | P41: 0 | Q41: 0.25 | R41: 0.08 | S41: 0.57 | T41: 7.35 | U41: 2.0 | V41: 0.5 | W41: 0.9 | X41: 0.1 | Y41: 0.0 | Z41: 0.4 | AA41: 0.1 | AB41: 0.0 | AC41: 0.0 | AD41: 0.0 | AE41: 0.0 | AF41: 0.0 | AG41: 0.7 | AH41: 0 | AI41: 0.6 | AJ41: 0.69 | AK41: 0.56 | AL41: 1.03 | AM41: 0.26 | AN41: 1.08 | AO41: 0 | AP41: 1.38 | AQ41: 0 | AR41: 0 | AS41: 0 | AT41: 0.77 | AU41: 0 | AV41: 0 | AW41: 0 | AX41: 0 | AY41: 0 | AZ41: 0 | BA41: 0 | BB41: 0 | BC41: 0 | BD41: 0 | BE41: 0 | BF41: 0 | BG41: 0 | BH41: 0 | BI41: 0 | BJ41: 0 | BK41: 0 | BL41: 0 | BM41: 0 | BN41: 0 | BO41: 0 | BP41: 0 | BQ41: 0 | BR41: 0 | BS41: 0 | BT41: 0 | BU41: 0 | BV41: 0 | BW41: 0 | BX41: 0 | BY41: 0 | BZ41: 179.55 | CC41: 0.07 | CE41: 3.85 | CF41: 3.72 | CG41: 3.79 | CH41: 434.63 | CI41: 165.16 | CJ41: 299.9 | CK41: 39.92 | CL41: 23.87 | CM41: 31.9 | CN41: 8.78 | CO41: 0
A42: ="11/4" -> 11/4 | B42: Каша пшенная молочная с маслом сливочным | C42: 200 | D42: 6.5 | E42: 6.1 | F42: 32.6 | G42: 210 | H42: 3.84 | I42: 0.11 | J42: 0 | K42: 0 | L42: 7.81 | M42: 23.51 | N42: 1.31 | O42: 0 | P42: 0 | Q42: 0.08 | R42: 1.57 | S42: 238.34 | T42: 178.52 | U42: 96.8 | V42: 38.7 | W42: 145.4 | X42: 1.0 | Y42: 21.6 | Z42: 24.8 | AA42: 41.3 | AB42: 0.2 | AC42: 0.1 | AD42: 0.1 | AE42: 0.6 | AF42: 2.5 | AG42: 0.4 | AH42: 0 | AI42: 178.69 | AJ42: 163.61 | AK42: 580.36 | AL42: 110.4 | AM42: 112.1 | AN42: 152.61 | AO42: 69.7 | AP42: 220.05 | AQ42: 405.89 | AR42: 161.02 | AS42: 247.08 | AT42: 99.41 | AU42: 113.93 | AV42: 841.39 | AW42: 0 | AX42: 306.82 | AY42: 265.74 | AZ42: 156.13 | BA42: 68.15 | BB42: 0.12 | BC42: 0.05 | BD42: 0.03 | BE42: 0.07 | BF42: 0.08 | BG42: 0.35 | BH42: 0 | BI42: 1.06 | BJ42: 0 | BK42: 0.32 | BL42: 0.01 | BM42: 0 | BN42: 0 | BO42: 0.07 | BP42: 0.11 | BQ42: 0.98 | BR42: 0 | BS42: 0 | BT42: 0.78 | BU42: 0.01 | BV42: 0 | BW42: 0 | BX42: 0 | BY42: 0 | BZ42: 166.06 | CC42: 25.73 | CE42: 31.04 | CF42: 15.29 | CG42: 23.16 | CH42: 2125.67 | CI42: 973.93 | CJ42: 1549.8 | CK42: 36.73 | CL42: 18.95 | CM42: 27.84 | CN42: 4 | CO42: 0.5
B43: Итого за 'Завтрак' | C43: =SUM(C39:C42) -> 410 | D43: =SUM(D39:D42) -> 8.3 | E43: 9.9 | F43: 50.9 | G43: 324 | H43: 6.2 | I43: 0.22 | J43: 0 | K43: 0 | L43: 16.91 | M43: 32.41 | N43: 1.54 | O43: 0 | P43: 0 | Q43: 0.33 | R43: 2.17 | S43: 239.66 | T43: 187.37 | U43: 99.9 | V43: 39.2 | W43: 147.8 | X43: 1.1 | Y43: 41.6 | Z43: 40.2 | AA43: 63.9 | AB43: 0.2 | AC43: 0.1 | AD43: 0.1 | AE43: 0.6 | AF43: 2.5 | AG43: 1.1 | AH43: 0 | AI43: 261.22 | AJ43: 249.43 | AK43: 711.95 | AL43: 155.88 | AM43: 138.22 | AN43: 206.06 | AO43: 90.77 | AP43: 314.01 | AQ43: 463.81 | AR43: 240.62 | AS43: 314.53 | AT43: 135.86 | AU43: 175.16 | AV43: 1350.48 | AW43: 0 | AX43: 472.78 | AY43: 339.56 | AZ43: 205.43 | BA43: 106.06 | BB43: 0.25 | BC43: 0.12 | BD43: 0.06 | BE43: 0.14 | BF43: 0.16 | BG43: 0.75 | BH43: 0 | BI43: 2.18 | BJ43: 0 | BK43: 0.66 | BL43: 0.01 | BM43: 0 | BN43: 0 | BO43: 0.14 | BP43: 0.22 | BQ43: 1.89 | BR43: 0 | BS43: 0 | BT43: 0.89 | BU43: 0.02 | BV43: 0 | BW43: 0 | BX43: 0 | BY43: 0 | BZ43: 356.63 | CB43: =$G$43/#REF!*100 ->  | CC43: 48.3 | CE43: 35.09 | CF43: 19.06 | CG43: 27.07 | CH43: 3140.3 | CI43: 1362.79 | CJ43: 2251.54 | CK43: 82.06 | CL43: 47.81 | CM43: 64.94 | CN43: 12.78 | CO43: 0.5
B44: 10:00
A45: ="-" -> - | B45: Ряженка | C45: 100 | D45: 3.0 | E45: 2.5 | F45: 4.2 | G45: 51 | H45: 0.1 | I45: 0 | J45: 0 | K45: 0 | L45: 4.2 | M45: 0 | N45: 0 | O45: 0 | P45: 0 | Q45: 0.1 | R45: 0.4 | S45: 2 | T45: 238 | U45: 15.0 | V45: 9.0 | W45: 12.0 | X45: 0.4 | Y45: 0.0 | Z45: 30.0 | AA45: 5.0 | AB45: 0.1 | AC45: 0.0 | AD45: 0.0 | AE45: 0.6 | AF45: 0.7 | AG45: 15.0 | AH45: 0 | AI45: 0 | AJ45: 0 | AK45: 450 | AL45: 387 | AM45: 115 | AN45: 216 | AO45: 72 | AP45: 225 | AQ45: 160 | AR45: 174 | AS45: 344 | AT45: 156 | AU45: 93 | AV45: 897 | AW45: 0 | AX45: 518 | AY45: 278 | AZ45: 242 | BA45: 50 | BB45: 0.1 | BC45: 0.07 | BD45: 0.04 | BE45: 0.08 | BF45: 0.09 | BG45: 0.45 | BH45: 0.03 | BI45: 0.56 | BJ45: 0.02 | BK45: 0.31 | BL45: 0.04 | BM45: 0 | BN45: 0 | BO45: 0.04 | BP45: 0.08 | BQ45: 0.69 | BR45: 0.01 | BS45: 0 | BT45: 0.02 | BU45: 0.03 | BV45: 0.08 | BW45: 0 | BX45: 0 | BY45: 0 | BZ45: 93 | CC45: 5 | CE45: 0 | CF45: 0 | CG45: 0 | CH45: 0 | CI45: 0 | CJ45: 0 | CK45: 0 | CL45: 0 | CM45: 0 | CN45: 0 | CO45: 0
A46: ="-" -> - | B46: Печенье | C46: 20 | D46: 0.4 | E46: 2.6 | F46: 11.5 | G46: 70 | H46: 0.42 | I46: 0 | J46: 0 | K46: 0 | L46: 5 | M46: 6 | N46: 0.46 | O46: 0 | P46: 0 | Q46: 0.1 | R46: 0.2 | S46: 66 | T46: 22 | U46: 5.8 | V46: 4.0 | W46: 18.0 | X46: 0.4 | Y46: 2.0 | Z46: 1.6 | AA46: 2.2 | AB46: 0.7 | AC46: 0.0 | AD46: 0.0 | AE46: 0.1 | AF46: 0.4 | AG46: 0.0 | AH46: 0 | AI46: 0 | AJ46: 0 | AK46: 0 | AL46: 0 | AM46: 0 | AN46: 0 | AO46: 0 | AP46: 0 | AQ46: 0 | AR46: 0 | AS46: 0 | AT46: 0 | AU46: 0 | AV46: 0 | AW46: 0 | AX46: 0 | AY46: 0 | AZ46: 0 | BA46: 0 | BB46: 0 | BC46: 0 | BD46: 0 | BE46: 0 | BF46: 0 | BG46: 0 | BH46: 0 | BI46: 0 | BJ46: 0 | BK46: 0 | BL46: 0 | BM46: 0 | BN46: 0 | BO46: 0 | BP46: 0 | BQ46: 0 | BR46: 0 | BS46: 0 | BT46: 0 | BU46: 0 | BV46: 0 | BW46: 0 | BX46: 0 | BY46: 0 | BZ46: 0.9 | CC46: 2.27 | CE46: 0 | CF46: 0 | CG46: 0 | CH46: 0 | CI46: 0 | CJ46: 0 | CK46: 0 | CL46: 0 | CM46: 0 | CN46: 0 | CO46: 0
B47: Итого за '10:00' | C47: =SUM(C45:C46) -> 120 | D47: =SUM(D45:D46) -> 3.4 | E47: 5.1 | F47: 15.7 | G47: 121 | H47: 0.52 | I47: 0 | J47: 0 | K47: 0 | L47: 9.2 | M47: 6 | N47: 0.46 | O47: 0 | P47: 0 | Q47: 0.2 | R47: 0.6 | S47: 68 | T47: 260 | U47: 20.8 | V47: 13.0 | W47: 30.0 | X47: 0.8 | Y47: 2.0 | Z47: 31.6 | AA47: 7.2 | AB47: 0.8 | AC47: 0.1 | AD47: 0.0 | AE47: 0.7 | AF47: 1.1 | AG47: 15.0 | AH47: 0 | AI47: 0 | AJ47: 0 | AK47: 450 | AL47: 387 | AM47: 115 | AN47: 216 | AO47: 72 | AP47: 225 | AQ47: 160 | AR47: 174 | AS47: 344 | AT47: 156 | AU47: 93 | AV47: 897 | AW47: 0 | AX47: 518 | AY47: 278 | AZ47: 242 | BA47: 50 | BB47: 0.1 | BC47: 0.07 | BD47: 0.04 | BE47: 0.08 | BF47: 0.09 | BG47: 0.45 | BH47: 0.03 | BI47: 0.56 | BJ47: 0.02 | BK47: 0.31 | BL47: 0.04 | BM47: 0 | BN47: 0 | BO47: 0.04 | BP47: 0.08 | BQ47: 0.69 | BR47: 0.01 | BS47: 0 | BT47: 0.02 | BU47: 0.03 | BV47: 0.08 | BW47: 0 | BX47: 0 | BY47: 0 | BZ47: 93.9 | CB47: =$G$47/#REF!*100 ->  | CC47: 7.27 | CE47: 0 | CF47: 0 | CG47: 0 | CH47: 0 | CI47: 0 | CJ47: 0 | CK47: 0 | CL47: 0 | CM47: 0 | CN47: 0 | CO47: 0
B48: Обед
A49: ="-" -> - | B49: Хлеб пшеничный | C49: 20 | D49: 1.2 | E49: 0.1 | F49: 7.4 | G49: 36 | H49: 0 | I49: 0 | J49: 0 | K49: 0 | L49: 0.22 | M49: 7.12 | N49: 0.04 | O49: 0 | P49: 0 | Q49: 0 | R49: 0.36 | S49: 0 | T49: 0 | U49: 0.0 | V49: 0.0 | W49: 0.0 | X49: 0.0 | Y49: 0.0 | Z49: 0.0 | AA49: 0.0 | AB49: 0.0 | AC49: 0.0 | AD49: 0.0 | AE49: 0.0 | AF49: 0.0 | AG49: 0.0 | AH49: 0 | AI49: 63.86 | AJ49: 66.47 | AK49: 101.79 | AL49: 33.76 | AM49: 20.01 | AN49: 40.02 | AO49: 15.14 | AP49: 72.38 | AQ49: 44.89 | AR49: 62.64 | AS49: 51.68 | AT49: 27.14 | AU49: 48.02 | AV49: 401.59 | AW49: 0 | AX49: 130.85 | AY49: 56.9 | AZ49: 37.76 | BA49: 29.93 | BB49: 0 | BC49: 0 | BD49: 0 | BE49: 0 | BF49: 0 | BG49: 0 | BH49: 0 | BI49: 0.02 | BJ49: 0 | BK49: 0 | BL49: 0 | BM49: 0 | BN49: 0 | BO49: 0 | BP49: 0 | BQ49: 0.01 | BR49: 0 | BS49: 0 | BT49: 0.06 | BU49: 0 | BV49: 0 | BW49: 0 | BX49: 0 | BY49: 0 | BZ49: 7.82 | CC49: 0 | CE49: 0 | CF49: 0 | CG49: 0 | CH49: 380 | CI49: 146.4 | CJ49: 263.2 | CK49: 3.04 | CL49: 3.04 | CM49: 3.04 | CN49: 0 | CO49: 0
A50: ="-" -> - | B50: Хлеб ржаной | C50: 30 | D50: 1.8 | E50: 0.4 | F50: 12.5 | G50: 57 | H50: 0.06 | I50: 0 | J50: 0 | K50: 0 | L50: 0.36 | M50: 9.66 | N50: 2.49 | O50: 0 | P50: 0 | Q50: 0.3 | R50: 0.75 | S50: 183 | T50: 73.5 | U50: 10.5 | V50: 14.1 | W50: 47.4 | X50: 1.2 | Y50: 0.0 | Z50: 1.5 | AA50: 0.3 | AB50: 0.4 | AC50: 0.1 | AD50: 0.0 | AE50: 0.2 | AF50: 0.6 | AG50: 0.0 | AH50: 0 | AI50: 96.6 | AJ50: 74.4 | AK50: 128.1 | AL50: 66.9 | AM50: 27.9 | AN50: 59.4 | AO50: 24 | AP50: 111.3 | AQ50: 89.1 | AR50: 87.3 | AS50: 139.2 | AT50: 37.2 | AU50: 93 | AV50: 467.7 | AW50: 0 | AX50: 157.8 | AY50: 87.3 | AZ50: 54 | BA50: 39 | BB50: 0 | BC50: 0 | BD50: 0 | BE50: 0 | BF50: 0 | BG50: 0 | BH50: 0 | BI50: 0.04 | BJ50: 0 | BK50: 0 | BL50: 0.01 | BM50: 0 | BN50: 0 | BO50: 0 | BP50: 0 | BQ50: 0.03 | BR50: 0 | BS50: 0 | BT50: 0.14 | BU50: 0.02 | BV50: 0 | BW50: 0 | BX50: 0 | BY50: 0 | BZ50: 14.1 | CC50: 0.25 | CE50: 4 | CF50: 4 | CG50: 4 | CH50: 760 | CI50: 292.8 | CJ50: 526.4 | CK50: 7.6 | CL50: 6.32 | CM50: 6.96 | CN50: 0 | CO50: 0
A51: ="16/1" -> 16/1 | B51: Салат из моркови с растительным маслом | C51: 50 | D51: 0.6 | E51: 3 | F51: 5.7 | G51: 49 | H51: 0.38 | I51: 1.95 | J51: 0 | K51: 0 | L51: 4.49 | M51: 0.09 | N51: 1.08 | O51: 0 | P51: 0 | Q51: 0.14 | R51: 0.45 | S51: 9.48 | T51: 90.2 | U51: 12.2 | V51: 17.1 | W51: 24.8 | X51: 0.32 | Y51: 5409.6 | Z51: 5.4 | AA51: 1.5 | AB51: 0.03 | AC51: 0 | AD51: 0 | AE51: 0.51 | AF51: 2.25 | AG51: 2.3 | AH51: 19.38 | AI51: 15.78 | AJ51: 19.84 | AK51: 17.13 | AL51: 4.06 | AM51: 14.43 | AN51: 3.61 | AO51: 13.97 | AP51: 21.64 | AQ51: 18.48 | AR51: 60.86 | AS51: 6.31 | AT51: 13.07 | AU51: 105.94 | AV51: 0 | AW51: 13.52 | AX51: 14.88 | AY51: 8.11 | AZ51: 5.41 | BA51: 0 | BB51: 0 | BC51: 0 | BD51: 0 | BE51: 0 | BF51: 0 | BG51: 0 | BH51: 0.18 | BI51: 0 | BJ51: 0.12 | BK51: 0.01 | BL51: 0.02 | BM51: 0 | BN51: 0 | BO51: 0 | BP51: 0.7 | BQ51: 0 | BR51: 0 | BS51: 1.73 | BT51: 0 | BU51: 0 | BV51: 0 | BW51: 0 | BX51: 0 | BY51: 40.48 | CB51: 901.6 | CD51: 1.47 | CE51: 1.42 | CF51: 1.44 | CG51: 245.85 | CH51: 58.48 | CI51: 152.16 | CJ51: 1.29 | CK51: 0.75 | CL51: 1.02 | CM51: 1.5 | CN51: 0
A52: ="3/10" -> 3/10 | B52: Компот из яблок | C52: 180 | D52: 0.1 | E52: 0.1 | F52: 17.3 | G52: 67 | H52: 0.04 | I52: 0 | J52: 0 | K52: 0 | L52: 16.38 | M52: 0.27 | N52: 0.62 | O52: 0 | P52: 0 | Q52: 0.29 | R52: 0.19 | S52: 9.4 | T52: 99.48 | U52: 6.0 | V52: 3.1 | W52: 3.7 | X52: 0.8 | Y52: 0.0 | Z52: 9.7 | AA52: 1.8 | AB52: 0.1 | AC52: 0.0 | AD52: 0.0 | AE52: 0.1 | AF52: 0.1 | AG52: 1.4 | AH52: 0 | AI52: 4.23 | AJ52: 4.59 | AK52: 6.7 | AL52: 6.35 | AM52: 1.06 | AN52: 3.88 | AO52: 1.06 | AP52: 3.18 | AQ52: 6 | AR52: 3.53 | AS52: 27.52 | AT52: 2.47 | AU52: 4.94 | AV52: 14.82 | AW52: 0 | AX52: 4.59 | AY52: 5.64 | AZ52: 2.12 | BA52: 1.76 | BB52: 0 | BC52: 0 | BD52: 0 | BE52: 0 | BF52: 0 | BG52: 0 | BH52: 0 | BI52: 0 | BJ52: 0 | BK52: 0 | BL52: 0 | BM52: 0 | BN52: 0 | BO52: 0 | BP52: 0 | BQ52: 0 | BR52: 0 | BS52: 0 | BT52: 0 | BU52: 0 | BV52: 0 | BW52: 0 | BX52: 0 | BY52: 0 | BZ52: 220.08 | CC52: 1.62 | CE52: 4.5 | CF52: 4.5 | CG52: 4.5 | CH52: 432 | CI52: 208.98 | CJ52: 320.49 | CK52: 41.2 | CL52: 24.19 | CM52: 32.7 | CN52: 13.5 | CO52: 0
A53: ="4/2" -> 4/2 | B53: Борщ с картофелем на говяжьем бульоне | C53: 180 | D53: 2.1 | E53: 6.2 | F53: 9.5 | G53: 99 | H53: 1.64 | I53: 1.4 | J53: 0 | K53: 0 | L53: 6.01 | M53: 2.04 | N53: 1.48 | O53: 0 | P53: 0 | Q53: 0.19 | R53: 1.83 | S53: 436.05 | T53: 223.51 | U53: 24.3 | V53: 14.8 | W53: 31.0 | X53: 0.7 | Y53: 0.0 | Z53: 729.2 | AA53: 151.9 | AB53: 1.1 | AC53: 0.0 | AD53: 0.1 | AE53: 0.4 | AF53: 0.7 | AG53: 5.7 | AH53: 0 | AI53: 28.5 | AJ53: 30.8 | AK53: 36.55 | AL53: 43.86 | AM53: 10.36 | AN53: 28.02 | AO53: 8.12 | AP53: 27.41 | AQ53: 31.54 | AR53: 55.71 | AS53: 130.69 | AT53: 10.44 | AU53: 24.17 | AV53: 157.1 | AW53: 0 | AX53: 26.8 | AY53: 30.93 | AZ53: 25.59 | BA53: 9.34 | BB53: 0 | BC53: 0 | BD53: 0 | BE53: 0 | BF53: 0 | BG53: 0 | BH53: 0 | BI53: 0.13 | BJ53: 0 | BK53: 0.08 | BL53: 0.01 | BM53: 0.01 | BN53: 0 | BO53: 0 | BP53: 0 | BQ53: 0.47 | BR53: 0 | BS53: 0 | BT53: 1.29 | BU53: 0 | BV53: 0 | BW53: 0 | BX53: 0 | BY53: 0 | BZ53: 207.15 | CC53: 121.54 | CE53: 47.66 | CF53: 25.2 | CG53: 36.43 | CH53: 545.04 | CI53: 170.64 | CJ53: 357.84 | CK53: 6.8 | CL53: 3.82 | CM53: 5.31 | CN53: 1.8 | CO53: 1.08
A54: ="3/3" -> 3/3 | B54: Картофельное пюре с маслом сливочным | C54: 150 | D54: 3.1 | E54: 3.5 | F54: 22.1 | G54: 132 | H54: 2.22 | I54: 0.08 | J54: 0 | K54: 0 | L54: 2.16 | M54: 18.23 | N54: 1.7 | O54: 0 | P54: 0 | Q54: 0.29 | R54: 1.89 | S54: 77.84 | T54: 636.26 | U54: 34.0 | V54: 30.4 | W54: 86.8 | X54: 1.1 | Y54: 18.8 | Z54: 34.1 | AA54: 25.1 | AB54: 0.2 | AC54: 0.1 | AD54: 0.1 | AE54: 1.3 | AF54: 2.6 | AG54: 5.5 | AH54: 0 | AI54: 33.56 | AJ54: 52.76 | AK54: 66.83 | AL54: 78.55 | AM54: 13.43 | AN54: 52.97 | AO54: 27.18 | AP54: 54.08 | AQ54: 75.67 | AR54: 206.13 | AS54: 91.81 | AT54: 19.2 | AU54: 53.44 | AV54: 287.21 | AW54: 0 | AX54: 40.19 | AY54: 36.55 | AZ54: 39.97 | BA54: 17.03 | BB54: 0.1 | BC54: 0.04 | BD54: 0.02 | BE54: 0.05 | BF54: 0.06 | BG54: 0.29 | BH54: 0 | BI54: 0.88 | BJ54: 0 | BK54: 0.26 | BL54: 0 | BM54: 0 | BN54: 0 | BO54: 0.05 | BP54: 0.09 | BQ54: 0.85 | BR54: 0 | BS54: 0 | BT54: 0.14 | BU54: 0 | BV54: 0 | BW54: 0 | BX54: 0 | BY54: 0 | BZ54: 123.74 | CC54: 24.43 | CE54: 14.07 | CF54: 9.33 | CG54: 11.7 | CH54: 481.65 | CI54: 423.36 | CJ54: 452.5 | CK54: 19.53 | CL54: 2.87 | CM54: 11.2 | CN54: 0 | CO54: 0.23
A55: ="36/8" -> 36/8 | B55: Тефтели из мяса говядины с рисом | C55: 70 | D55: 7.5 | E55: 7.5 | F55: 10.0 | G55: 135 | H55: 5.01 | I55: 47.78 | J55: 0 | K55: 0 | L55: 1.77 | M55: 6.42 | N55: 1.83 | O55: 0 | P55: 0 | Q55: 0.05 | R55: 1.08 | S55: 155.71 | T55: 146.44 | U55: 13.1 | V55: 16.1 | W55: 105.2 | X55: 1.5 | Y55: 0.0 | Z55: 0.0 | AA55: 0.0 | AB55: 1.8 | AC55: 0.0 | AD55: 0.1 | AE55: 2.2 | AF55: 4.1 | AG55: 2.1 | AH55: 0 | AI55: 485.9 | AJ55: 370.07 | AK55: 698.94 | AL55: 1141.9 | AM55: 206.29 | AN55: 370.4 | AO55: 99.59 | AP55: 380.03 | AQ55: 502 | AR55: 492.55 | AS55: 807.25 | AT55: 322.81 | AU55: 434.09 | AV55: 1488.66 | AW55: 125.35 | AX55: 343.74 | AY55: 371.2 | AZ55: 308.9 | BA55: 125.86 | BB55: 0 | BC55: 0 | BD55: 0 | BE55: 0 | BF55: 0 | BG55: 0 | BH55: 0 | BI55: 0.21 | BJ55: 0 | BK55: 0.13 | BL55: 0.01 | BM55: 0.02 | BN55: 0 | BO55: 0 | BP55: 0 | BQ55: 0.79 | BR55: 0 | BS55: 0 | BT55: 1.94 | BU55: 0 | BV55: 0 | BW55: 0 | BX55: 0 | BY55: 0 | BZ55: 63.88 | CC55: 0 | CE55: 18.33 | CF55: 11.33 | CG55: 14.83 | CH55: 1989.1 | CI55: 1140.64 | CJ55: 1564.87 | CK55: 17.74 | CL55: 10.21 | CM55: 13.98 | CN55: 0 | CO55: 0.35
B56: Итого за 'Обед' | C56: =SUM(C49:C55) -> 680 | D56: =SUM(D49:D55) -> 16.4 | E56: 20.9 | F56: 84.5 | G56: 574 | H56: 9.35 | I56: 51.21 | J56: 0 | K56: 0 | L56: 31.39 | M56: 43.83 | N56: 9.24 | O56: 0 | P56: 0 | Q56: 1.26 | R56: 6.55 | S56: 871.48 | T56: 1269.39 | U56: 100.1 | V56: 95.5 | W56: 298.9 | X56: 5.6 | Y56: 5428.4 | Z56: 780.0 | AA56: 180.6 | AB56: 3.6 | AC56: 0.3 | AD56: 0.3 | AE56: 4.7 | AF56: 10.4 | AG56: 17.0 | AH56: 0 | AI56: 712.65 | AJ56: 599.08 | AK56: 1038.91 | AL56: 1371.32 | AM56: 279.04 | AN56: 554.69 | AO56: 175.09 | AP56: 648.38 | AQ56: 749.2 | AR56: 907.86 | AS56: 1248.15 | AT56: 419.26 | AU56: 657.66 | AV56: 2817.08 | AW56: 125.35 | AX56: 703.97 | AY56: 588.53 | AZ56: 468.33 | BA56: 222.92 | BB56: 0.1 | BC56: 0.04 | BD56: 0.02 | BE56: 0.05 | BF56: 0.06 | BG56: 0.29 | BH56: 0 | BI56: 1.28 | BJ56: 0 | BK56: 0.48 | BL56: 0.02 | BM56: 0.04 | BN56: 0 | BO56: 0.05 | BP56: 0.09 | BQ56: 2.15 | BR56: 0 | BS56: 0 | BT56: 3.56 | BU56: 0.03 | BV56: 0 | BW56: 0 | BX56: 0 | BY56: 0 | BZ56: 636.77 | CB56: =$G$56/#REF!*100 ->  | CC56: 147.84 | CE56: 88.56 | CF56: 54.36 | CG56: 71.46 | CH56: 4587.78 | CI56: 2382.82 | CJ56: 3485.3 | CK56: 95.91 | CL56: 50.45 | CM56: 73.18 | CN56: 15.3 | CO56: 1.66
B57: Уплотненный полдник
A58: ="27/12" -> 27/12 | B58: Оладьи | C58: 70 | D58: 3.8 | E58: 4.3 | F58: 23.3 | G58: 147 | H58: 0.65 | I58: 2.73 | J58: 0 | K58: 0 | L58: 1.4 | M58: 20.8 | N58: 1.07 | O58: 0 | P58: 0 | Q58: 0 | R58: 0.83 | S58: 247.83 | T58: 41.19 | U58: 8.4 | V58: 5.2 | W58: 30.2 | X58: 0.4 | Y58: 2.7 | Z58: 0.8 | AA58: 4.7 | AB58: 2.4 | AC58: 0.0 | AD58: 0.0 | AE58: 0.4 | AF58: 1.2 | AG58: 0.0 | AH58: 0 | AI58: 172.68 | AJ58: 154.06 | AK58: 287.43 | AL58: 108.79 | AM58: 59.86 | AN58: 115.98 | AO58: 36.97 | AP58: 175.94 | AQ58: 126.28 | AR58: 149 | AS58: 144.56 | AT58: 75.28 | AU58: 126.43 | AV58: 1033.3 | AW58: 3.45 | AX58: 321.17 | AY58: 181.03 | AZ58: 93.08 | BA58: 70.65 | BB58: 0 | BC58: 0 | BD58: 0 | BE58: 0 | BF58: 0 | BG58: 0 | BH58: 0 | BI58: 0.27 | BJ58: 0 | BK58: 0.15 | BL58: 0.01 | BM58: 0.03 | BN58: 0 | BO58: 0 | BP58: 0 | BQ58: 0.91 | BR58: 0 | BS58: 0 | BT58: 2.64 | BU58: 0.01 | BV58: 0 | BW58: 0 | BX58: 0 | BY58: 0 | BZ58: 40.34 | CC58: 2.83 | CE58: 26.12 | CF58: 13.46 | CG58: 19.79 | CH58: 687.55 | CI58: 249.84 | CJ58: 468.7 | CK58: 3.8 | CL58: 2.14 | CM58: 3.31 | CN58: 1.19 | CO58: 0.63
A59: ="-" -> - | B59: Сок в ассортименте | C59: 180 | D59: 0.9 | E59: 0.2 | F59: 18.5 | G59: 78 | H59: 0 | I59: 0 | J59: 0 | K59: 0 | L59: 17.82 | M59: 0.36 | N59: 0.36 | O59: 0 | P59: 0 | Q59: 0.9 | R59: 0.54 | S59: 10.8 | T59: 216 | U59: 12.6 | V59: 7.2 | W59: 12.6 | X59: 2.5 | Y59: 0.0 | Z59: 0.0 | AA59: 0.0 | AB59: 0.2 | AC59: 0.0 | AD59: 0.0 | AE59: 0.2 | AF59: 0.4 | AG59: 3.6 | AH59: 0.36 | AI59: 14.4 | AJ59: 18 | AK59: 25.2 | AL59: 25.2 | AM59: 3.6 | AN59: 14.4 | AO59: 3.6 | AP59: 12.6 | AQ59: 23.4 | AR59: 14.4 | AS59: 104.4 | AT59: 9 | AU59: 19.8 | AV59: 57.6 | AW59: 0 | AX59: 18 | AY59: 21.6 | AZ59: 9 | BA59: 7.2 | BB59: 0 | BC59: 0 | BD59: 0 | BE59: 0 | BF59: 0 | BG59: 0 | BH59: 0 | BI59: 0 | BJ59: 0 | BK59: 0 | BL59: 0 | BM59: 0 | BN59: 0 | BO59: 0 | BP59: 0 | BQ59: 0 | BR59: 0 | BS59: 0 | BT59: 0 | BU59: 0 | BV59: 0 | BW59: 0 | BX59: 0 | BY59: 0 | BZ59: 158.58 | CC59: 0 | CE59: 3.6 | CF59: 3.6 | CG59: 3.6 | CH59: 360 | CI59: 163.8 | CJ59: 261.9 | CK59: 0.54 | CL59: 0.54 | CM59: 0.54 | CN59: 0 | CO59: 0
A60: ="9/4" -> 9/4 | B60: Каша рисовая молочная вязкая с маслом сливочным | C60: 180 | D60: 4.7 | E60: 5.2 | F60: 36.5 | G60: 211 | H60: 3.39 | I60: 0.1 | J60: 0 | K60: 0 | L60: 7.91 | M60: 27.42 | N60: 1.13 | O60: 0 | P60: 0 | Q60: 0.07 | R60: 1.27 | S60: 211.28 | T60: 138.28 | U60: 84.4 | V60: 27.9 | W60: 113.3 | X60: 0.5 | Y60: 31.5 | Z60: 18.2 | AA60: 35.1 | AB60: 0.2 | AC60: 0.1 | AD60: 0.1 | AE60: 0.6 | AF60: 1.9 | AG60: 0.4 | AH60: 0 | AI60: 164.85 | AJ60: 129.87 | AK60: 243.96 | AL60: 102.89 | AM60: 62.84 | AN60: 95.21 | AO60: 40.7 | AP60: 145.44 | AQ60: 152.94 | AR60: 199.07 | AS60: 212.08 | AT60: 67.52 | AU60: 125.24 | AV60: 471.96 | AW60: 0 | AX60: 130.18 | AY60: 130.45 | AZ60: 114.4 | BA60: 53.61 | BB60: 0.12 | BC60: 0.05 | BD60: 0.03 | BE60: 0.07 | BF60: 0.08 | BG60: 0.35 | BH60: 0 | BI60: 1.04 | BJ60: 0 | BK60: 0.32 | BL60: 0 | BM60: 0 | BN60: 0 | BO60: 0.07 | BP60: 0.1 | BQ60: 0.92 | BR60: 0 | BS60: 0 | BT60: 0.11 | BU60: 0 | BV60: 0 | BW60: 0 | BX60: 0 | BY60: 0 | BZ60: 134.25 | CC60: 34.54 | CE60: 26.6 | CF60: 12.74 | CG60: 19.67 | CH60: 2001.43 | CI60: 924.09 | CJ60: 1462.76 | CK60: 28.03 | CL60: 12.22 | CM60: 20.13 | CN60: 4.5 | CO60: 0.45
B61: Итого за 'Ужин' | C61: =SUM(C58:C60) -> 430 | D61: =SUM(D58:D60) -> 9.4 | E61: 9.7 | F61: 78.3 | G61: 435 | H61: 4.04 | I61: 2.83 | J61: 0 | K61: 0 | L61: 27.13 | M61: 48.58 | N61: 2.56 | O61: 0 | P61: 0 | Q61: 0.97 | R61: 2.64 | S61: 469.91 | T61: 395.47 | U61: 105.4 | V61: 40.3 | W61: 156.1 | X61: 3.4 | Y61: 34.2 | Z61: 19.0 | AA61: 39.8 | AB61: 2.8 | AC61: 0.1 | AD61: 0.2 | AE61: 1.1 | AF61: 3.4 | AG61: 4.0 | AH61: 0.36 | AI61: 351.92 | AJ61: 301.94 | AK61: 556.59 | AL61: 236.87 | AM61: 126.31 | AN61: 225.59 | AO61: 81.28 | AP61: 333.98 | AQ61: 302.62 | AR61: 362.47 | AS61: 461.03 | AT61: 151.8 | AU61: 271.47 | AV61: 1562.86 | AW61: 3.45 | AX61: 469.35 | AY61: 333.08 | AZ61: 216.48 | BA61: 131.46 | BB61: 0.12 | BC61: 0.05 | BD61: 0.03 | BE61: 0.07 | BF61: 0.08 | BG61: 0.35 | BH61: 0 | BI61: 1.31 | BJ61: 0 | BK61: 0.47 | BL61: 0.01 | BM61: 0.03 | BN61: 0 | BO61: 0.07 | BP61: 0.11 | BQ61: 1.82 | BR61: 0 | BS61: 0 | BT61: 2.75 | BU61: 0.01 | BV61: 0 | BW61: 0 | BX61: 0 | BY61: 0 | BZ61: 333.17 | CB61: =$G$61/#REF!*100 ->  | CC61: 37.37 | CE61: 56.33 | CF61: 29.8 | CG61: 43.06 | CH61: 3048.99 | CI61: 1337.73 | CJ61: 2193.36 | CK61: 32.38 | CL61: 14.9 | CM61: 23.97 | CN61: 5.69 | CO61: 1.08
B62: Итого за день | C62: =C43+C47+C56+C61 -> 1640 | D62: 37.6 | E62: 45.6 | F62: 229.3 | G62: 1454 | H62: 20.11 | I62: 54.26 | J62: 0 | K62: 0 | L62: 84.63 | M62: 130.82 | N62: 13.8 | O62: 0 | P62: 0 | Q62: 2.76 | R62: 11.96 | S62: 1649.05 | T62: 2112.23 | U62: 326.2 | V62: 188.1 | W62: 632.8 | X62: 10.9 | Y62: 5506.2 | Z62: 870.8 | AA62: 291.4 | AB62: 7.4 | AC62: 0.6 | AD62: 0.6 | AE62: 7.2 | AF62: 17.4 | AG62: 37.1 | AH62: 0.36 | AI62: 1325.79 | AJ62: 1150.45 | AK62: 2757.46 | AL62: 2151.07 | AM62: 658.56 | AN62: 1202.34 | AO62: 419.14 | AP62: 1521.38 | AQ62: 1675.62 | AR62: 1684.95 | AS62: 2367.71 | AT62: 862.92 | AU62: 1197.29 | AV62: 6627.42 | AW62: 128.8 | AX62: 2164.1 | AY62: 1539.16 | AZ62: 1132.24 | BA62: 510.44 | BB62: 0.57 | BC62: 0.28 | BD62: 0.15 | BE62: 0.34 | BF62: 0.39 | BG62: 1.84 | BH62: 0.03 | BI62: 5.33 | BJ62: 0.02 | BK62: 1.92 | BL62: 0.08 | BM62: 0.06 | BN62: 0 | BO62: 0.31 | BP62: 0.5 | BQ62: 6.56 | BR62: 0.01 | BS62: 0 | BT62: 7.23 | BU62: 0.09 | BV62: 0.08 | BW62: 0 | BX62: 0 | BY62: 0 | BZ62: 1420.46 | CC62: 240.77 | CE62: 179.98 | CF62: 103.22 | CG62: 141.6 | CH62: 10777.07 | CI62: 5083.33 | CJ62: 7930.2 | CK62: 210.35 | CL62: 113.16 | CM62: 162.09 | CN62: 33.77 | CO62: 3.24
B64: 3 день
B65: Завтрак
A66: ="-" -> - | B66: Батон | C66: 30 | D66: 2.3 | E66: 1.5 | F66: 11.2 | G66: 66 | H66: 0.15 | I66: 0 | J66: 0 | K66: 0 | L66: 0.99 | M66: 9.24 | N66: 0.96 | O66: 0 | P66: 0 | Q66: 0.09 | R66: 0.48 | S66: 128.7 | T66: 39.3 | U66: 6.6 | V66: 9.9 | W66: 25.5 | X66: 0.6 | Y66: 0.0 | Z66: 0.0 | AA66: 0.0 | AB66: 0.5 | AC66: 0.1 | AD66: 0.0 | AE66: 0.5 | AF66: 0.9 | AG66: 0.0 | AH66: 0 | AI66: 111.6 | AJ66: 115.8 | AK66: 177.3 | AL66: 59.7 | AM66: 35.1 | AN66: 70.2 | AO66: 26.4 | AP66: 126 | AQ66: 78.3 | AR66: 108.9 | AS66: 90.3 | AT66: 48.3 | AU66: 84 | AV66: 697.5 | AW66: 0 | AX66: 227.1 | AY66: 99.3 | AZ66: 66.6 | BA66: 51.9 | BB66: 0 | BC66: 0 | BD66: 0 | BE66: 0 | BF66: 0 | BG66: 0.01 | BH66: 0 | BI66: 0.1 | BJ66: 0 | BK66: 0.05 | BL66: 0 | BM66: 0 | BN66: 0 | BO66: 0 | BP66: 0 | BQ66: 0.35 | BR66: 0 | BS66: 0 | BT66: 0.26 | BU66: 0.01 | BV66: 0 | BW66: 0 | BX66: 0 | BY66: 0 | BZ66: 10.23 | CC66: 0 | CE66: 0 | CF66: 0 | CG66: 0 | CH66: 570 | CI66: 219.6 | CJ66: 394.8 | CK66: 4.56 | CL66: 4.56 | CM66: 4.56 | CN66: 0 | CO66: 0
A67: ="-" -> - | B67: Масло сливочное | C67: 5 | D67: 0.0 | E67: 3.6 | F67: 0.1 | G67: 33 | H67: 2.36 | I67: 0.11 | J67: 0 | K67: 0 | L67: 0.07 | M67: 0 | N67: 0 | O67: 0 | P67: 0 | Q67: 0 | R67: 0.07 | S67: 0.75 | T67: 1.5 | U67: 1.2 | V67: 0.0 | W67: 1.5 | X67: 0.0 | Y67: 20.0 | Z67: 15.0 | AA67: 22.5 | AB67: 0.1 | AC67: 0.0 | AD67: 0.0 | AE67: 0.0 | AF67: 0.0 | AG67: 0.0 | AH67: 0 | AI67: 2.1 | AJ67: 2.05 | AK67: 3.8 | AL67: 2.25 | AM67: 0.85 | AN67: 2.35 | AO67: 2.15 | AP67: 2.1 | AQ67: 1.8 | AR67: 1.3 | AS67: 2.85 | AT67: 1.75 | AU67: 1.2 | AV67: 7.1 | AW67: 0 | AX67: 2.4 | AY67: 2.7 | AZ67: 2.1 | BA67: 0.5 | BB67: 0.13 | BC67: 0.06 | BD67: 0.03 | BE67: 0.08 | BF67: 0.09 | BG67: 0.4 | BH67: 0 | BI67: 1.1 | BJ67: 0 | BK67: 0.34 | BL67: 0 | BM67: 0 | BN67: 0 | BO67: 0.08 | BP67: 0.12 | BQ67: 0.9 | BR67: 0 | BS67: 0 | BT67: 0.05 | BU67: 0 | BV67: 0 | BW67: 0 | BX67: 0 | BY67: 0 | BZ67: 1.25 | CC67: 22.5 | CE67: 0.2 | CF67: 0.05 | CG67: 0.13 | CH67: 10 | CI67: 4.1 | CJ67: 7.05 | CK67: 0.86 | CL67: 0.44 | CM67: 0.65 | CN67: 0 | CO67: 0
A68: ="31/10" -> 31/10 | B68: Чай с молоком (вариант 3) | C68: 180 | D68: 1.5 | E68: 1.2 | F68: 6.7 | G68: 41 | H68: 0.77 | I68: 0 | J68: 0 | K68: 0 | L68: 6.55 | M68: 0 | N68: 0.09 | O68: 0 | P68: 0 | Q68: 0.05 | R68: 0.37 | S68: 22.32 | T68: 65.18 | U68: 52.5 | V68: 6.0 | W68: 37.7 | X68: 0.1 | Y68: 9.0 | Z68: 4.1 | AA68: 9.9 | AB68: 0.0 | AC68: 0.0 | AD68: 0.1 | AE68: 0.0 | AF68: 0.4 | AG68: 0.2 | AH68: 0 | AI68: 0 | AJ68: 0 | AK68: 0 | AL68: 0 | AM68: 0 | AN68: 0 | AO68: 0 | AP68: 0 | AQ68: 0 | AR68: 0 | AS68: 0 | AT68: 0 | AU68: 0 | AV68: 0 | AW68: 0 | AX68: 0 | AY68: 0 | AZ68: 0 | BA68: 0 | BB68: 0 | BC68: 0 | BD68: 0 | BE68: 0 | BF68: 0 | BG68: 0 | BH68: 0 | BI68: 0 | BJ68: 0 | BK68: 0 | BL68: 0 | BM68: 0 | BN68: 0 | BO68: 0 | BP68: 0 | BQ68: 0 | BR68: 0 | BS68: 0 | BT68: 0 | BU68: 0 | BV68: 0 | BW68: 0 | BX68: 0 | BY68: 0 | BZ68: 175.13 | CC68: 9.68 | CE68: 6.84 | CF68: 3.69 | CG68: 5.26 | CH68: 567 | CI68: 214.2 | CJ68: 390.6 | CK68: 35.65 | CL68: 19 | CM68: 27.32 | CN68: 4.5 | CO68: 0
A69: ="5/4" -> 5/4 | B69: Каша манная молочная с маслом сливочным | C69: 200 | D69: 5.3 | E69: 4.6 | F69: 29.5 | G69: 179 | H69: 3.31 | I69: 0.09 | J69: 0 | K69: 0 | L69: 8.55 | M69: 19.95 | N69: 1.05 | O69: 0 | P69: 0 | Q69: 0.08 | R69: 1.28 | S69: 235.16 | T69: 140.62 | U69: 92.7 | V69: 14.9 | W69: 87.7 | X69: 0.4 | Y69: 19.2 | Z69: 16.0 | AA69: 35.6 | AB69: 0.5 | AC69: 0.1 | AD69: 0.1 | AE69: 0.4 | AF69: 1.6 | AG69: 0.4 | AH69: 0 | AI69: 148.97 | AJ69: 136.9 | AK69: 246.51 | AL69: 78.4 | AM69: 47.26 | AN69: 96.52 | AO69: 34.7 | AP69: 164.01 | AQ69: 103.63 | AR69: 142.35 | AS69: 116.45 | AT69: 64.48 | AU69: 110.69 | AV69: 967.9 | AW69: 0 | AX69: 314.64 | AY69: 161.45 | AZ69: 82.8 | BA69: 66.55 | BB69: 0.09 | BC69: 0.04 | BD69: 0.02 | BE69: 0.05 | BF69: 0.06 | BG69: 0.28 | BH69: 0 | BI69: 0.78 | BJ69: 0 | BK69: 0.24 | BL69: 0 | BM69: 0 | BN69: 0 | BO69: 0.05 | BP69: 0.08 | BQ69: 0.63 | BR69: 0 | BS69: 0 | BT69: 0.04 | BU69: 0 | BV69: 0 | BW69: 0 | BX69: 0 | BY69: 0 | BZ69: 180.69 | CC69: 21.87 | CE69: 33.38 | CF69: 14.46 | CG69: 23.92 | CH69: 1875.37 | CI69: 844.23 | CJ69: 1359.8 | CK69: 43.77 | CL69: 22.87 | CM69: 33.32 | CN69: 5 | CO69: 0.5
B70: Итого за 'Завтрак' | C70: =SUM(C66:C69) -> 415 | D70: =SUM(D66:D69) -> 9.1 | E70: 10.9 | F70: 47.5 | G70: 320 | H70: 6.59 | I70: 0.2 | J70: 0 | K70: 0 | L70: 16.16 | M70: 29.19 | N70: 2.1 | O70: 0 | P70: 0 | Q70: 0.22 | R70: 2.2 | S70: 386.93 | T70: 246.6 | U70: 153.0 | V70: 30.7 | W70: 152.3 | X70: 1.1 | Y70: 48.2 | Z70: 35.1 | AA70: 68.0 | AB70: 1.1 | AC70: 0.1 | AD70: 0.2 | AE70: 0.9 | AF70: 2.9 | AG70: 0.7 | AH70: 0 | AI70: 262.67 | AJ70: 254.75 | AK70: 427.61 | AL70: 140.35 | AM70: 83.21 | AN70: 169.07 | AO70: 63.25 | AP70: 292.11 | AQ70: 183.73 | AR70: 252.55 | AS70: 209.6 | AT70: 114.53 | AU70: 195.89 | AV70: 1672.5 | AW70: 0 | AX70: 544.14 | AY70: 263.45 | AZ70: 151.5 | BA70: 118.95 | BB70: 0.23 | BC70: 0.1 | BD70: 0.06 | BE70: 0.13 | BF70: 0.15 | BG70: 0.68 | BH70: 0 | BI70: 1.98 | BJ70: 0 | BK70: 0.63 | BL70: 0 | BM70: 0 | BN70: 0 | BO70: 0.13 | BP70: 0.2 | BQ70: 1.89 | BR70: 0 | BS70: 0 | BT70: 0.35 | BU70: 0.01 | BV70: 0 | BW70: 0 | BX70: 0 | BY70: 0 | BZ70: 367.3 | CB70: =$G$70/#REF!*100 ->  | CC70: 54.04 | CE70: 40.41 | CF70: 18.19 | CG70: 29.3 | CH70: 3022.37 | CI70: 1282.13 | CJ70: 2152.25 | CK70: 84.83 | CL70: 46.86 | CM70: 65.85 | CN70: 9.5 | CO70: 0.5
B71: 10:00
A72: ="-" -> - | B72: Фрукты (яблоки) | C72: 100 | D72: 0.4 | E72: 0.4 | F72: 11.6 | G72: 50 | H72: 0.1 | I72: 0 | J72: 0 | K72: 0 | L72: 10 | M72: 0.8 | N72: 0.8 | O72: 0 | P72: 0 | Q72: 0.8 | R72: 0.5 | S72: 26 | T72: 278 | U72: 16.0 | V72: 9.0 | W72: 11.0 | X72: 2.2 | Y72: 0.0 | Z72: 30.0 | AA72: 5.0 | AB72: 0.2 | AC72: 0.0 | AD72: 0.0 | AE72: 0.3 | AF72: 0.4 | AG72: 10.0 | AH72: 0 | AI72: 12 | AJ72: 13 | AK72: 19 | AL72: 18 | AM72: 3 | AN72: 11 | AO72: 3 | AP72: 9 | AQ72: 17 | AR72: 10 | AS72: 78 | AT72: 7 | AU72: 14 | AV72: 42 | AW72: 0 | AX72: 13 | AY72: 16 | AZ72: 6 | BA72: 5 | BB72: 0 | BC72: 0 | BD72: 0 | BE72: 0 | BF72: 0 | BG72: 0 | BH72: 0 | BI72: 0 | BJ72: 0 | BK72: 0 | BL72: 0 | BM72: 0 | BN72: 0 | BO72: 0 | BP72: 0 | BQ72: 0 | BR72: 0 | BS72: 0 | BT72: 0 | BU72: 0 | BV72: 0 | BW72: 0 | BX72: 0 | BY72: 0 | BZ72: 86.3 | CC72: 5 | CE72: 2 | CF72: 2 | CG72: 2 | CH72: 150 | CI72: 150 | CJ72: 150 | CK72: 0 | CL72: 0 | CM72: 0 | CN72: 0 | CO72: 0
B73: Итого за '10:00' | C73: =SUM(C72) -> 100 | D73: =SUM(D72) -> 0.4 | E73: 0.4 | F73: 11.6 | G73: 50 | H73: 0.1 | I73: 0 | J73: 0 | K73: 0 | L73: 10 | M73: 0.8 | N73: 0.8 | O73: 0 | P73: 0 | Q73: 0.8 | R73: 0.5 | S73: 26 | T73: 278 | U73: 16.0 | V73: 9.0 | W73: 11.0 | X73: 2.2 | Y73: 0.0 | Z73: 30.0 | AA73: 5.0 | AB73: 0.2 | AC73: 0.0 | AD73: 0.0 | AE73: 0.3 | AF73: 0.4 | AG73: 10.0 | AH73: 0 | AI73: 12 | AJ73: 13 | AK73: 19 | AL73: 18 | AM73: 3 | AN73: 11 | AO73: 3 | AP73: 9 | AQ73: 17 | AR73: 10 | AS73: 78 | AT73: 7 | AU73: 14 | AV73: 42 | AW73: 0 | AX73: 13 | AY73: 16 | AZ73: 6 | BA73: 5 | BB73: 0 | BC73: 0 | BD73: 0 | BE73: 0 | BF73: 0 | BG73: 0 | BH73: 0 | BI73: 0 | BJ73: 0 | BK73: 0 | BL73: 0 | BM73: 0 | BN73: =SUM(BN72) -> 0 | BO73: 0 | BP73: 0 | BQ73: 0 | BR73: 0 | BS73: 0 | BT73: 0 | BU73: 0 | BV73: 0 | BW73: 0 | BX73: 0 | BY73: 0 | BZ73: 86.3 | CA73: 0 | CB73: 0 | CC73: 5 | CD73: 0 | CE73: 2 | CF73: 2 | CG73: 2 | CH73: 150 | CI73: 150 | CJ73: 150 | CK73: 0 | CL73: 0 | CM73: 0 | CN73: 0 | CO73: 0
B74: Обед
A75: ="-" -> - | B75: Хлеб пшеничный | C75: 20 | D75: 1.2 | E75: 0.1 | F75: 7.4 | G75: 36 | H75: 0 | I75: 0 | J75: 0 | K75: 0 | L75: 0.22 | M75: 7.12 | N75: 0.04 | O75: 0 | P75: 0 | Q75: 0 | R75: 0.36 | S75: 0 | T75: 0 | U75: 0.0 | V75: 0.0 | W75: 0.0 | X75: 0.0 | Y75: 0.0 | Z75: 0.0 | AA75: 0.0 | AB75: 0.0 | AC75: 0.0 | AD75: 0.0 | AE75: 0.0 | AF75: 0.0 | AG75: 0.0 | AH75: 0 | AI75: 63.86 | AJ75: 66.47 | AK75: 101.79 | AL75: 33.76 | AM75: 20.01 | AN75: 40.02 | AO75: 15.14 | AP75: 72.38 | AQ75: 44.89 | AR75: 62.64 | AS75: 51.68 | AT75: 27.14 | AU75: 48.02 | AV75: 401.59 | AW75: 0 | AX75: 130.85 | AY75: 56.9 | AZ75: 37.76 | BA75: 29.93 | BB75: 0 | BC75: 0 | BD75: 0 | BE75: 0 | BF75: 0 | BG75: 0 | BH75: 0 | BI75: 0.02 | BJ75: 0 | BK75: 0 | BL75: 0 | BM75: 0 | BN75: 0 | BO75: 0 | BP75: 0 | BQ75: 0.01 | BR75: 0 | BS75: 0 | BT75: 0.06 | BU75: 0 | BV75: 0 | BW75: 0 | BX75: 0 | BY75: 0 | BZ75: 7.82 | CC75: 0 | CE75: 0 | CF75: 0 | CG75: 0 | CH75: 380 | CI75: 146.4 | CJ75: 263.2 | CK75: 3.04 | CL75: 3.04 | CM75: 3.04 | CN75: 0 | CO75: 0
A76: ="-" -> - | B76: Хлеб ржаной | C76: 30 | D76: 1.8 | E76: 0.4 | F76: 12.5 | G76: 57 | H76: 0.06 | I76: 0 | J76: 0 | K76: 0 | L76: 0.36 | M76: 9.66 | N76: 2.49 | O76: 0 | P76: 0 | Q76: 0.3 | R76: 0.75 | S76: 183 | T76: 73.5 | U76: 10.5 | V76: 14.1 | W76: 47.4 | X76: 1.2 | Y76: 0.0 | Z76: 1.5 | AA76: 0.3 | AB76: 0.4 | AC76: 0.1 | AD76: 0.0 | AE76: 0.2 | AF76: 0.6 | AG76: 0.0 | AH76: 0 | AI76: 96.6 | AJ76: 74.4 | AK76: 128.1 | AL76: 66.9 | AM76: 27.9 | AN76: 59.4 | AO76: 24 | AP76: 111.3 | AQ76: 89.1 | AR76: 87.3 | AS76: 139.2 | AT76: 37.2 | AU76: 93 | AV76: 467.7 | AW76: 0 | AX76: 157.8 | AY76: 87.3 | AZ76: 54 | BA76: 39 | BB76: 0 | BC76: 0 | BD76: 0 | BE76: 0 | BF76: 0 | BG76: 0 | BH76: 0 | BI76: 0.04 | BJ76: 0 | BK76: 0 | BL76: 0.01 | BM76: 0 | BN76: 0 | BO76: 0 | BP76: 0 | BQ76: 0.03 | BR76: 0 | BS76: 0 | BT76: 0.14 | BU76: 0.02 | BV76: 0 | BW76: 0 | BX76: 0 | BY76: 0 | BZ76: 14.1 | CC76: 0.25 | CE76: 4 | CF76: 4 | CG76: 4 | CH76: 760 | CI76: 292.8 | CJ76: 526.4 | CK76: 7.6 | CL76: 6.32 | CM76: 6.96 | CN76: 0 | CO76: 0
A77: ="6/10" -> 6/10 | B77: Компот из сухофруктов | C77: 180 | D77: 0.9 | E77: 0.1 | F77: 20.9 | G77: 79 | H77: 0.02 | I77: 0 | J77: 0 | K77: 0 | L77: 17.27 | M77: 0.51 | N77: 3.08 | O77: 0 | P77: 0 | Q77: 0.27 | R77: 0.73 | S77: 3.12 | T77: 306.24 | U77: 28.2 | V77: 18.0 | W77: 24.4 | X77: 0.6 | Y77: 0.0 | Z77: 567.0 | AA77: 104.9 | AB77: 1.0 | AC77: 0.0 | AD77: 0.1 | AE77: 0.5 | AF77: 0.7 | AG77: 0.4 | AH77: 0 | AI77: 0.01 | AJ77: 0.01 | AK77: 0.01 | AL77: 0.02 | AM77: 0 | AN77: 0.01 | AO77: 0 | AP77: 0.01 | AQ77: 0.01 | AR77: 0.01 | AS77: 0.05 | AT77: 0 | AU77: 0.01 | AV77: 0.02 | AW77: 0 | AX77: 0.01 | AY77: 0.01 | AZ77: 0.01 | BA77: 0 | BB77: 0 | BC77: 0 | BD77: 0 | BE77: 0 | BF77: 0 | BG77: 0 | BH77: 0 | BI77: 0 | BJ77: 0 | BK77: 0 | BL77: 0 | BM77: 0 | BN77: 0 | BO77: 0 | BP77: 0 | BQ77: 0.01 | BR77: 0 | BS77: 0 | BT77: 0.01 | BU77: 0 | BV77: 0 | BW77: 0 | BX77: 0 | BY77: 0 | BZ77: 192.61 | CC77: 94.5 | CE77: 3.95 | CF77: 3.95 | CG77: 3.95 | CH77: 454.5 | CI77: 172.98 | CJ77: 313.74 | CK77: 41.94 | CL77: 24.93 | CM77: 33.44 | CN77: 9 | CO77: 0
A78: ="16/2" -> 16/2 | B78: Суп картофельный с бобовыми на говяжьем бульоне | C78: 180 | D78: 3.2 | E78: 6.8 | F78: 16.6 | G78: 137 | H78: 1.64 | I78: 1.17 | J78: 0 | K78: 0 | L78: 2.91 | M78: 11.29 | N78: 2.38 | O78: 0 | P78: 0 | Q78: 0.11 | R78: 2.02 | S78: 422.16 | T78: 353.72 | U78: 27.5 | V78: 26.3 | W78: 71.8 | X78: 1.4 | Y78: 0.0 | Z78: 785.4 | AA78: 145.4 | AB78: 1.0 | AC78: 0.2 | AD78: 0.1 | AE78: 0.7 | AF78: 1.7 | AG78: 3.3 | AH78: 0 | AI78: 154.39 | AJ78: 170.41 | AK78: 253.6 | AL78: 242.59 | AM78: 33.09 | AN78: 134.91 | AO78: 44.31 | AP78: 159.19 | AQ78: 152.27 | AR78: 287.4 | AS78: 348.5 | AT78: 70.86 | AU78: 150.58 | AV78: 541.98 | AW78: 0 | AX78: 105.84 | AY78: 129.97 | AZ78: 109.23 | BA78: 40.71 | BB78: 0 | BC78: 0 | BD78: 0 | BE78: 0 | BF78: 0 | BG78: 0 | BH78: 0 | BI78: 0.16 | BJ78: 0 | BK78: 0.08 | BL78: 0.01 | BM78: 0.01 | BN78: 0 | BO78: 0 | BP78: 0 | BQ78: 0.53 | BR78: 0 | BS78: 0 | BT78: 1.2 | BU78: 0.02 | BV78: 0 | BW78: 0 | BX78: 0 | BY78: 0 | BZ78: 165.24 | CC78: 130.9 | CE78: 48.76 | CF78: 27.16 | CG78: 37.96 | CH78: 500.4 | CI78: 262.36 | CJ78: 381.38 | CK78: 36.16 | CL78: 19.04 | CM78: 27.6 | CN78: 0 | CO78: 1.08
A79: ="46/3" -> 46/3 | B79: Макаронные изделия отварные с маслом сливочным | C79: 150 | D79: 5.3 | E79: 3.0 | F79: 34.1 | G79: 184 | H79: 1.87 | I79: 0.08 | J79: 0 | K79: 0 | L79: 0.97 | M79: 31.42 | N79: 1.72 | O79: 0 | P79: 0 | Q79: 0 | R79: 0.68 | S79: 147.26 | T79: 56.22 | U79: 10.5 | V79: 7.2 | W79: 39.8 | X79: 0.7 | Y79: 9.0 | Z79: 9.0 | AA79: 16.9 | AB79: 0.8 | AC79: 0.1 | AD79: 0.0 | AE79: 0.5 | AF79: 1.5 | AG79: 0.0 | AH79: 0 | AI79: 229.67 | AJ79: 209.98 | AK79: 393.39 | AL79: 122.87 | AM79: 74.91 | AN79: 152.19 | AO79: 49.94 | AP79: 244.06 | AQ79: 161.39 | AR79: 194.59 | AS79: 166.92 | AT79: 98.07 | AU79: 170.55 | AV79: 1497.86 | AW79: 0 | AX79: 471.98 | AY79: 244.48 | AZ79: 122.77 | BA79: 97.19 | BB79: 0.09 | BC79: 0.04 | BD79: 0.02 | BE79: 0.05 | BF79: 0.06 | BG79: 0.26 | BH79: 0 | BI79: 0.81 | BJ79: 0 | BK79: 0.23 | BL79: 0 | BM79: 0 | BN79: 0 | BO79: 0.05 | BP79: 0.08 | BQ79: 0.6 | BR79: 0 | BS79: 0 | BT79: 0.24 | BU79: 0.01 | BV79: 0 | BW79: 0 | BX79: 0 | BY79: 0 | BZ79: 313.57 | CC79: 10.5 | CE79: 15.92 | CF79: 8.3 | CG79: 12.11 | CH79: 369.83 | CI79: 365.4 | CJ79: 367.62 | CK79: 9.36 | CL79: 4.76 | CM79: 7.06 | CN79: 0 | CO79: 0.45
A80: ="1/27" -> 1/27 | B80: Котлеты "Крестьянские" из мясо говядины и птиц | C80: 70 | D80: 11.1 | E80: 12.9 | F80: 9.6 | G80: 198 | H80: 4.29 | I80: 24.43 | J80: 0 | K80: 0 | L80: 0.63 | M80: 7.88 | N80: 1.09 | O80: 0 | P80: 0 | Q80: 0.08 | R80: 1.24 | S80: 203.16 | T80: 164.2 | U80: 12.6 | V80: 16.7 | W80: 113.8 | X80: 1.6 | Y80: 25.0 | Z80: 3.5 | AA80: 25.8 | AB80: 2.3 | AC80: 0.1 | AD80: 0.1 | AE80: 3.5 | AF80: 6.7 | AG80: 0.4 | AH80: 0 | AI80: 567.21 | AJ80: 450.68 | AK80: 872.53 | AL80: 1125 | AM80: 272.04 | AN80: 495.14 | AO80: 156.72 | AP80: 475.02 | AQ80: 663.01 | AR80: 689.9 | AS80: 979.84 | AT80: 338.15 | AU80: 710.27 | AV80: 1809.83 | AW80: 114.5 | AX80: 535.04 | AY80: 502.3 | AZ80: 388.01 | BA80: 152.33 | BB80: 0 | BC80: 0 | BD80: 0 | BE80: 0 | BF80: 0 | BG80: 0 | BH80: 0 | BI80: 0.27 | BJ80: 0 | BK80: 0.17 | BL80: 0.01 | BM80: 0.03 | BN80: 0 | BO80: 0 | BP80: 0 | BQ80: 0.99 | BR80: 0 | BS80: 0 | BT80: 2.47 | BU80: 0 | BV80: 0 | BW80: 0 | BX80: 0 | BY80: 0 | BZ80: 56.16 | CC80: 25.57 | CE80: 18.26 | CF80: 9.65 | CG80: 13.96 | CH80: 2109.43 | CI80: 1279.73 | CJ80: 1694.58 | CK80: 14.61 | CL80: 10.31 | CM80: 12.46 | CN80: 0 | CO80: 0.35
B81: Итого за 'Обед' | C81: =SUM(C75:C80) -> 630 | D81: =SUM(D75:D80) -> 23.6 | E81: 23.3 | F81: 101.1 | G81: 691 | H81: 7.88 | I81: 25.68 | J81: 0 | K81: 0 | L81: 22.36 | M81: 67.88 | N81: 10.8 | O81: 0 | P81: 0 | Q81: 0.76 | R81: 5.78 | S81: 958.7 | T81: 953.88 | U81: 89.2 | V81: 82.2 | W81: 297.3 | X81: 5.5 | Y81: 34.0 | Z81: 1366.4 | AA81: 293.3 | AB81: 5.5 | AC81: 0.4 | AD81: 0.3 | AE81: 5.4 | AF81: 11.2 | AG81: 4.2 | AH81: 0 | AI81: 1111.74 | AJ81: 971.95 | AK81: 1749.41 | AL81: 1591.14 | AM81: 427.95 | AN81: 881.67 | AO81: 290.11 | AP81: 1061.96 | AQ81: 1110.67 | AR81: 1321.85 | AS81: 1686.2 | AT81: 571.43 | AU81: 1172.43 | AV81: 4718.98 | AW81: 114.5 | AX81: 1401.53 | AY81: 1020.96 | AZ81: 711.77 | BA81: 359.16 | BB81: 0.09 | BC81: 0.04 | BD81: 0.02 | BE81: 0.05 | BF81: 0.06 | BG81: 0.26 | BH81: 0 | BI81: 1.3 | BJ81: 0 | BK81: 0.49 | BL81: 0.03 | BM81: 0.04 | BN81: 0 | BO81: 0.05 | BP81: 0.09 | BQ81: 2.17 | BR81: 0 | BS81: 0 | BT81: 4.12 | BU81: 0.05 | BV81: 0 | BW81: 0 | BX81: 0 | BY81: 0 | BZ81: 749.5 | CB81: =$G$81/#REF!*100 ->  | CC81: 261.71 | CE81: 90.88 | CF81: 53.06 | CG81: 71.97 | CH81: 4574.15 | CI81: 2519.68 | CJ81: 3546.91 | CK81: 112.71 | CL81: 68.4 | CM81: 90.56 | CN81: 9 | CO81: 1.88
B82: Уплотненный полдник
A83: ="27/10" -> 27/10 | B83: Чай полусладкий | C83: 180 | D83: 0.2 | E83: 0.0 | F83: 4.5 | G83: 18 | H83: 0 | I83: 0 | J83: 0 | K83: 0 | L83: 4.44 | M83: 0 | N83: 0.09 | O83: 0 | P83: 0 | Q83: 0 | R83: 0.05 | S83: 0.04 | T83: 0.13 | U83: 0.1 | V83: 0.0 | W83: 0.0 | X83: 0.0 | Y83: 0.0 | Z83: 0.0 | AA83: 0.0 | AB83: 0.0 | AC83: 0.0 | AD83: 0.0 | AE83: 0.0 | AF83: 0.0 | AG83: 0.0 | AH83: 0 | AI83: 0 | AJ83: 0 | AK83: 0 | AL83: 0 | AM83: 0 | AN83: 0 | AO83: 0 | AP83: 0 | AQ83: 0 | AR83: 0 | AS83: 0 | AT83: 0 | AU83: 0 | AV83: 0 | AW83: 0 | AX83: 0 | AY83: 0 | AZ83: 0 | BA83: 0 | BB83: 0 | BC83: 0 | BD83: 0 | BE83: 0 | BF83: 0 | BG83: 0 | BH83: 0 | BI83: 0 | BJ83: 0 | BK83: 0 | BL83: 0 | BM83: 0 | BN83: 0 | BO83: 0 | BP83: 0 | BQ83: 0 | BR83: 0 | BS83: 0 | BT83: 0 | BU83: 0 | BV83: 0 | BW83: 0 | BX83: 0 | BY83: 0 | BZ83: 180.08 | CC83: 0 | CE83: 3.69 | CF83: 3.69 | CG83: 3.69 | CH83: 398.25 | CI83: 156.6 | CJ83: 277.43 | CK83: 39.61 | CL83: 23.41 | CM83: 31.51 | CN83: 4.5 | CO83: 0
A84: ="-" -> - | B84: Хлеб ржаной | C84: 30 | D84: 1.8 | E84: 0.4 | F84: 12.5 | G84: 57 | H84: 0.06 | I84: 0 | J84: 0 | K84: 0 | L84: 0.36 | M84: 9.66 | N84: 2.49 | O84: 0 | P84: 0 | Q84: 0.3 | R84: 0.75 | S84: 183 | T84: 73.5 | U84: 10.5 | V84: 14.1 | W84: 47.4 | X84: 1.2 | Y84: 0.0 | Z84: 1.5 | AA84: 0.3 | AB84: 0.4 | AC84: 0.1 | AD84: 0.0 | AE84: 0.2 | AF84: 0.6 | AG84: 0.0 | AH84: 0 | AI84: 96.6 | AJ84: 74.4 | AK84: 128.1 | AL84: 66.9 | AM84: 27.9 | AN84: 59.4 | AO84: 24 | AP84: 111.3 | AQ84: 89.1 | AR84: 87.3 | AS84: 139.2 | AT84: 37.2 | AU84: 93 | AV84: 467.7 | AW84: 0 | AX84: 157.8 | AY84: 87.3 | AZ84: 54 | BA84: 39 | BB84: 0 | BC84: 0 | BD84: 0 | BE84: 0 | BF84: 0 | BG84: 0 | BH84: 0 | BI84: 0.04 | BJ84: 0 | BK84: 0 | BL84: 0.01 | BM84: 0 | BN84: 0 | BO84: 0 | BP84: 0 | BQ84: 0.03 | BR84: 0 | BS84: 0 | BT84: 0.14 | BU84: 0.02 | BV84: 0 | BW84: 0 | BX84: 0 | BY84: 0 | BZ84: 14.1 | CC84: 0.25 | CE84: 4 | CF84: 4 | CG84: 4 | CH84: 760 | CI84: 292.8 | CJ84: 526.4 | CK84: 7.6 | CL84: 6.32 | CM84: 6.96 | CN84: 0 | CO84: 0
A85: ="8/5" -> 8/5 | B85: Запеканка (сырники) из творога | C85: 130 | D85: 22.0 | E85: 12.5 | F85: 17.5 | G85: 272 | H85: 6.79 | I85: 0.85 | J85: 0 | K85: 0 | L85: 11.67 | M85: 5.5 | N85: 0.29 | O85: 0 | P85: 0 | Q85: 1.46 | R85: 1.31 | S85: 51.64 | T85: 139.94 | U85: 182.9 | V85: 26.9 | W85: 239.6 | X85: 0.7 | Y85: 71.6 | Z85: 36.0 | AA85: 82.1 | AB85: 1.0 | AC85: 0.1 | AD85: 0.3 | AE85: 0.5 | AF85: 5.1 | AG85: 0.3 | AH85: 0 | AI85: 1055.17 | AJ85: 868.91 | AK85: 1615.96 | AL85: 1251.67 | AM85: 482.41 | AN85: 814.03 | AO85: 265.41 | AP85: 961.18 | AQ85: 90.85 | AR85: 103.36 | AS85: 138.25 | AT85: 559.27 | AU85: 74.2 | AV85: 426.22 | AW85: 0.69 | AX85: 124.27 | AY85: 110.17 | AZ85: 1056.63 | BA85: 116.71 | BB85: 0 | BC85: 0 | BD85: 0 | BE85: 0 | BF85: 0 | BG85: 0 | BH85: 0 | BI85: 0.08 | BJ85: 0 | BK85: 0.05 | BL85: 0 | BM85: 0.01 | BN85: 0 | BO85: 0 | BP85: 0 | BQ85: 0.29 | BR85: 0 | BS85: 0 | BT85: 0.73 | BU85: 0 | BV85: 0 | BW85: 0 | BX85: 0 | BY85: 0 | BZ85: 95.95 | CC85: 77.64 | CE85: 10.63 | CF85: 9.56 | CG85: 10.1 | CH85: 1004.09 | CI85: 721.58 | CJ85: 862.84 | CK85: 22.06 | CL85: 16.19 | CM85: 19.12 | CN85: 5.2 | CO85: 0
B86: Итого за 'Ужин' | C86: =SUM(C83:C85) -> 340 | D86: =SUM(D83:D85) -> 24.0 | E86: 12.9 | F86: 34.5 | G86: 347 | H86: 6.85 | I86: 0.85 | J86: 0 | K86: 0 | L86: 16.47 | M86: 15.16 | N86: 2.87 | O86: 0 | P86: 0 | Q86: 1.76 | R86: 2.11 | S86: 234.68 | T86: 213.57 | U86: 193.5 | V86: 41.0 | W86: 287.0 | X86: 1.8 | Y86: 71.6 | Z86: 37.5 | AA86: 82.4 | AB86: 1.4 | AC86: 0.1 | AD86: 0.3 | AE86: 0.7 | AF86: 5.7 | AG86: 0.3 | AH86: 0 | AI86: 1055.17 | AJ86: 868.91 | AK86: 1615.96 | AL86: 1251.67 | AM86: 482.41 | AN86: 814.03 | AO86: 265.41 | AP86: 961.18 | AQ86: 90.85 | AR86: 103.36 | AS86: 138.25 | AT86: 559.27 | AU86: 74.2 | AV86: 426.22 | AW86: 0.69 | AX86: 124.27 | AY86: 110.17 | AZ86: 1056.63 | BA86: 116.71 | BB86: 0 | BC86: 0 | BD86: 0 | BE86: 0 | BF86: 0 | BG86: 0 | BH86: 0 | BI86: 0.08 | BJ86: 0 | BK86: 0.05 | BL86: 0 | BM86: 0.01 | BN86: 0 | BO86: 0 | BP86: 0 | BQ86: 0.29 | BR86: 0 | BS86: 0 | BT86: 0.73 | BU86: 0 | BV86: 0 | BW86: 0 | BX86: 0 | BY86: 0 | BZ86: 276.03 | CB86: =$G$86/#REF!*100 ->  | CC86: 77.64 | CE86: 14.32 | CF86: 13.25 | CG86: 13.78 | CH86: 1402.34 | CI86: 878.18 | CJ86: 1140.26 | CK86: 61.67 | CL86: 39.59 | CM86: 50.63 | CN86: 9.7 | CO86: 0
B87: Итого за день | C87: =C70+C73+C81+C86 -> 1485 | D87: 57.0 | E87: 47.4 | F87: 194.6 | G87: 1409 | H87: 21.42 | I87: 26.73 | J87: 0 | K87: 0 | L87: 64.99 | M87: 113.03 | N87: 16.57 | O87: 0 | P87: 0 | Q87: 3.54 | R87: 10.59 | S87: 1606.31 | T87: 1692.05 | U87: 451.8 | V87: 163.0 | W87: 747.7 | X87: 10.6 | Y87: 153.8 | Z87: 1468.9 | AA87: 448.6 | AB87: 8.2 | AC87: 0.6 | AD87: 0.8 | AE87: 7.3 | AF87: 20.2 | AG87: 15.1 | AH87: 0 | AI87: 2441.58 | AJ87: 2108.61 | AK87: 3811.98 | AL87: 3001.15 | AM87: 996.57 | AN87: 1875.77 | AO87: 621.78 | AP87: 2324.24 | AQ87: 1402.24 | AR87: 1687.76 | AS87: 2112.04 | AT87: 1252.23 | AU87: 1456.53 | AV87: 6859.71 | AW87: 115.19 | AX87: 2082.93 | AY87: 1410.59 | AZ87: 1925.89 | BA87: 599.82 | BB87: 0.32 | BC87: 0.15 | BD87: 0.08 | BE87: 0.18 | BF87: 0.21 | BG87: 0.95 | BH87: 0 | BI87: 3.36 | BJ87: 0 | BK87: 1.16 | BL87: 0.03 | BM87: 0.05 | BN87: 0 | BO87: 0.18 | BP87: 0.29 | BQ87: 4.35 | BR87: 0 | BS87: 0 | BT87: 5.2 | BU87: 0.07 | BV87: 0 | BW87: 0 | BX87: 0 | BY87: 0 | BZ87: 1479.13 | CC87: 398.39 | CE87: 147.61 | CF87: 86.5 | CG87: 117.06 | CH87: 9148.86 | CI87: 4829.98 | CJ87: 6989.42 | CK87: 259.22 | CL87: 154.86 | CM87: 207.04 | CN87: 28.2 | CO87: 2.38
B89: 4 день
B90: Завтрак
A91: ="-" -> - | B91: Хлеб пшеничный | C91: 25 | D91: 1.5 | E91: 0.2 | F91: 9.2 | G91: 45 | H91: 0 | I91: 0 | J91: 0 | K91: 0 | L91: 0.28 | M91: 8.9 | N91: 0.05 | O91: 0 | P91: 0 | Q91: 0 | R91: 0.45 | S91: 0 | T91: 0 | U91: 0.0 | V91: 0.0 | W91: 0.0 | X91: 0.0 | Y91: 0.0 | Z91: 0.0 | AA91: 0.0 | AB91: 0.0 | AC91: 0.0 | AD91: 0.0 | AE91: 0.0 | AF91: 0.0 | AG91: 0.0 | AH91: 0 | AI91: 79.82 | AJ91: 83.09 | AK91: 127.24 | AL91: 42.2 | AM91: 25.01 | AN91: 50.03 | AO91: 18.92 | AP91: 90.48 | AQ91: 56.12 | AR91: 78.3 | AS91: 64.6 | AT91: 33.93 | AU91: 60.03 | AV91: 501.99 | AW91: 0 | AX91: 163.56 | AY91: 71.12 | AZ91: 47.2 | BA91: 37.41 | BB91: 0 | BC91: 0 | BD91: 0 | BE91: 0 | BF91: 0 | BG91: 0 | BH91: 0 | BI91: 0.02 | BJ91: 0 | BK91: 0 | BL91: 0 | BM91: 0 | BN91: 0 | BO91: 0 | BP91: 0 | BQ91: 0.02 | BR91: 0 | BS91: 0 | BT91: 0.07 | BU91: 0 | BV91: 0 | BW91: 0 | BX91: 0 | BY91: 0 | BZ91: 9.78 | CC91: 0 | CE91: 0 | CF91: 0 | CG91: 0 | CH91: 570 | CI91: 219.6 | CJ91: 394.8 | CK91: 4.56 | CL91: 4.56 | CM91: 4.56 | CN91: 0 | CO91: 0
A92: ="4/13" -> 4/13 | B92: Сыр (порциями) | C92: 10 | D92: 1.5 | E92: 2.7 | F92: 0.0 | G92: 31 | H92: 1.53 | I92: 0 | J92: 0 | K92: 0 | L92: 0 | M92: 0 | N92: 0 | O92: 0 | P92: 0 | Q92: 0.2 | R92: 0.43 | S92: 110 | T92: 10 | U92: 100.0 | V92: 5.5 | W92: 60.0 | X92: 0.1 | Y92: 21.0 | Z92: 17.0 | AA92: 23.8 | AB92: 0.0 | AC92: 0.0 | AD92: 0.0 | AE92: 0.0 | AF92: 0.7 | AG92: 0.1 | AH92: 0 | AI92: 157 | AJ92: 117 | AK92: 230 | AL92: 158 | AM92: 56 | AN92: 95 | AO92: 70 | AP92: 134 | AQ92: 76 | AR92: 87 | AS92: 156 | AT92: 70 | AU92: 51 | AV92: 517 | AW92: 0 | AX92: 273 | AY92: 129 | AZ92: 139 | BA92: 21.5 | BB92: 0 | BC92: 0.01 | BD92: 0.04 | BE92: 0.11 | BF92: 0.13 | BG92: 0.33 | BH92: 0.04 | BI92: 0.7 | BJ92: 0.01 | BK92: 0.16 | BL92: 0.01 | BM92: 0 | BN92: 0 | BO92: 0.05 | BP92: 0.07 | BQ92: 0.52 | BR92: 0 | BS92: 0 | BT92: 0.07 | BU92: 0 | BV92: 0 | BW92: 0 | BX92: 0 | BY92: 0 | BZ92: 4.08 | CC92: 23.83 | CE92: 0 | CF92: 0 | CG92: 0 | CH92: 500 | CI92: 370 | CJ92: 435 | CK92: 1.53 | CL92: 0.97 | CM92: 1.25 | CN92: 0 | CO92: 0
A93: ="32/10" -> 32/10 | B93: Кофейный напиток с молоком | C93: 180 | D93: 3.5 | E93: 3.1 | F93: 13.0 | G93: 91 | H93: 1.53 | I93: 0 | J93: 0 | K93: 0 | L93: 12.95 | M93: 0 | N93: 0 | O93: 0 | P93: 0 | Q93: 0.09 | R93: 0.64 | S93: 44.64 | T93: 130.35 | U93: 105.0 | V93: 12.0 | W93: 75.3 | X93: 0.1 | Y93: 18.0 | Z93: 8.1 | AA93: 19.8 | AB93: 0.0 | AC93: 0.0 | AD93: 0.1 | AE93: 0.1 | AF93: 0.7 | AG93: 0.5 | AH93: 0 | AI93: 0 | AJ93: 0 | AK93: 0 | AL93: 0 | AM93: 0 | AN93: 0 | AO93: 0 | AP93: 0 | AQ93: 0 | AR93: 0 | AS93: 0 | AT93: 0 | AU93: 0 | AV93: 0 | AW93: 0 | AX93: 0 | AY93: 0 | AZ93: 0 | BA93: 0 | BB93: 0 | BC93: 0 | BD93: 0 | BE93: 0 | BF93: 0 | BG93: 0 | BH93: 0 | BI93: 0 | BJ93: 0 | BK93: 0 | BL93: 0 | BM93: 0 | BN93: 0 | BO93: 0 | BP93: 0 | BQ93: 0 | BR93: 0 | BS93: 0 | BT93: 0 | BU93: 0 | BV93: 0 | BW93: 0 | BX93: 0 | BY93: 0 | BZ93: 179.43 | CC93: 19.35 | CE93: 10.25 | CF93: 3.95 | CG93: 7.1 | CH93: 792 | CI93: 288.18 | CJ93: 540.09 | CK93: 34.02 | CL93: 16.11 | CM93: 25.07 | CN93: 9 | CO93: 0
A94: ="16/4" -> 16/4 | B94: Каша пшеничная молочная с маслом сливочным | C94: 200 | D94: 6.5 | E94: 5.5 | F94: 32.6 | G94: 204 | H94: 3.36 | I94: 0.09 | J94: 0 | K94: 0 | L94: 7.79 | M94: 23.51 | N94: 1.31 | O94: 0 | P94: 0 | Q94: 0.08 | R94: 1.56 | S94: 238.19 | T94: 178.26 | U94: 96.6 | V94: 38.7 | W94: 145.1 | X94: 1.0 | Y94: 19.2 | Z94: 22.4 | AA94: 36.8 | AB94: 0.2 | AC94: 0.1 | AD94: 0.1 | AE94: 0.6 | AF94: 2.5 | AG94: 0.4 | AH94: 0 | AI94: 178.3 | AJ94: 163.22 | AK94: 579.64 | AL94: 109.98 | AM94: 111.94 | AN94: 152.17 | AO94: 69.3 | AP94: 219.66 | AQ94: 405.55 | AR94: 160.78 | AS94: 246.54 | AT94: 99.08 | AU94: 113.7 | AV94: 840.06 | AW94: 0 | AX94: 306.36 | AY94: 265.23 | AZ94: 155.74 | BA94: 68.06 | BB94: 0.09 | BC94: 0.04 | BD94: 0.02 | BE94: 0.05 | BF94: 0.06 | BG94: 0.28 | BH94: 0 | BI94: 0.86 | BJ94: 0 | BK94: 0.26 | BL94: 0.01 | BM94: 0 | BN94: 0 | BO94: 0.05 | BP94: 0.09 | BQ94: 0.82 | BR94: 0 | BS94: 0 | BT94: 0.77 | BU94: 0.01 | BV94: 0 | BW94: 0 | BX94: 0 | BY94: 0 | BZ94: 165.81 | CC94: 22.93 | CE94: 31 | CF94: 15.28 | CG94: 23.14 | CH94: 2123.67 | CI94: 973.11 | CJ94: 1548.39 | CK94: 36.56 | CL94: 18.86 | CM94: 27.71 | CN94: 4 | CO94: 0.5
B95: Итого за 'Завтрак' | C95: =SUM(C91:C94) -> 415 | D95: =SUM(D91:D94) -> 13.1 | E95: 11.4 | F95: 54.8 | G95: 371 | H95: 6.42 | I95: 0.09 | J95: 0 | K95: 0 | L95: 21.02 | M95: 32.41 | N95: 1.36 | O95: 0 | P95: 0 | Q95: 0.37 | R95: 3.08 | S95: 392.83 | T95: 318.61 | U95: 301.6 | V95: 56.2 | W95: 280.4 | X95: 1.2 | Y95: 58.2 | Z95: 47.5 | AA95: 80.4 | AB95: 0.2 | AC95: 0.2 | AD95: 0.3 | AE95: 0.7 | AF95: 3.9 | AG95: 1.0 | AH95: 0 | AI95: 415.12 | AJ95: 363.31 | AK95: 936.88 | AL95: 310.18 | AM95: 192.95 | AN95: 297.19 | AO95: 158.22 | AP95: 444.14 | AQ95: 537.67 | AR95: 326.08 | AS95: 467.14 | AT95: 203.01 | AU95: 224.73 | AV95: 1859.05 | AW95: 0 | AX95: 742.92 | AY95: 465.35 | AZ95: 341.94 | BA95: 126.97 | BB95: 0.09 | BC95: 0.05 | BD95: 0.06 | BE95: 0.16 | BF95: 0.19 | BG95: 0.62 | BH95: 0.04 | BI95: 1.58 | BJ95: 0.01 | BK95: 0.42 | BL95: 0.02 | BM95: 0 | BN95: 0 | BO95: 0.1 | BP95: 0.16 | BQ95: 1.35 | BR95: 0 | BS95: 0 | BT95: 0.91 | BU95: 0.02 | BV95: 0 | BW95: 0 | BX95: 0 | BY95: 0 | BZ95: 359.09 | CB95: =$G$95/#REF!*100 ->  | CC95: 66.12 | CE95: 41.25 | CF95: 19.23 | CG95: 30.24 | CH95: 3985.67 | CI95: 1850.89 | CJ95: 2918.28 | CK95: 76.67 | CL95: 40.5 | CM95: 58.58 | CN95: 13 | CO95: 0.5
B96: 10:00
A97: ="-" -> - | B97: Йогурт | C97: 100 | D97: 4.8 | E97: 2.5 | F97: 11.0 | G97: 87 | H97: 0.9 | I97: 0 | J97: 0 | K97: 0 | L97: 11 | M97: 0 | N97: 0 | O97: 0 | P97: 0 | Q97: 1.1 | R97: 0.9 | S97: 50 | T97: 152 | U97: 124.0 | V97: 15.0 | W97: 95.0 | X97: 0.1 | Y97: 10.0 | Z97: 0.0 | AA97: 10.0 | AB97: 0.0 | AC97: 0.0 | AD97: 0.2 | AE97: 0.2 | AF97: 1.2 | AG97: 0.6 | AH97: 0 | AI97: 323 | AJ97: 300 | AK97: 450 | AL97: 387 | AM97: 115 | AN97: 216 | AO97: 72 | AP97: 225 | AQ97: 160 | AR97: 174 | AS97: 344 | AT97: 156 | AU97: 93 | AV97: 897 | AW97: 0 | AX97: 518 | AY97: 278 | AZ97: 242 | BA97: 50 | BB97: 0.1 | BC97: 0.07 | BD97: 0.04 | BE97: 0.08 | BF97: 0.09 | BG97: 0.45 | BH97: 0.03 | BI97: 0.56 | BJ97: 0.02 | BK97: 0.31 | BL97: 0.04 | BM97: 0 | BN97: 0 | BO97: 0.04 | BP97: 0.08 | BQ97: 0.69 | BR97: 0.01 | BS97: 0 | BT97: 0.02 | BU97: 0.03 | BV97: 0.08 | BW97: 0 | BX97: 0 | BY97: 0 | BZ97: 86.5 | CC97: 10 | CE97: 9 | CF97: 9 | CG97: 9 | CH97: 0 | CI97: 0 | CJ97: 0 | CK97: 2 | CL97: 2 | CM97: 2 | CN97: 0 | CO97: 0
B98: Итого за '10:00' | C98: =SUM(C97) -> 100 | D98: =SUM(D97) -> 4.8 | E98: 2.5 | F98: 11.0 | G98: 87 | H98: 0.9 | I98: 0 | J98: 0 | K98: 0 | L98: 11 | M98: 0 | N98: 0 | O98: 0 | P98: 0 | Q98: 1.1 | R98: 0.9 | S98: 50 | T98: 152 | U98: 124.0 | V98: 15.0 | W98: 95.0 | X98: 0.1 | Y98: 10.0 | Z98: 0.0 | AA98: 10.0 | AB98: 0.0 | AC98: 0.0 | AD98: 0.2 | AE98: 0.2 | AF98: 1.2 | AG98: 0.6 | AH98: 0 | AI98: 323 | AJ98: 300 | AK98: 450 | AL98: 387 | AM98: 115 | AN98: 216 | AO98: 72 | AP98: 225 | AQ98: 160 | AR98: 174 | AS98: 344 | AT98: 156 | AU98: 93 | AV98: 897 | AW98: 0 | AX98: 518 | AY98: 278 | AZ98: 242 | BA98: 50 | BB98: 0.1 | BC98: 0.07 | BD98: 0.04 | BE98: 0.08 | BF98: 0.09 | BG98: 0.45 | BH98: 0.03 | BI98: 0.56 | BJ98: 0.02 | BK98: 0.31 | BL98: 0.04 | BM98: 0 | BN98: 0 | BO98: 0.04 | BP98: 0.08 | BQ98: 0.69 | BR98: 0.01 | BS98: 0 | BT98: 0.02 | BU98: 0.03 | BV98: 0.08 | BW98: 0 | BX98: 0 | BY98: 0 | BZ98: 86.5 | CB98: =$G$98/#REF!*100 ->  | CC98: 10 | CE98: 9 | CF98: 9 | CG98: 9 | CH98: 0 | CI98: 0 | CJ98: 0 | CK98: 2 | CL98: 2 | CM98: 2 | CN98: 0 | CO98: 0
B99: Обед
A100: ="-" -> - | B100: Хлеб пшеничный | C100: 20 | D100: 1.2 | E100: 0.1 | F100: 7.4 | G100: 36 | H100: 0 | I100: 0 | J100: 0 | K100: 0 | L100: 0.22 | M100: 7.12 | N100: 0.04 | O100: 0 | P100: 0 | Q100: 0 | R100: 0.36 | S100: 0 | T100: 0 | U100: 0.0 | V100: 0.0 | W100: 0.0 | X100: 0.0 | Y100: 0.0 | Z100: 0.0 | AA100: 0.0 | AB100: 0.0 | AC100: 0.0 | AD100: 0.0 | AE100: 0.0 | AF100: 0.0 | AG100: 0.0 | AH100: 0 | AI100: 63.86 | AJ100: 66.47 | AK100: 101.79 | AL100: 33.76 | AM100: 20.01 | AN100: 40.02 | AO100: 15.14 | AP100: 72.38 | AQ100: 44.89 | AR100: 62.64 | AS100: 51.68 | AT100: 27.14 | AU100: 48.02 | AV100: 401.59 | AW100: 0 | AX100: 130.85 | AY100: 56.9 | AZ100: 37.76 | BA100: 29.93 | BB100: 0 | BC100: 0 | BD100: 0 | BE100: 0 | BF100: 0 | BG100: 0 | BH100: 0 | BI100: 0.02 | BJ100: 0 | BK100: 0 | BL100: 0 | BM100: 0 | BN100: 0 | BO100: 0 | BP100: 0 | BQ100: 0.01 | BR100: 0 | BS100: 0 | BT100: 0.06 | BU100: 0 | BV100: 0 | BW100: 0 | BX100: 0 | BY100: 0 | BZ100: 7.82 | CC100: 0 | CE100: 0 | CF100: 0 | CG100: 0 | CH100: 380 | CI100: 146.4 | CJ100: 263.2 | CK100: 3.04 | CL100: 3.04 | CM100: 3.04 | CN100: 0 | CO100: 0
A101: ="-" -> - | B101: Хлеб ржаной | C101: 30 | D101: 1.8 | E101: 0.4 | F101: 12.5 | G101: 57 | H101: 0.06 | I101: 0 | J101: 0 | K101: 0 | L101: 0.36 | M101: 9.66 | N101: 2.49 | O101: 0 | P101: 0 | Q101: 0.3 | R101: 0.75 | S101: 183 | T101: 73.5 | U101: 10.5 | V101: 14.1 | W101: 47.4 | X101: 1.2 | Y101: 0.0 | Z101: 1.5 | AA101: 0.3 | AB101: 0.4 | AC101: 0.1 | AD101: 0.0 | AE101: 0.2 | AF101: 0.6 | AG101: 0.0 | AH101: 0 | AI101: 96.6 | AJ101: 74.4 | AK101: 128.1 | AL101: 66.9 | AM101: 27.9 | AN101: 59.4 | AO101: 24 | AP101: 111.3 | AQ101: 89.1 | AR101: 87.3 | AS101: 139.2 | AT101: 37.2 | AU101: 93 | AV101: 467.7 | AW101: 0 | AX101: 157.8 | AY101: 87.3 | AZ101: 54 | BA101: 39 | BB101: 0 | BC101: 0 | BD101: 0 | BE101: 0 | BF101: 0 | BG101: 0 | BH101: 0 | BI101: 0.04 | BJ101: 0 | BK101: 0 | BL101: 0.01 | BM101: 0 | BN101: 0 | BO101: 0 | BP101: 0 | BQ101: 0.03 | BR101: 0 | BS101: 0 | BT101: 0.14 | BU101: 0.02 | BV101: 0 | BW101: 0 | BX101: 0 | BY101: 0 | BZ101: 14.1 | CC101: 0.25 | CE101: 3 | CF101: 3 | CG101: 3 | CH101: 570 | CI101: 219.6 | CJ101: 394.8 | CK101: 5.7 | CL101: 4.74 | CM101: 5.22 | CN101: 0 | CO101: 0
A102: ="3/10" -> 3/10 | B102: Компот из яблок | C102: 180 | D102: 0.1 | E102: 0.1 | F102: 17.3 | G102: 67 | H102: 0.04 | I102: 0 | J102: 0 | K102: 0 | L102: 16.38 | M102: 0.27 | N102: 0.62 | O102: 0 | P102: 0 | Q102: 0.29 | R102: 0.19 | S102: 9.4 | T102: 99.48 | U102: 6.0 | V102: 3.1 | W102: 3.7 | X102: 0.8 | Y102: 0.0 | Z102: 9.7 | AA102: 1.8 | AB102: 0.1 | AC102: 0.0 | AD102: 0.0 | AE102: 0.1 | AF102: 0.1 | AG102: 1.4 | AH102: 0 | AI102: 4.23 | AJ102: 4.59 | AK102: 6.7 | AL102: 6.35 | AM102: 1.06 | AN102: 3.88 | AO102: 1.06 | AP102: 3.18 | AQ102: 6 | AR102: 3.53 | AS102: 27.52 | AT102: 2.47 | AU102: 4.94 | AV102: 14.82 | AW102: 0 | AX102: 4.59 | AY102: 5.64 | AZ102: 2.12 | BA102: 1.76 | BB102: 0 | BC102: 0 | BD102: 0 | BE102: 0 | BF102: 0 | BG102: 0 | BH102: 0 | BI102: 0 | BJ102: 0 | BK102: 0 | BL102: 0 | BM102: 0 | BN102: 0 | BO102: 0 | BP102: 0 | BQ102: 0 | BR102: 0 | BS102: 0 | BT102: 0 | BU102: 0 | BV102: 0 | BW102: 0 | BX102: 0 | BY102: 0 | BZ102: 220.08 | CC102: 1.62 | CE102: 4.5 | CF102: 4.5 | CG102: 4.5 | CH102: 432 | CI102: 208.98 | CJ102: 320.49 | CK102: 41.2 | CL102: 24.19 | CM102: 32.7 | CN102: 13.5 | CO102: 0
A103: ="32/1" -> 32/1 | B103: Салат из отварной свеклы с растительным маслом | C103: 50 | D103: 0.7 | E103: 3.0 | F103: 4.5 | G103: 45 | H103: 0.38 | I103: 1.95 | J103: 0 | K103: 0 | L103: 3.37 | M103: 0.04 | N103: 1.09 | O103: 0 | P103: 0 | Q103: 0.05 | R103: 0.73 | S103: 111.56 | T103: 111.68 | U103: 17.0 | V103: 9.7 | W103: 19.0 | X103: 0.6 | Y103: 0.0 | Z103: 4.1 | AA103: 1.0 | AB103: 1.4 | AC103: 0.0 | AD103: 0.0 | AE103: 0.1 | AF103: 0.2 | AG103: 1.0 | AH103: 0 | AI103: 24.4 | AJ103: 27.62 | AK103: 30.85 | AL103: 42.35 | AM103: 9.21 | AN103: 24.4 | AO103: 5.98 | AP103: 20.72 | AQ103: 18.42 | AR103: 33.61 | AS103: 151 | AT103: 6.45 | AU103: 17.49 | AV103: 126.14 | AW103: 0 | AX103: 21.64 | AY103: 29 | AZ103: 23.02 | BA103: 6.91 | BB103: 0 | BC103: 0 | BD103: 0 | BE103: 0 | BF103: 0 | BG103: 0 | BH103: 0 | BI103: 0.18 | BJ103: 0 | BK103: 0.12 | BL103: 0.01 | BM103: 0.02 | BN103: 0 | BO103: 0 | BP103: 0 | BQ103: 0.7 | BR103: 0 | BS103: 0 | BT103: 1.73 | BU103: 0 | BV103: 0 | BW103: 0 | BX103: 0 | BY103: 0 | BZ103: 42.53 | CC103: 0.69 | CE103: 13.58 | CF103: 8.49 | CG103: 11.04 | CH103: 427.16 | CI103: 102.19 | CJ103: 264.68 | CK103: 2.05 | CL103: 1.3 | CM103: 1.67 | CN103: 0 | CO103: 0.25
A104: ="14/2" -> 14/2 | B104: Суп картофельный с пшенной крупой на говяжьем бульоне | C104: 180 | D104: 2.5 | E104: 7.6 | F104: 12.2 | G104: 126 | H104: 1.87 | I104: 2.34 | J104: 0 | K104: 0 | L104: 1.53 | M104: 9.51 | N104: 1.11 | O104: 0 | P104: 0 | Q104: 0.14 | R104: 1.84 | S104: 422.86 | T104: 297.67 | U104: 12.3 | V104: 16.7 | W104: 41.5 | X104: 0.6 | Y104: 0.0 | Z104: 700.4 | AA104: 145.7 | AB104: 1.7 | AC104: 0.1 | AD104: 0.1 | AE104: 0.7 | AF104: 1.2 | AG104: 4.7 | AH104: 0 | AI104: 31.51 | AJ104: 37.23 | AK104: 80.27 | AL104: 42.78 | AM104: 15.7 | AN104: 36.01 | AO104: 16.79 | AP104: 42.54 | AQ104: 69.07 | AR104: 98.38 | AS104: 66.67 | AT104: 16.86 | AU104: 32.93 | AV104: 202.71 | AW104: 0 | AX104: 44.67 | AY104: 39.63 | AZ104: 30.32 | BA104: 13.5 | BB104: 0 | BC104: 0 | BD104: 0 | BE104: 0 | BF104: 0 | BG104: 0 | BH104: 0 | BI104: 0.24 | BJ104: 0 | BK104: 0.14 | BL104: 0.01 | BM104: 0.02 | BN104: 0 | BO104: 0 | BP104: 0 | BQ104: 0.84 | BR104: 0 | BS104: 0 | BT104: 2.24 | BU104: 0 | BV104: 0 | BW104: 0 | BX104: 0 | BY104: 0 | BZ104: 179.93 | CC104: 116.74 | CE104: 49.25 | CF104: 27.54 | CG104: 38.39 | CH104: 694.26 | CI104: 394.27 | CJ104: 544.26 | CK104: 38.31 | CL104: 18.54 | CM104: 28.42 | CN104: 0 | CO104: 1.08
A105: ="3/4" -> 3/4 | B105: Каша гречневая вязкая | C105: 150 | D105: 4.6 | E105: 3.9 | F105: 23.8 | G105: 142 | H105: 1.99 | I105: 0.08 | J105: 0 | K105: 0 | L105: 0.55 | M105: 19.34 | N105: 3.95 | O105: 0 | P105: 0 | Q105: 0 | R105: 1.05 | S105: 145.36 | T105: 139.4 | U105: 9.3 | V105: 69.9 | W105: 103.2 | X105: 2.4 | Y105: 15.0 | Z105: 13.4 | AA105: 17.6 | AB105: 0.3 | AC105: 0.1 | AD105: 0.1 | AE105: 1.3 | AF105: 2.7 | AG105: 0.0 | AH105: 0 | AI105: 214.03 | AJ105: 167.18 | AK105: 271.1 | AL105: 192.53 | AM105: 115.87 | AN105: 145.79 | AO105: 66.41 | AP105: 214.75 | AQ105: 210.21 | AR105: 404.32 | AS105: 398.98 | AT105: 109.33 | AU105: 260.19 | AV105: 819.16 | AW105: 0 | AX105: 181.84 | AY105: 220.24 | AZ105: 156.41 | BA105: 119.22 | BB105: 0.1 | BC105: 0.05 | BD105: 0.02 | BE105: 0.06 | BF105: 0.06 | BG105: 0.3 | BH105: 0 | BI105: 1 | BJ105: 0 | BK105: 0.27 | BL105: 0 | BM105: 0 | BN105: 0 | BO105: 0.06 | BP105: 0.09 | BQ105: 1.05 | BR105: 0.01 | BS105: 0 | BT105: 0.41 | BU105: 0.04 | BV105: 0 | BW105: 0 | BX105: 0 | BY105: 0 | BZ105: 126.08 | CC105: 17.24 | CE105: 18.76 | CF105: 11.15 | CG105: 14.96 | CH105: 1575.42 | CI105: 764.22 | CJ105: 1169.82 | CK105: 35.77 | CL105: 22.6 | CM105: 29.18 | CN105: 0 | CO105: 0.38
A106: ="2/9" -> 2/9 | B106: Мясо птицы отварное в соусе | C106: 70 | D106: 8.2 | E106: 7.8 | F106: 1.7 | G106: 110 | H106: 3.12 | I106: 0.05 | J106: 0 | K106: 0 | L106: 0.16 | M106: 1.43 | N106: 0.12 | O106: 0 | P106: 0 | Q106: 0 | R106: 0.79 | S106: 101.84 | T106: 54.66 | U106: 8.3 | V106: 7.0 | W106: 58.2 | X106: 0.7 | Y106: 21.1 | Z106: 11.1 | AA106: 44.2 | AB106: 0.3 | AC106: 0.0 | AD106: 0.1 | AE106: 3.0 | AF106: 6.1 | AG106: 0.3 | AH106: 0 | AI106: 390.93 | AJ106: 310.15 | AK106: 630.47 | AL106: 692.84 | AM106: 207.96 | AN106: 378.44 | AO106: 130.07 | AP106: 333.66 | AQ106: 508.56 | AR106: 540.56 | AS106: 716.5 | AT106: 215.71 | AU106: 604.35 | AV106: 1182.86 | AW106: 65.64 | AX106: 400.47 | AY106: 383.88 | AZ106: 284.16 | BA106: 101.34 | BB106: 0.04 | BC106: 0.02 | BD106: 0.01 | BE106: 0.02 | BF106: 0.03 | BG106: 0.13 | BH106: 0 | BI106: 0.35 | BJ106: 0 | BK106: 0.11 | BL106: 0 | BM106: 0 | BN106: 0 | BO106: 0.02 | BP106: 0.04 | BQ106: 0.29 | BR106: 0 | BS106: 0 | BT106: 0.02 | BU106: 0 | BV106: 0 | BW106: 0 | BX106: 0 | BY106: 0 | BZ106: 70.76 | CC106: 22.96 | CE106: 18.41 | CF106: 9.17 | CG106: 13.79 | CH106: 1701.19 | CI106: 1051.77 | CJ106: 1376.48 | CK106: 19.31 | CL106: 12.75 | CM106: 16.05 | CN106: 0 | CO106: 0.35
B107: Итого за 'Обед' | C107: =SUM(C100:C106) -> 680 | D107: =SUM(D100:D106) -> 19.0 | E107: 22.9 | F107: 79.4 | G107: 583 | H107: 7.46 | I107: 4.42 | J107: 0 | K107: 0 | L107: 22.57 | M107: 47.37 | N107: 9.42 | O107: 0 | P107: 0 | Q107: 0.78 | R107: 5.71 | S107: 974.02 | T107: 776.39 | U107: 63.4 | V107: 120.4 | W107: 273.0 | X107: 6.3 | Y107: 36.1 | Z107: 740.3 | AA107: 210.7 | AB107: 4.2 | AC107: 0.3 | AD107: 0.2 | AE107: 5.4 | AF107: 10.9 | AG107: 7.4 | AH107: 0 | AI107: 825.56 | AJ107: 687.63 | AK107: 1249.28 | AL107: 1077.51 | AM107: 397.71 | AN107: 687.93 | AO107: 259.44 | AP107: 798.53 | AQ107: 946.25 | AR107: 1230.34 | AS107: 1551.55 | AT107: 415.16 | AU107: 1060.92 | AV107: 3214.98 | AW107: 65.64 | AX107: 941.85 | AY107: 822.59 | AZ107: 587.79 | BA107: 311.66 | BB107: 0.14 | BC107: 0.06 | BD107: 0.03 | BE107: 0.08 | BF107: 0.09 | BG107: 0.42 | BH107: 0 | BI107: 1.83 | BJ107: 0 | BK107: 0.64 | BL107: 0.03 | BM107: 0.04 | BN107: 0 | BO107: 0.08 | BP107: 0.14 | BQ107: 2.92 | BR107: 0.01 | BS107: 0 | BT107: 4.61 | BU107: 0.07 | BV107: 0 | BW107: 0 | BX107: 0 | BY107: 0 | BZ107: 661.31 | CB107: =$G$107/#REF!*100 ->  | CC107: 159.49 | CE107: 107.5 | CF107: 63.85 | CG107: 85.67 | CH107: 5780.02 | CI107: 2887.43 | CJ107: 4333.73 | CK107: 145.38 | CL107: 87.15 | CM107: 116.29 | CN107: 13.5 | CO107: 2.06
B108: Уплотненный полдник
A109: 14/12 | B109: Булочка дорожная | C109: 70 | D109: 5.4 | E109: 7.7 | F109: 38.7 | G109: 244 | H109: 5.4 | I109: 0.2 | J109: 0.0 | K109: 0.0 | L109: 9.1 | M109: 28.1 | N109: 1.5 | O109: 0.0 | P109: 0.0 | Q109: 0.0 | R109: 1.0 | S109: 176.8 | T109: 81.5 | U109: 33.8 | V109: 9.2 | W109: 55.1 | X109: 0.6 | Y109: 27.9 | Z109: 26.9 | AA109: 52.2 | AB109: 0.8 | AC109: 0.1 | AD109: 0.1 | AE109: 0.5 | AF109: 1.6 | AG109: 0.1 | AH109: 0 | AI109: 213.74 | AJ109: 194.06 | AK109: 363.13 | AL109: 122.37 | AM109: 70.5 | AN109: 143.31 | AO109: 48.51 | AP109: 223.28 | AQ109: 152.28 | AR109: 180.77 | AS109: 163.57 | AT109: 93.72 | AU109: 158.55 | AV109: 1353.11 | AW109: 2.3 | AX109: 425.26 | AY109: 224.98 | AZ109: 115.67 | BA109: 88.47 | BB109: 0.25 | BC109: 0.11 | BD109: 0.06 | BE109: 0.14 | BF109: 0.16 | BG109: 0.73 | BH109: 0 | BI109: 2.09 | BJ109: 0 | BK109: 0.63 | BL109: 0 | BM109: 0 | BN109: 0 | BO109: 0.14 | BP109: 0.22 | BQ109: 1.7 | BR109: 0 | BS109: 0 | BT109: 0.31 | BU109: 0.02 | BV109: 0 | BW109: 0 | BX109: 0 | BY109: 0 | BZ109: 28.57 | CC109: 32.38 | CE109: 20.02 | CF109: 9.8 | CG109: 14.91 | CH109: 1135.57 | CI109: 398.9 | CJ109: 767.24 | CK109: 10.2 | CL109: 4.99 | CM109: 8.05 | CN109: 4.2 | CO109: 0.42
A110: ="-" -> - | B110: Сок в ассортименте | C110: 180 | D110: 0.9 | E110: 0.2 | F110: 18.5 | G110: 78 | H110: 0 | I110: 0 | J110: 0 | K110: 0 | L110: 17.82 | M110: 0.36 | N110: 0.36 | O110: 0 | P110: 0 | Q110: 0.9 | R110: 0.54 | S110: 10.8 | T110: 216 | U110: 12.6 | V110: 7.2 | W110: 12.6 | X110: 2.5 | Y110: 0.0 | Z110: 0.0 | AA110: 0.0 | AB110: 0.2 | AC110: 0.0 | AD110: 0.0 | AE110: 0.2 | AF110: 0.4 | AG110: 3.6 | AH110: 0.36 | AI110: 14.4 | AJ110: 18 | AK110: 25.2 | AL110: 25.2 | AM110: 3.6 | AN110: 14.4 | AO110: 3.6 | AP110: 12.6 | AQ110: 23.4 | AR110: 14.4 | AS110: 104.4 | AT110: 9 | AU110: 19.8 | AV110: 57.6 | AW110: 0 | AX110: 18 | AY110: 21.6 | AZ110: 9 | BA110: 7.2 | BB110: 0 | BC110: 0 | BD110: 0 | BE110: 0 | BF110: 0 | BG110: 0 | BH110: 0 | BI110: 0 | BJ110: 0 | BK110: 0 | BL110: 0 | BM110: 0 | BN110: 0 | BO110: 0 | BP110: 0 | BQ110: 0 | BR110: 0 | BS110: 0 | BT110: 0 | BU110: 0 | BV110: 0 | BW110: 0 | BX110: 0 | BY110: 0 | BZ110: 158.58 | CC110: 0 | CE110: 3.6 | CF110: 3.6 | CG110: 3.6 | CH110: 360 | CI110: 163.8 | CJ110: 261.9 | CK110: 0.54 | CL110: 0.54 | CM110: 0.54 | CN110: 0 | CO110: 0
A111: ="2/6" -> 2/6 | B111: Омлет запеченный или паровой | C111: 120 | D111: 12.6 | E111: 17.1 | F111: 2.3 | G111: 213 | H111: 8.35 | I111: 0.23 | J111: 0 | K111: 0 | L111: 2.28 | M111: 0 | N111: 0 | O111: 0 | P111: 0 | Q111: 0.04 | R111: 1.96 | S111: 380.45 | T111: 167.3 | U111: 88.6 | V111: 14.5 | W111: 191.6 | X111: 2.2 | Y111: 173.1 | Z111: 73.7 | AA111: 304.0 | AB111: 0.7 | AC111: 0.1 | AD111: 0.4 | AE111: 0.2 | AF111: 3.8 | AG111: 0.2 | AH111: 0 | AI111: 700.73 | AJ111: 542.71 | AK111: 982.87 | AL111: 819.23 | AM111: 384.27 | AN111: 555.02 | AO111: 188.26 | AP111: 592.44 | AQ111: 644.2 | AR111: 712.71 | AS111: 1114.58 | AT111: 310.21 | AU111: 377.73 | AV111: 1613.73 | AW111: 12.63 | AX111: 362.01 | AY111: 842.67 | AZ111: 433.62 | BA111: 265.37 | BB111: 0.24 | BC111: 0.11 | BD111: 0.06 | BE111: 0.14 | BF111: 0.16 | BG111: 0.72 | BH111: 0 | BI111: 2.01 | BJ111: 0 | BK111: 0.62 | BL111: 0 | BM111: 0 | BN111: 0 | BO111: 0.14 | BP111: 0.21 | BQ111: 1.64 | BR111: 0 | BS111: 0 | BT111: 0.09 | BU111: 0.01 | BV111: 0 | BW111: 0 | BX111: 0 | BY111: 0 | BZ111: 105.76 | CC111: 185.38 | CE111: 48.94 | CF111: 30.96 | CG111: 39.95 | CH111: 209 | CI111: 77.6 | CJ111: 143.3 | CK111: 14.28 | CL111: 7.8 | CM111: 11.04 | CN111: 0 | CO111: 0.6
B112: Итого за 'Ужин' | C112: =SUM(C109:C111) -> 370 | D112: =SUM(D109:D111) -> 18.9 | E112: 25.0 | F112: 59.5 | G112: 535 | H112: 13.76 | I112: 0.46 | J112: 0 | K112: 0 | L112: 29.18 | M112: 28.47 | N112: 1.81 | O112: 0 | P112: 0 | Q112: 0.96 | R112: 3.46 | S112: 568.06 | T112: 464.76 | U112: 135.0 | V112: 30.9 | W112: 259.3 | X112: 5.2 | Y112: 201.0 | Z112: 100.6 | AA112: 356.1 | AB112: 1.7 | AC112: 0.1 | AD112: 0.5 | AE112: 0.9 | AF112: 5.7 | AG112: 3.9 | AH112: 0.36 | AI112: 1016.85 | AJ112: 841.67 | AK112: 1520.17 | AL112: 1086.62 | AM112: 498.31 | AN112: 782.9 | AO112: 263.58 | AP112: 907.12 | AQ112: 819.88 | AR112: 907.88 | AS112: 1382.55 | AT112: 412.93 | AU112: 556.08 | AV112: 3024.44 | AW112: 14.94 | AX112: 805.27 | AY112: 1089.25 | AZ112: 657.6 | BA112: 375.08 | BB112: 0.49 | BC112: 0.23 | BD112: 0.12 | BE112: 0.28 | BF112: 0.32 | BG112: 1.45 | BH112: 0 | BI112: 4.1 | BJ112: 0 | BK112: 1.25 | BL112: 0 | BM112: 0 | BN112: 0 | BO112: 0.28 | BP112: 0.43 | BQ112: 3.34 | BR112: 0 | BS112: 0 | BT112: 0.41 | BU112: 0.03 | BV112: 0 | BW112: 0 | BX112: 0 | BY112: 0 | BZ112: 292.56 | CB112: =$G$112/#REF!*100 ->  | CC112: 217.76 | CE112: 72.55 | CF112: 44.36 | CG112: 58.46 | CH112: 1704.57 | CI112: 640.3 | CJ112: 1172.44 | CK112: 25.02 | CL112: 13.33 | CM112: 19.63 | CN112: 4.2 | CO112: 1.02
B113: Итого за день | C113: =C95+C98+C107+C112 -> 1565 | D113: 55.8 | E113: 61.8 | F113: 204.6 | G113: 1576 | H113: 28.54 | I113: 4.97 | J113: 0 | K113: 0 | L113: 83.77 | M113: 108.25 | N113: 12.59 | O113: 0 | P113: 0 | Q113: 3.21 | R113: 13.15 | S113: 1984.91 | T113: 1711.76 | U113: 623.9 | V113: 222.5 | W113: 907.7 | X113: 12.8 | Y113: 305.3 | Z113: 888.5 | AA113: 657.2 | AB113: 6.0 | AC113: 0.6 | AD113: 1.1 | AE113: 7.1 | AF113: 21.8 | AG113: 12.9 | AH113: 0.36 | AI113: 2580.53 | AJ113: 2192.6 | AK113: 4156.33 | AL113: 2861.31 | AM113: 1203.97 | AN113: 1984.02 | AO113: 753.25 | AP113: 2374.79 | AQ113: 2463.79 | AR113: 2638.3 | AS113: 3745.24 | AT113: 1187.1 | AU113: 1934.73 | AV113: 8995.47 | AW113: 80.58 | AX113: 3008.04 | AY113: 2655.19 | AZ113: 1829.32 | BA113: 863.71 | BB113: 0.83 | BC113: 0.41 | BD113: 0.26 | BE113: 0.6 | BF113: 0.68 | BG113: 2.94 | BH113: 0.07 | BI113: 8.07 | BJ113: 0.03 | BK113: 2.62 | BL113: 0.09 | BM113: 0.04 | BN113: 0 | BO113: 0.51 | BP113: 0.8 | BQ113: 8.3 | BR113: 0.02 | BS113: 0 | BT113: 5.94 | BU113: 0.14 | BV113: 0.08 | BW113: 0 | BX113: 0 | BY113: 0 | BZ113: 1399.46 | CC113: 453.37 | CE113: 230.3 | CF113: 136.44 | CG113: 183.37 | CH113: 11470.26 | CI113: 5378.62 | CJ113: 8424.44 | CK113: 249.07 | CL113: 142.98 | CM113: 196.5 | CN113: 30.7 | CO113: 3.58
B115: 5 день
B116: Завтрак
A117: ="-" -> - | B117: Батон | C117: 30 | D117: 2.3 | E117: 1.5 | F117: 11.2 | G117: 66 | H117: 0.15 | I117: 0 | J117: 0 | K117: 0 | L117: 0.99 | M117: 9.24 | N117: 0.96 | O117: 0 | P117: 0 | Q117: 0.09 | R117: 0.48 | S117: 128.7 | T117: 39.3 | U117: 6.6 | V117: 9.9 | W117: 25.5 | X117: 0.6 | Y117: 0.0 | Z117: 0.0 | AA117: 0.0 | AB117: 0.5 | AC117: 0.1 | AD117: 0.0 | AE117: 0.5 | AF117: 0.9 | AG117: 0.0 | AH117: 0 | AI117: 111.6 | AJ117: 115.8 | AK117: 177.3 | AL117: 59.7 | AM117: 35.1 | AN117: 70.2 | AO117: 26.4 | AP117: 126 | AQ117: 78.3 | AR117: 108.9 | AS117: 90.3 | AT117: 48.3 | AU117: 84 | AV117: 697.5 | AW117: 0 | AX117: 227.1 | AY117: 99.3 | AZ117: 66.6 | BA117: 51.9 | BB117: 0 | BC117: 0 | BD117: 0 | BE117: 0 | BF117: 0 | BG117: 0.01 | BH117: 0 | BI117: 0.1 | BJ117: 0 | BK117: 0.05 | BL117: 0 | BM117: 0 | BN117: 0 | BO117: 0 | BP117: 0 | BQ117: 0.35 | BR117: 0 | BS117: 0 | BT117: 0.26 | BU117: 0.01 | BV117: 0 | BW117: 0 | BX117: 0 | BY117: 0 | BZ117: 10.23 | CC117: 0 | CE117: 0 | CF117: 0 | CG117: 0 | CH117: 570 | CI117: 219.6 | CJ117: 394.8 | CK117: 4.56 | CL117: 4.56 | CM117: 4.56 | CN117: 0 | CO117: 0
A118: ="-" -> - | B118: Масло сливочное | C118: 5 | D118: 0.0 | E118: 3.6 | F118: 0.1 | G118: 33 | H118: 2.36 | I118: 0.11 | J118: 0 | K118: 0 | L118: 0.07 | M118: 0 | N118: 0 | O118: 0 | P118: 0 | Q118: 0 | R118: 0.07 | S118: 0.75 | T118: 1.5 | U118: 1.2 | V118: 0.0 | W118: 1.5 | X118: 0.0 | Y118: 20.0 | Z118: 15.0 | AA118: 22.5 | AB118: 0.1 | AC118: 0.0 | AD118: 0.0 | AE118: 0.0 | AF118: 0.0 | AG118: 0.0 | AH118: 0 | AI118: 2.1 | AJ118: 2.05 | AK118: 3.8 | AL118: 2.25 | AM118: 0.85 | AN118: 2.35 | AO118: 2.15 | AP118: 2.1 | AQ118: 1.8 | AR118: 1.3 | AS118: 2.85 | AT118: 1.75 | AU118: 1.2 | AV118: 7.1 | AW118: 0 | AX118: 2.4 | AY118: 2.7 | AZ118: 2.1 | BA118: 0.5 | BB118: 0.13 | BC118: 0.06 | BD118: 0.03 | BE118: 0.08 | BF118: 0.09 | BG118: 0.4 | BH118: 0 | BI118: 1.1 | BJ118: 0 | BK118: 0.34 | BL118: 0 | BM118: 0 | BN118: 0 | BO118: 0.08 | BP118: 0.12 | BQ118: 0.9 | BR118: 0 | BS118: 0 | BT118: 0.05 | BU118: 0 | BV118: 0 | BW118: 0 | BX118: 0 | BY118: 0 | BZ118: 1.25 | CC118: 22.5 | CE118: 0.2 | CF118: 0.05 | CG118: 0.13 | CH118: 10 | CI118: 4.1 | CJ118: 7.05 | CK118: 0.86 | CL118: 0.44 | CM118: 0.65 | CN118: 0 | CO118: 0
A119: ="29/10" -> 29/10 | B119: Чай с лимоном | C119: 180 | D119: 0.2 | E119: 0.1 | F119: 8.9 | G119: 36 | H119: 0 | I119: 0 | J119: 0 | K119: 0 | L119: 8.75 | M119: 0 | N119: 0.18 | O119: 0 | P119: 0 | Q119: 0.25 | R119: 0.08 | S119: 0.57 | T119: 7.35 | U119: 2.0 | V119: 0.5 | W119: 0.9 | X119: 0.1 | Y119: 0.0 | Z119: 0.4 | AA119: 0.1 | AB119: 0.0 | AC119: 0.0 | AD119: 0.0 | AE119: 0.0 | AF119: 0.0 | AG119: 0.7 | AH119: 0 | AI119: 0.6 | AJ119: 0.69 | AK119: 0.56 | AL119: 1.03 | AM119: 0.26 | AN119: 1.08 | AO119: 0 | AP119: 1.38 | AQ119: 0 | AR119: 0 | AS119: 0 | AT119: 0.77 | AU119: 0 | AV119: 0 | AW119: 0 | AX119: 0 | AY119: 0 | AZ119: 0 | BA119: 0 | BB119: 0 | BC119: 0 | BD119: 0 | BE119: 0 | BF119: 0 | BG119: 0 | BH119: 0 | BI119: 0 | BJ119: 0 | BK119: 0 | BL119: 0 | BM119: 0 | BN119: 0 | BO119: 0 | BP119: 0 | BQ119: 0 | BR119: 0 | BS119: 0 | BT119: 0 | BU119: 0 | BV119: 0 | BW119: 0 | BX119: 0 | BY119: 0 | BZ119: 179.55 | CC119: 0.07 | CE119: 3.85 | CF119: 3.72 | CG119: 3.79 | CH119: 434.63 | CI119: 165.16 | CJ119: 299.9 | CK119: 39.92 | CL119: 23.87 | CM119: 31.9 | CN119: 8.78 | CO119: 0
A120: ="15/4" -> 15/4 | B120: Каша ячневая молочная с маслом сливочным | C120: 200 | D120: 6.0 | E120: 4.8 | F120: 33.8 | G120: 197 | H120: 3.4 | I120: 0.09 | J120: 0 | K120: 0 | L120: 7.57 | M120: 23.22 | N120: 2.95 | O120: 0 | P120: 0 | Q120: 0.08 | R120: 1.6 | S120: 240.19 | T120: 176.15 | U120: 115.2 | V120: 27.2 | W120: 183.4 | X120: 0.7 | Y120: 19.2 | Z120: 16.0 | AA120: 35.6 | AB120: 0.6 | AC120: 0.1 | AD120: 0.1 | AE120: 0.9 | AF120: 2.5 | AG120: 0.4 | AH120: 0 | AI120: 182.06 | AJ120: 176.38 | AK120: 194.62 | AL120: 133.29 | AM120: 60.8 | AN120: 95.77 | AO120: 46.74 | AP120: 197.1 | AQ120: 153.63 | AR120: 185.22 | AS120: 240.9 | AT120: 87.8 | AU120: 155.06 | AV120: 905.86 | AW120: 0 | AX120: 494.36 | AY120: 148.67 | AZ120: 114.38 | BA120: 75.58 | BB120: 0.09 | BC120: 0.04 | BD120: 0.02 | BE120: 0.05 | BF120: 0.06 | BG120: 0.28 | BH120: 0 | BI120: 0.78 | BJ120: 0 | BK120: 0.24 | BL120: 0 | BM120: 0 | BN120: 0 | BO120: 0.05 | BP120: 0.08 | BQ120: 0.63 | BR120: 0 | BS120: 0 | BT120: 0.04 | BU120: 0 | BV120: 0 | BW120: 0 | BX120: 0 | BY120: 0 | BZ120: 177.81 | CC120: 21.87 | CE120: 34.24 | CF120: 14.52 | CG120: 24.38 | CH120: 2147.67 | CI120: 982.95 | CJ120: 1565.31 | CK120: 45.21 | CL120: 23.88 | CM120: 34.54 | CN120: 4 | CO120: 0.5
B121: Итого за 'Завтрак' | C121: =SUM(C117:C120) -> 415 | D121: =SUM(D117:D120) -> 8.5 | E121: 10.0 | F121: 53.9 | G121: 332 | H121: 5.91 | I121: 0.2 | J121: 0 | K121: 0 | L121: 17.38 | M121: 32.46 | N121: 4.09 | O121: 0 | P121: 0 | Q121: 0.42 | R121: 2.23 | S121: 370.21 | T121: 224.3 | U121: 125.0 | V121: 37.6 | W121: 211.3 | X121: 1.4 | Y121: 39.2 | Z121: 31.4 | AA121: 58.2 | AB121: 1.2 | AC121: 0.2 | AD121: 0.2 | AE121: 1.4 | AF121: 3.5 | AG121: 1.1 | AH121: 0 | AI121: 296.36 | AJ121: 294.92 | AK121: 376.28 | AL121: 196.27 | AM121: 97.01 | AN121: 169.4 | AO121: 75.29 | AP121: 326.58 | AQ121: 233.73 | AR121: 295.42 | AS121: 334.05 | AT121: 138.62 | AU121: 240.26 | AV121: 1610.46 | AW121: 0 | AX121: 723.86 | AY121: 250.67 | AZ121: 183.08 | BA121: 127.98 | BB121: 0.22 | BC121: 0.1 | BD121: 0.05 | BE121: 0.13 | BF121: 0.15 | BG121: 0.69 | BH121: 0 | BI121: 1.98 | BJ121: 0 | BK121: 0.63 | BL121: 0 | BM121: 0 | BN121: =SUM(BN117:BN120) -> 0 | BO121: 0.13 | BP121: 0.2 | BQ121: 1.88 | BR121: 0 | BS121: 0 | BT121: 0.35 | BU121: 0.01 | BV121: 0 | BW121: 0 | BX121: 0 | BY121: 0 | BZ121: 368.84 | CA121: 0 | CB121: 0 | CC121: 44.44 | CD121: 0 | CE121: 38.29 | CF121: 18.29 | CG121: 28.3 | CH121: 3162.3 | CI121: 1371.81 | CJ121: 2267.06 | CK121: 90.55 | CL121: 52.75 | CM121: 71.65 | CN121: 12.78 | CO121: 0.5
B122: 10:00
A123: ="-" -> - | B123: Фрукты | C123: 100 | D123: 2.0 | E123: 1.0 | F123: 15.0 | G123: 100 | H123: 0 | I123: 0 | J123: 0 | K123: 0 | L123: 11 | M123: 2 | N123: 2 | O123: 0 | P123: 0 | Q123: 0.4 | R123: 0.9 | S123: 31 | T123: 348 | U123: 8.0 | V123: 42.0 | W123: 28.0 | X123: 0.6 | Y123: 0.0 | Z123: 120.0 | AA123: 20.0 | AB123: 0.4 | AC123: 0.0 | AD123: 0.1 | AE123: 0.6 | AF123: 0.9 | AG123: 10.0 | AH123: 0 | AI123: 0 | AJ123: 0 | AK123: 0 | AL123: 0 | AM123: 0 | AN123: 0 | AO123: 0 | AP123: 0 | AQ123: 0 | AR123: 0 | AS123: 0 | AT123: 0 | AU123: 0 | AV123: 0 | AW123: 0 | AX123: 0 | AY123: 0 | AZ123: 0 | BA123: 0 | BB123: 0 | BC123: 0 | BD123: 0 | BE123: 0 | BF123: 0 | BG123: 0 | BH123: 0 | BI123: 0 | BJ123: 0 | BK123: 0 | BL123: 0 | BM123: 0 | BN123: 0 | BO123: 0 | BP123: 0 | BQ123: 0 | BR123: 0 | BS123: 0 | BT123: 0 | BU123: 0 | BV123: 0 | BW123: 0 | BX123: 0 | BY123: 0 | BZ123: 74 | CC123: 20 | CE123: 4 | CF123: 1 | CG123: 2.5 | CH123: 200 | CI123: 82 | CJ123: 141 | CK123: 0 | CL123: 0 | CM123: 0 | CN123: 0 | CO123: 0
B124: Итого за '10:00' | C124: =SUM(C123) -> 100 | D124: =SUM(D123) -> 2.0 | E124: 1.0 | F124: 15.0 | G124: 100 | H124: 0 | I124: 0 | J124: 0 | K124: 0 | L124: 11 | M124: 2 | N124: 2 | O124: 0 | P124: 0 | Q124: 0.4 | R124: 0.9 | S124: 31 | T124: 348 | U124: 8.0 | V124: 42.0 | W124: 28.0 | X124: 0.6 | Y124: 0.0 | Z124: 120.0 | AA124: 20.0 | AB124: 0.4 | AC124: 0.0 | AD124: 0.1 | AE124: 0.6 | AF124: 0.9 | AG124: 10.0 | AH124: 0 | AI124: 0 | AJ124: 0 | AK124: 0 | AL124: 0 | AM124: 0 | AN124: 0 | AO124: 0 | AP124: 0 | AQ124: 0 | AR124: 0 | AS124: 0 | AT124: 0 | AU124: 0 | AV124: 0 | AW124: 0 | AX124: 0 | AY124: 0 | AZ124: 0 | BA124: 0 | BB124: 0 | BC124: 0 | BD124: 0 | BE124: 0 | BF124: 0 | BG124: 0 | BH124: 0 | BI124: 0 | BJ124: 0 | BK124: 0 | BL124: 0 | BM124: 0 | BN124: 0 | BO124: 0 | BP124: 0 | BQ124: 0 | BR124: 0 | BS124: 0 | BT124: 0 | BU124: 0 | BV124: 0 | BW124: 0 | BX124: 0 | BY124: 0 | BZ124: 74 | CB124: =$G$124/#REF!*100 ->  | CC124: 20 | CE124: 4 | CF124: 1 | CG124: 2.5 | CH124: 200 | CI124: 82 | CJ124: 141 | CK124: 0 | CL124: 0 | CM124: 0 | CN124: 0 | CO124: 0
B125: Обед
A126: ="-" -> - | B126: Хлеб пшеничный | C126: 20 | D126: 1.2 | E126: 0.1 | F126: 7.4 | G126: 36 | H126: 0 | I126: 0 | J126: 0 | K126: 0 | L126: 0.22 | M126: 7.12 | N126: 0.04 | O126: 0 | P126: 0 | Q126: 0 | R126: 0.36 | S126: 0 | T126: 0 | U126: 0.0 | V126: 0.0 | W126: 0.0 | X126: 0.0 | Y126: 0.0 | Z126: 0.0 | AA126: 0.0 | AB126: 0.0 | AC126: 0.0 | AD126: 0.0 | AE126: 0.0 | AF126: 0.0 | AG126: 0.0 | AH126: 0 | AI126: 63.86 | AJ126: 66.47 | AK126: 101.79 | AL126: 33.76 | AM126: 20.01 | AN126: 40.02 | AO126: 15.14 | AP126: 72.38 | AQ126: 44.89 | AR126: 62.64 | AS126: 51.68 | AT126: 27.14 | AU126: 48.02 | AV126: 401.59 | AW126: 0 | AX126: 130.85 | AY126: 56.9 | AZ126: 37.76 | BA126: 29.93 | BB126: 0 | BC126: 0 | BD126: 0 | BE126: 0 | BF126: 0 | BG126: 0 | BH126: 0 | BI126: 0.02 | BJ126: 0 | BK126: 0 | BL126: 0 | BM126: 0 | BN126: 0 | BO126: 0 | BP126: 0 | BQ126: 0.01 | BR126: 0 | BS126: 0 | BT126: 0.06 | BU126: 0 | BV126: 0 | BW126: 0 | BX126: 0 | BY126: 0 | BZ126: 7.82 | CC126: 0 | CE126: 0 | CF126: 0 | CG126: 0 | CH126: 380 | CI126: 146.4 | CJ126: 263.2 | CK126: 3.04 | CL126: 3.04 | CM126: 3.04 | CN126: 0 | CO126: 0
A127: ="-" -> - | B127: Хлеб ржаной | C127: 30 | D127: 1.8 | E127: 0.4 | F127: 12.5 | G127: 57 | H127: 0.06 | I127: 0 | J127: 0 | K127: 0 | L127: 0.36 | M127: 9.66 | N127: 2.49 | O127: 0 | P127: 0 | Q127: 0.3 | R127: 0.75 | S127: 183 | T127: 73.5 | U127: 10.5 | V127: 14.1 | W127: 47.4 | X127: 1.2 | Y127: 0.0 | Z127: 1.5 | AA127: 0.3 | AB127: 0.4 | AC127: 0.1 | AD127: 0.0 | AE127: 0.2 | AF127: 0.6 | AG127: 0.0 | AH127: 0 | AI127: 96.6 | AJ127: 74.4 | AK127: 128.1 | AL127: 66.9 | AM127: 27.9 | AN127: 59.4 | AO127: 24 | AP127: 111.3 | AQ127: 89.1 | AR127: 87.3 | AS127: 139.2 | AT127: 37.2 | AU127: 93 | AV127: 467.7 | AW127: 0 | AX127: 157.8 | AY127: 87.3 | AZ127: 54 | BA127: 39 | BB127: 0 | BC127: 0 | BD127: 0 | BE127: 0 | BF127: 0 | BG127: 0 | BH127: 0 | BI127: 0.04 | BJ127: 0 | BK127: 0 | BL127: 0.01 | BM127: 0 | BN127: 0 | BO127: 0 | BP127: 0 | BQ127: 0.03 | BR127: 0 | BS127: 0 | BT127: 0.14 | BU127: 0.02 | BV127: 0 | BW127: 0 | BX127: 0 | BY127: 0 | BZ127: 14.1 | CC127: 0.25 | CE127: 4 | CF127: 4 | CG127: 4 | CH127: 760 | CI127: 292.8 | CJ127: 526.4 | CK127: 7.6 | CL127: 6.32 | CM127: 6.96 | CN127: 0 | CO127: 0
A128: ="6/10" -> 6/10 | B128: Компот из сухофруктов | C128: 180 | D128: 0.9 | E128: 0.1 | F128: 20.9 | G128: 79 | H128: 0.02 | I128: 0 | J128: 0 | K128: 0 | L128: 17.27 | M128: 0.51 | N128: 3.08 | O128: 0 | P128: 0 | Q128: 0.27 | R128: 0.73 | S128: 3.12 | T128: 306.24 | U128: 28.2 | V128: 18.0 | W128: 24.4 | X128: 0.6 | Y128: 0.0 | Z128: 567.0 | AA128: 104.9 | AB128: 1.0 | AC128: 0.0 | AD128: 0.1 | AE128: 0.5 | AF128: 0.7 | AG128: 0.4 | AH128: 0 | AI128: 0.01 | AJ128: 0.01 | AK128: 0.01 | AL128: 0.02 | AM128: 0 | AN128: 0.01 | AO128: 0 | AP128: 0.01 | AQ128: 0.01 | AR128: 0.01 | AS128: 0.05 | AT128: 0 | AU128: 0.01 | AV128: 0.02 | AW128: 0 | AX128: 0.01 | AY128: 0.01 | AZ128: 0.01 | BA128: 0 | BB128: 0 | BC128: 0 | BD128: 0 | BE128: 0 | BF128: 0 | BG128: 0 | BH128: 0 | BI128: 0 | BJ128: 0 | BK128: 0 | BL128: 0 | BM128: 0 | BN128: 0 | BO128: 0 | BP128: 0 | BQ128: 0.01 | BR128: 0 | BS128: 0 | BT128: 0.01 | BU128: 0 | BV128: 0 | BW128: 0 | BX128: 0 | BY128: 0 | BZ128: 192.61 | CC128: 94.5 | CE128: 3.95 | CF128: 3.95 | CG128: 3.95 | CH128: 454.5 | CI128: 172.98 | CJ128: 313.74 | CK128: 41.94 | CL128: 24.93 | CM128: 33.44 | CN128: 9 | CO128: 0
A129: ="7/2" -> 7/2 | B129: Щи из свежей капусты и картофеля на говяжьем бульоне | C129: 180 | D129: 2.2 | E129: 5.9 | F129: 7.1 | G129: 87 | H129: 1.6 | I129: 1.17 | J129: 0 | K129: 0 | L129: 3.14 | M129: 2.52 | N129: 1.43 | O129: 0 | P129: 0 | Q129: 0.21 | R129: 1.75 | S129: 426.98 | T129: 235.12 | U129: 28.1 | V129: 13.9 | W129: 29.7 | X129: 0.5 | Y129: 0.0 | Z129: 874.1 | AA129: 181.9 | AB129: 0.9 | AC129: 0.1 | AD129: 0.1 | AE129: 0.5 | AF129: 0.9 | AG129: 10.0 | AH129: 0 | AI129: 32.4 | AJ129: 30.88 | AK129: 39.26 | AL129: 39.17 | AM129: 11.76 | AN129: 28.51 | AO129: 8.29 | AP129: 33.25 | AQ129: 43.91 | AR129: 66.51 | AS129: 96.03 | AT129: 15.41 | AU129: 29.27 | AV129: 173.44 | AW129: 0 | AX129: 32.57 | AY129: 32.32 | AZ129: 27.75 | BA129: 11.68 | BB129: 0 | BC129: 0 | BD129: 0 | BE129: 0 | BF129: 0 | BG129: 0 | BH129: 0 | BI129: 0.11 | BJ129: 0 | BK129: 0.07 | BL129: 0 | BM129: 0.01 | BN129: 0 | BO129: 0 | BP129: 0 | BQ129: 0.4 | BR129: 0 | BS129: 0 | BT129: 1.08 | BU129: 0 | BV129: 0 | BW129: 0 | BX129: 0 | BY129: 0 | BZ129: 212.57 | CC129: 145.68 | CE129: 51.31 | CF129: 26.95 | CG129: 39.13 | CH129: 876.52 | CI129: 309.49 | CJ129: 593.01 | CK129: 42.75 | CL129: 26.46 | CM129: 34.6 | CN129: 0 | CO129: 1.08
A130: ="17/4" -> 17/4 | B130: Каша молочная ассорти (рис, пшено) с маслом сливочным | C130: 150 | D130: 4.4 | E130: 4.6 | F130: 23.7 | G130: 153 | H130: 3.14 | I130: 0.08 | J130: 0 | K130: 0 | L130: 7.08 | M130: 15.84 | N130: 0.77 | O130: 0 | P130: 0 | Q130: 0.08 | R130: 1.2 | S130: 186.79 | T130: 135.77 | U130: 87.1 | V130: 24.6 | W130: 104.7 | X130: 0.5 | Y130: 18.2 | Z130: 17.4 | AA130: 34.1 | AB130: 0.1 | AC130: 0.1 | AD130: 0.1 | AE130: 0.4 | AF130: 1.7 | AG130: 0.4 | AH130: 0 | AI130: 108.85 | AJ130: 93.94 | AK130: 273.72 | AL130: 67.66 | AM130: 57.17 | AN130: 80.62 | AO130: 36.2 | AP130: 118.3 | AQ130: 186.51 | AR130: 111.78 | AS130: 146.18 | AT130: 54.04 | AU130: 74.87 | AV130: 429.27 | AW130: 0 | AX130: 145.09 | AY130: 130.57 | AZ130: 87.07 | BA130: 38.95 | BB130: 0.09 | BC130: 0.04 | BD130: 0.02 | BE130: 0.05 | BF130: 0.06 | BG130: 0.26 | BH130: 0 | BI130: 0.78 | BJ130: 0 | BK130: 0.24 | BL130: 0 | BM130: 0 | BN130: 0 | BO130: 0.05 | BP130: 0.08 | BQ130: 0.69 | BR130: 0 | BS130: 0 | BT130: 0.32 | BU130: 0.01 | BV130: 0 | BW130: 0 | BX130: 0 | BY130: 0 | BZ130: 125.1 | CC130: 21.08 | CE130: 24.06 | CF130: 11.09 | CG130: 17.57 | CH130: 1506.05 | CI130: 674.52 | CJ130: 1090.29 | CK130: 25.43 | CL130: 11.48 | CM130: 18.46 | CN130: 3.75 | CO130: 0.38
A131: ="7" -> 7 | B131: Биточки (котлеты) из мяса бройлер-цыплят | C131: 70 | D131: 10.6 | E131: 10.0 | F131: 9.2 | G131: 168 | H131: 2.74 | I131: 2.28 | J131: 0 | K131: 0 | L131: 0.35 | M131: 8.18 | N131: 0.65 | O131: 0 | P131: 0 | Q131: 0.09 | R131: 1.18 | S131: 178.35 | T131: 105.08 | U131: 11.6 | V131: 14.9 | W131: 94.1 | X131: 1.3 | Y131: 29.0 | Z131: 5.5 | AA131: 37.4 | AB131: 2.0 | AC131: 0.1 | AD131: 0.1 | AE131: 3.9 | AF131: 7.0 | AG131: 0.2 | AH131: 0 | AI131: 470.62 | AJ131: 381.67 | AK131: 757.09 | AL131: 798.65 | AM131: 244.02 | AN131: 445.22 | AO131: 153.44 | AP131: 410.38 | AQ131: 595.33 | AR131: 641.13 | AS131: 834.22 | AT131: 255.76 | AU131: 705.51 | AV131: 1515.68 | AW131: 74.31 | AX131: 511.58 | AY131: 457.51 | AZ131: 338.52 | BA131: 128.53 | BB131: 0 | BC131: 0 | BD131: 0 | BE131: 0 | BF131: 0 | BG131: 0 | BH131: 0 | BI131: 0.17 | BJ131: 0 | BK131: 0.11 | BL131: 0.01 | BM131: 0.02 | BN131: 0 | BO131: 0 | BP131: 0 | BQ131: 0.63 | BR131: 0 | BS131: 0 | BT131: 1.58 | BU131: 0 | BV131: 0 | BW131: 0 | BX131: 0 | BY131: 0 | BZ131: 54.38 | CC131: 29.93 | CE131: 17.73 | CF131: 8.4 | CG131: 13.06 | CH131: 1892.29 | CI131: 1155.41 | CJ131: 1523.85 | CK131: 12.53 | CL131: 9.63 | CM131: 11.08 | CN131: 0 | CO131: 0.35
B132: Итого за 'Обед' | C132: =SUM(C126:C131) -> 630 | D132: =SUM(D126:D131) -> 21.1 | E132: 21.0 | F132: 80.7 | G132: 580 | H132: 7.56 | I132: 3.53 | J132: 0 | K132: 0 | L132: 28.42 | M132: 43.83 | N132: 8.46 | O132: 0 | P132: 0 | Q132: 0.95 | R132: 5.97 | S132: 978.24 | T132: 855.71 | U132: 165.5 | V132: 85.4 | W132: 300.3 | X132: 4.1 | Y132: 47.2 | Z132: 1465.5 | AA132: 358.6 | AB132: 4.5 | AC132: 0.3 | AD132: 0.3 | AE132: 5.5 | AF132: 10.9 | AG132: 11.0 | AH132: 0 | AI132: 772.34 | AJ132: 647.37 | AK132: 1299.97 | AL132: 1006.16 | AM132: 360.85 | AN132: 653.77 | AO132: 237.08 | AP132: 745.63 | AQ132: 959.76 | AR132: 969.36 | AS132: 1267.35 | AT132: 389.55 | AU132: 950.69 | AV132: 2987.71 | AW132: 74.31 | AX132: 977.91 | AY132: 764.6 | AZ132: 545.11 | BA132: 248.09 | BB132: 0.09 | BC132: 0.04 | BD132: 0.02 | BE132: 0.05 | BF132: 0.06 | BG132: 0.26 | BH132: 0 | BI132: 1.12 | BJ132: 0 | BK132: 0.42 | BL132: 0.02 | BM132: 0.03 | BN132: 0 | BO132: 0.05 | BP132: 0.08 | BQ132: 1.78 | BR132: 0 | BS132: 0 | BT132: 3.18 | BU132: 0.03 | BV132: 0 | BW132: 0 | BX132: 0 | BY132: 0 | BZ132: 606.58 | CB132: =$G$132/#REF!*100 ->  | CC132: 291.44 | CE132: 101.04 | CF132: 54.39 | CG132: 77.72 | CH132: 5869.36 | CI132: 2751.6 | CJ132: 4310.48 | CK132: 133.29 | CL132: 81.86 | CM132: 107.58 | CN132: 12.75 | CO132: 1.81
B133: Уплотненный полдник
A134: ="-" -> - | B134: Хлеб пшеничный | C134: 20 | D134: 1.3 | E134: 0.1 | F134: 9.4 | G134: 45 | H134: 0 | I134: 0 | J134: 0 | K134: 0 | L134: 0.22 | M134: 9.12 | N134: 0.04 | O134: 0 | P134: 0 | Q134: 0 | R134: 0.36 | S134: 0 | T134: 0 | U134: 0.0 | V134: 0.0 | W134: 0.0 | X134: 0.0 | Y134: 0.0 | Z134: 0.0 | AA134: 0.0 | AB134: 0.0 | AC134: 0.0 | AD134: 0.0 | AE134: 0.0 | AF134: 0.0 | AG134: 0.0 | AH134: 0 | AI134: 63.86 | AJ134: 66.47 | AK134: 101.79 | AL134: 33.76 | AM134: 20.01 | AN134: 40.02 | AO134: 15.14 | AP134: 72.38 | AQ134: 44.89 | AR134: 62.64 | AS134: 51.68 | AT134: 27.14 | AU134: 48.02 | AV134: 401.59 | AW134: 0 | AX134: 130.85 | AY134: 56.9 | AZ134: 37.76 | BA134: 29.93 | BB134: 0 | BC134: 0 | BD134: 0 | BE134: 0 | BF134: 0 | BG134: 0 | BH134: 0 | BI134: 0.02 | BJ134: 0 | BK134: 0 | BL134: 0 | BM134: 0 | BN134: 0 | BO134: 0 | BP134: 0 | BQ134: 0.01 | BR134: 0 | BS134: 0 | BT134: 0.06 | BU134: 0 | BV134: 0 | BW134: 0 | BX134: 0 | BY134: 0 | BZ134: 7.82 | CC134: 0 | CE134: 0 | CF134: 0 | CG134: 0 | CH134: 760 | CI134: 292.8 | CJ134: 526.4 | CK134: 6.08 | CL134: 6.08 | CM134: 6.08 | CN134: 0 | CO134: 0
A135: ="-" -> - | B135: Хлеб ржаной | C135: 10 | D135: 0.6 | E135: 0.1 | F135: 4.2 | G135: 19 | H135: 0.02 | I135: 0 | J135: 0 | K135: 0 | L135: 0.12 | M135: 3.22 | N135: 0.83 | O135: 0 | P135: 0 | Q135: 0.1 | R135: 0.25 | S135: 61 | T135: 24.5 | U135: 3.5 | V135: 4.7 | W135: 15.8 | X135: 0.4 | Y135: 0.0 | Z135: 0.5 | AA135: 0.1 | AB135: 0.1 | AC135: 0.0 | AD135: 0.0 | AE135: 0.1 | AF135: 0.2 | AG135: 0.0 | AH135: 0 | AI135: 32.2 | AJ135: 24.8 | AK135: 42.7 | AL135: 22.3 | AM135: 9.3 | AN135: 19.8 | AO135: 8 | AP135: 37.1 | AQ135: 29.7 | AR135: 29.1 | AS135: 46.4 | AT135: 12.4 | AU135: 31 | AV135: 155.9 | AW135: 0 | AX135: 52.6 | AY135: 29.1 | AZ135: 18 | BA135: 13 | BB135: 0 | BC135: 0 | BD135: 0 | BE135: 0 | BF135: 0 | BG135: 0 | BH135: 0 | BI135: 0.01 | BJ135: 0 | BK135: 0 | BL135: 0 | BM135: 0 | BN135: 0 | BO135: 0 | BP135: 0 | BQ135: 0.01 | BR135: 0 | BS135: 0 | BT135: 0.05 | BU135: 0.01 | BV135: 0 | BW135: 0 | BX135: 0 | BY135: 0 | BZ135: 4.7 | CC135: 0.08 | CE135: 3 | CF135: 3 | CG135: 3 | CH135: 570 | CI135: 219.6 | CJ135: 394.8 | CK135: 5.7 | CL135: 4.74 | CM135: 5.22 | CN135: 0 | CO135: 0
A136: ="27/10" -> 27/10 | B136: Чай полусладкий | C136: 180 | D136: 0.2 | E136: 0.0 | F136: 4.5 | G136: 18 | H136: 0 | I136: 0 | J136: 0 | K136: 0 | L136: 4.44 | M136: 0 | N136: 0.09 | O136: 0 | P136: 0 | Q136: 0 | R136: 0.05 | S136: 0.04 | T136: 0.13 | U136: 0.1 | V136: 0.0 | W136: 0.0 | X136: 0.0 | Y136: 0.0 | Z136: 0.0 | AA136: 0.0 | AB136: 0.0 | AC136: 0.0 | AD136: 0.0 | AE136: 0.0 | AF136: 0.0 | AG136: 0.0 | AH136: 0 | AI136: 0 | AJ136: 0 | AK136: 0 | AL136: 0 | AM136: 0 | AN136: 0 | AO136: 0 | AP136: 0 | AQ136: 0 | AR136: 0 | AS136: 0 | AT136: 0 | AU136: 0 | AV136: 0 | AW136: 0 | AX136: 0 | AY136: 0 | AZ136: 0 | BA136: 0 | BB136: 0 | BC136: 0 | BD136: 0 | BE136: 0 | BF136: 0 | BG136: 0 | BH136: 0 | BI136: 0 | BJ136: 0 | BK136: 0 | BL136: 0 | BM136: 0 | BN136: 0 | BO136: 0 | BP136: 0 | BQ136: 0 | BR136: 0 | BS136: 0 | BT136: 0 | BU136: 0 | BV136: 0 | BW136: 0 | BX136: 0 | BY136: 0 | BZ136: 180.08 | CC136: 0 | CE136: 3.69 | CF136: 3.69 | CG136: 3.69 | CH136: 398.25 | CI136: 156.6 | CJ136: 277.43 | CK136: 39.61 | CL136: 23.41 | CM136: 31.51 | CN136: 4.5 | CO136: 0
A137: ="24/2" -> 24/2 | B137: Суп молочный с вермишелью | C137: 180 | D137: 5.3 | E137: 4.7 | F137: 16.9 | G137: 130 | H137: 3.14 | I137: 0.05 | J137: 0 | K137: 0 | L137: 7.16 | M137: 9.26 | N137: 0.51 | O137: 0 | P137: 0 | Q137: 0.13 | R137: 1.32 | S137: 200.9 | T137: 199.99 | U137: 150.8 | V137: 19.0 | W137: 117.7 | X137: 0.4 | Y137: 35.8 | Z137: 17.5 | AA137: 39.5 | AB137: 0.2 | AC137: 0.1 | AD137: 0.2 | AE137: 0.3 | AF137: 1.4 | AG137: 0.7 | AH137: 0 | AI137: 67.63 | AJ137: 61.83 | AK137: 115.84 | AL137: 36.2 | AM137: 22.07 | AN137: 44.84 | AO137: 14.73 | AP137: 71.87 | AQ137: 47.52 | AR137: 57.29 | AS137: 49.18 | AT137: 28.89 | AU137: 50.22 | AV137: 441.02 | AW137: 0 | AX137: 138.97 | AY137: 72.01 | AZ137: 36.16 | BA137: 28.61 | BB137: 0.07 | BC137: 0.01 | BD137: 0.01 | BE137: 0.03 | BF137: 0.04 | BG137: 0.14 | BH137: 0 | BI137: 0.46 | BJ137: 0 | BK137: 0.13 | BL137: 0 | BM137: 0 | BN137: 0 | BO137: 0.01 | BP137: 0.05 | BQ137: 0.4 | BR137: 0 | BS137: 0 | BT137: 0.07 | BU137: 0 | BV137: 0 | BW137: 0 | BX137: 0 | BY137: 0 | BZ137: 150.66 | CC137: 38.74 | CE137: 25.98 | CF137: 9.96 | CG137: 17.97 | CH137: 836.83 | CI137: 369.91 | CJ137: 603.37 | CK137: 16.47 | CL137: 3.87 | CM137: 10.17 | CN137: 1.08 | CO137: 0.36
B138: Итого за 'Ужин' | C138: =SUM(C134:C137) -> 390 | D138: =SUM(D134:D137) -> 7.4 | E138: 5.0 | F138: 35.0 | G138: 212 | H138: 3.16 | I138: 0.05 | J138: 0 | K138: 0 | L138: 11.94 | M138: 21.6 | N138: 1.47 | O138: 0 | P138: 0 | Q138: 0.23 | R138: 1.98 | S138: 261.94 | T138: 224.62 | U138: 154.5 | V138: 23.7 | W138: 133.5 | X138: 0.8 | Y138: 35.8 | Z138: 18.0 | AA138: 39.6 | AB138: 0.4 | AC138: 0.1 | AD138: 0.2 | AE138: 0.3 | AF138: 1.6 | AG138: 0.7 | AH138: 0 | AI138: 163.69 | AJ138: 153.1 | AK138: 260.33 | AL138: 92.25 | AM138: 51.38 | AN138: 104.66 | AO138: 37.87 | AP138: 181.35 | AQ138: 122.11 | AR138: 149.03 | AS138: 147.26 | AT138: 68.44 | AU138: 129.25 | AV138: 998.51 | AW138: 0 | AX138: 322.42 | AY138: 158 | AZ138: 91.92 | BA138: 71.54 | BB138: 0.07 | BC138: 0.01 | BD138: 0.01 | BE138: 0.03 | BF138: 0.04 | BG138: 0.14 | BH138: 0 | BI138: 0.49 | BJ138: 0 | BK138: 0.14 | BL138: 0 | BM138: 0 | BN138: 0 | BO138: 0.01 | BP138: 0.05 | BQ138: 0.43 | BR138: 0 | BS138: 0 | BT138: 0.18 | BU138: 0.01 | BV138: 0 | BW138: 0 | BX138: 0 | BY138: 0 | BZ138: 343.26 | CB138: =$G$138/#REF!*100 ->  | CC138: 38.82 | CE138: 32.66 | CF138: 16.64 | CG138: 24.65 | CH138: 2565.08 | CI138: 1038.91 | CJ138: 1802 | CK138: 67.86 | CL138: 38.1 | CM138: 52.98 | CN138: 5.58 | CO138: 0.36
B139: Итого за день | C139: =C121+C124+C132+C138 -> 1535 | D139: =D121+D124+D132+D138 -> 38.9 | E139: 36.9 | F139: 184.7 | G139: 1225 | H139: 16.63 | I139: 3.78 | J139: 0 | K139: 0 | L139: 68.74 | M139: 99.89 | N139: 16.02 | O139: 0 | P139: 0 | Q139: 2 | R139: 11.08 | S139: 1641.39 | T139: 1652.63 | U139: 452.9 | V139: 188.8 | W139: 673.0 | X139: 6.9 | Y139: 122.2 | Z139: 1634.9 | AA139: 476.4 | AB139: 6.5 | AC139: 0.5 | AD139: 0.7 | AE139: 7.9 | AF139: 16.8 | AG139: 22.8 | AH139: 0 | AI139: 1232.39 | AJ139: 1095.38 | AK139: 1936.58 | AL139: 1294.68 | AM139: 509.24 | AN139: 927.83 | AO139: 350.23 | AP139: 1253.55 | AQ139: 1315.6 | AR139: 1413.81 | AS139: 1748.66 | AT139: 596.61 | AU139: 1320.2 | AV139: 5596.68 | AW139: 74.31 | AX139: 2024.19 | AY139: 1173.28 | AZ139: 820.11 | BA139: 447.6 | BB139: 0.38 | BC139: 0.16 | BD139: 0.09 | BE139: 0.21 | BF139: 0.25 | BG139: 1.09 | BH139: 0 | BI139: 3.59 | BJ139: 0 | BK139: 1.18 | BL139: 0.03 | BM139: 0.03 | BN139: 0 | BO139: 0.2 | BP139: 0.34 | BQ139: 4.09 | BR139: 0 | BS139: 0 | BT139: 3.7 | BU139: 0.06 | BV139: 0 | BW139: 0 | BX139: 0 | BY139: 0 | BZ139: 1392.67 | CC139: 394.69 | CE139: 175.99 | CF139: 90.32 | CG139: 133.16 | CH139: 11796.74 | CI139: 5244.32 | CJ139: 8520.53 | CK139: 291.69 | CL139: 172.7 | CM139: 232.2 | CN139: 31.11 | CO139: 2.67
B141: 6 день
B142: Завтрак
A143: ="-" -> - | B143: Хлеб пшеничный | C143: 25 | D143: 1.5 | E143: 0.2 | F143: 9.2 | G143: 45 | H143: 0 | I143: 0 | J143: 0 | K143: 0 | L143: 0.28 | M143: 8.9 | N143: 0.05 | O143: 0 | P143: 0 | Q143: 0 | R143: 0.45 | S143: 0 | T143: 0 | U143: 0.0 | V143: 0.0 | W143: 0.0 | X143: 0.0 | Y143: 0.0 | Z143: 0.0 | AA143: 0.0 | AB143: 0.0 | AC143: 0.0 | AD143: 0.0 | AE143: 0.0 | AF143: 0.0 | AG143: 0.0 | AH143: 0 | AI143: 79.82 | AJ143: 83.09 | AK143: 127.24 | AL143: 42.2 | AM143: 25.01 | AN143: 50.03 | AO143: 18.92 | AP143: 90.48 | AQ143: 56.12 | AR143: 78.3 | AS143: 64.6 | AT143: 33.93 | AU143: 60.03 | AV143: 501.99 | AW143: 0 | AX143: 163.56 | AY143: 71.12 | AZ143: 47.2 | BA143: 37.41 | BB143: 0 | BC143: 0 | BD143: 0 | BE143: 0 | BF143: 0 | BG143: 0 | BH143: 0 | BI143: 0.02 | BJ143: 0 | BK143: 0 | BL143: 0 | BM143: 0 | BN143: 0 | BO143: 0 | BP143: 0 | BQ143: 0.02 | BR143: 0 | BS143: 0 | BT143: 0.07 | BU143: 0 | BV143: 0 | BW143: 0 | BX143: 0 | BY143: 0 | BZ143: 9.78 | CC143: 0 | CE143: 0 | CF143: 0 | CG143: 0 | CH143: 570 | CI143: 219.6 | CJ143: 394.8 | CK143: 4.56 | CL143: 4.56 | CM143: 4.56 | CN143: 0 | CO143: 0
A144: ="1/6" -> 1/6 | B144: Яйцо отварное | C144: 60 | D144: 7.6 | E144: 6.9 | F144: 0.4 | G144: 94 | H144: 1.8 | I144: 0 | J144: 0 | K144: 0 | L144: 0.42 | M144: 0 | N144: 0 | O144: 0 | P144: 0 | Q144: 0 | R144: 0.6 | S144: 80.4 | T144: 84 | U144: 33.0 | V144: 7.2 | W144: 115.2 | X144: 1.5 | Y144: 150.0 | Z144: 36.0 | AA144: 156.0 | AB144: 0.4 | AC144: 0.0 | AD144: 0.3 | AE144: 0.1 | AF144: 2.2 | AG144: 0.0 | AH144: 0 | AI144: 463.2 | AJ144: 358.2 | AK144: 648.6 | AL144: 541.8 | AM144: 254.4 | AN144: 366 | AO144: 122.4 | AP144: 391.2 | AQ144: 426 | AR144: 472.2 | AS144: 737.4 | AT144: 204 | AU144: 249.6 | AV144: 1063.8 | AW144: 8.4 | AX144: 237.6 | AY144: 556.8 | AZ144: 285.6 | BA144: 175.8 | BB144: 0 | BC144: 0 | BD144: 0 | BE144: 0 | BF144: 0 | BG144: 0 | BH144: 0 | BI144: 0 | BJ144: 0 | BK144: 0 | BL144: 0 | BM144: 0 | BN144: 0 | BO144: 0 | BP144: 0 | BQ144: 0 | BR144: 0 | BS144: 0 | BT144: 0 | BU144: 0 | BV144: 0 | BW144: 0 | BX144: 0 | BY144: 0 | BZ144: 44.46 | CC144: 156 | CE144: 13.56 | CF144: 11.4 | CG144: 12.48 | CH144: 0 | CI144: 0 | CJ144: 0 | CK144: 6 | CL144: 4.2 | CM144: 5.1 | CN144: 0 | CO144: 0
A145: ="31/10" -> 31/10 | B145: Чай с молоком (вариант 3) | C145: 180 | D145: 1.5 | E145: 1.2 | F145: 6.7 | G145: 41 | H145: 0.77 | I145: 0 | J145: 0 | K145: 0 | L145: 6.55 | M145: 0 | N145: 0.09 | O145: 0 | P145: 0 | Q145: 0.05 | R145: 0.37 | S145: 22.32 | T145: 65.18 | U145: 52.5 | V145: 6.0 | W145: 37.7 | X145: 0.1 | Y145: 9.0 | Z145: 4.1 | AA145: 9.9 | AB145: 0.0 | AC145: 0.0 | AD145: 0.1 | AE145: 0.0 | AF145: 0.4 | AG145: 0.2 | AH145: 0 | AI145: 0 | AJ145: 0 | AK145: 0 | AL145: 0 | AM145: 0 | AN145: 0 | AO145: 0 | AP145: 0 | AQ145: 0 | AR145: 0 | AS145: 0 | AT145: 0 | AU145: 0 | AV145: 0 | AW145: 0 | AX145: 0 | AY145: 0 | AZ145: 0 | BA145: 0 | BB145: 0 | BC145: 0 | BD145: 0 | BE145: 0 | BF145: 0 | BG145: 0 | BH145: 0 | BI145: 0 | BJ145: 0 | BK145: 0 | BL145: 0 | BM145: 0 | BN145: 0 | BO145: 0 | BP145: 0 | BQ145: 0 | BR145: 0 | BS145: 0 | BT145: 0 | BU145: 0 | BV145: 0 | BW145: 0 | BX145: 0 | BY145: 0 | BZ145: 175.13 | CC145: 9.68 | CE145: 6.84 | CF145: 3.69 | CG145: 5.26 | CH145: 567 | CI145: 214.2 | CJ145: 390.6 | CK145: 35.65 | CL145: 19 | CM145: 27.32 | CN145: 4.5 | CO145: 0
A146: ="6/4" -> 6/4 | B146: Каша овсяная молочная с маслом сливочным | C146: 180 | D146: 6.9 | E146: 7.6 | F146: 30.8 | G146: 216 | H146: 4.15 | I146: 0.1 | J146: 0 | K146: 0 | L146: 8.24 | M146: 20.55 | N146: 2.05 | O146: 0 | P146: 0 | Q146: 0.09 | R146: 1.76 | S146: 224.83 | T146: 249.18 | U146: 125.7 | V146: 56.2 | W146: 186.7 | X146: 1.4 | Y146: 36.0 | Z146: 20.3 | AA146: 40.1 | AB146: 0.6 | AC146: 0.2 | AD146: 0.2 | AE146: 0.4 | AF146: 2.4 | AG146: 0.5 | AH146: 0 | AI146: 199.42 | AJ146: 142.22 | AK146: 227.38 | AL146: 150.16 | AM146: 43.79 | AN146: 136.14 | AO146: 70.69 | AP146: 191.31 | AQ146: 173.05 | AR146: 260.81 | AS146: 325.68 | AT146: 87.63 | AU146: 360.56 | AV146: 693.52 | AW146: 0 | AX146: 228.26 | AY146: 183.72 | AZ146: 158.14 | BA146: 99.93 | BB146: 0.12 | BC146: 0.05 | BD146: 0.03 | BE146: 0.07 | BF146: 0.08 | BG146: 0.36 | BH146: 0 | BI146: 1.44 | BJ146: 0 | BK146: 0.32 | BL146: 0 | BM146: 0 | BN146: 0 | BO146: 0.07 | BP146: 0.1 | BQ146: 1.55 | BR146: 0 | BS146: 0 | BT146: 0.84 | BU146: 0.02 | BV146: 0 | BW146: 0 | BX146: 0 | BY146: 0 | BZ146: 146.75 | CC146: 39.38 | CE146: 31.89 | CF146: 12.86 | CG146: 22.37 | CH146: 1980.6 | CI146: 899.57 | CJ146: 1440.09 | CK146: 32.08 | CL146: 15.9 | CM146: 23.99 | CN146: 3.6 | CO146: 0.45
B147: Итого за 'Завтрак' | C147: =SUM(C143:C146) -> 445 | D147: =SUM(D143:D146) -> 17.5 | E147: 15.8 | F147: 47.1 | G147: 397 | H147: 6.72 | I147: 0.1 | J147: 0 | K147: 0 | L147: 15.49 | M147: 29.45 | N147: 2.19 | O147: 0 | P147: 0 | Q147: 0.14 | R147: 3.18 | S147: 327.55 | T147: 398.36 | U147: 211.2 | V147: 69.4 | W147: 339.6 | X147: 2.9 | Y147: 195.0 | Z147: 60.3 | AA147: 206.0 | AB147: 1.0 | AC147: 0.2 | AD147: 0.5 | AE147: 0.6 | AF147: 4.9 | AG147: 0.7 | AH147: 0 | AI147: 742.44 | AJ147: 583.51 | AK147: 1003.22 | AL147: 734.16 | AM147: 323.2 | AN147: 552.16 | AO147: 212.01 | AP147: 672.99 | AQ147: 655.16 | AR147: 811.31 | AS147: 1127.68 | AT147: 325.56 | AU147: 670.19 | AV147: 2259.31 | AW147: 8.4 | AX147: 629.42 | AY147: 811.64 | AZ147: 490.94 | BA147: 313.14 | BB147: 0.12 | BC147: 0.05 | BD147: 0.03 | BE147: 0.07 | BF147: 0.08 | BG147: 0.36 | BH147: 0 | BI147: 1.46 | BJ147: 0 | BK147: 0.32 | BL147: 0 | BM147: 0 | BN147: 0 | BO147: 0.07 | BP147: 0.1 | BQ147: 1.57 | BR147: 0 | BS147: 0 | BT147: 0.91 | BU147: 0.02 | BV147: 0 | BW147: 0 | BX147: 0 | BY147: 0 | BZ147: 376.12 | CB147: =$G$147/#REF!*100 ->  | CC147: 205.05 | CE147: 52.29 | CF147: 27.94 | CG147: 40.12 | CH147: 3117.6 | CI147: 1333.37 | CJ147: 2225.49 | CK147: 78.29 | CL147: 43.66 | CM147: 60.98 | CN147: 8.1 | CO147: 0.45
B148: 10:00
A149: ="1" -> 1 | B149: Кисель из концентрата | C149: 100 | D149: 0.5 | E149: 0.1 | F149: 7.1 | G149: 32 | H149: 0 | I149: 0 | J149: 0 | K149: 0 | L149: 0 | M149: 7.07 | N149: 0 | O149: 0 | P149: 0 | Q149: 0 | R149: 0 | S149: 0 | T149: 0 | U149: 0.0 | V149: 0.0 | W149: 0.0 | X149: 0.0 | Y149: 0.0 | Z149: 0.0 | AA149: 0.0 | AB149: 0.0 | AC149: 0.0 | AD149: 0.0 | AE149: 0.0 | AF149: 0.0 | AG149: 0.0 | AH149: 0 | AI149: 0 | AJ149: 0 | AK149: 0 | AL149: 0 | AM149: 0 | AN149: 0 | AO149: 0 | AP149: 0 | AQ149: 0 | AR149: 0 | AS149: 0 | AT149: 0 | AU149: 0 | AV149: 0 | AW149: 0 | AX149: 0 | AY149: 0 | AZ149: 0 | BA149: 0 | BB149: 0 | BC149: 0 | BD149: 0 | BE149: 0 | BF149: 0 | BG149: 0 | BH149: 0 | BI149: 0 | BJ149: 0 | BK149: 0 | BL149: 0 | BM149: 0 | BN149: 0 | BO149: 0 | BP149: 0 | BQ149: 0 | BR149: 0 | BS149: 0 | BT149: 0 | BU149: 0 | BV149: 0 | BW149: 0 | BX149: 0 | BY149: 0 | BZ149: 95.11 | CC149: 0 | CE149: 0 | CF149: 0 | CG149: 0 | CH149: 0 | CI149: 0 | CJ149: 0 | CK149: 0 | CL149: 0 | CM149: 0 | CN149: 0 | CO149: 0
A150: ="-" -> - | B150: Печенье | C150: 20 | D150: 0.4 | E150: 2.6 | F150: 11.5 | G150: 70 | H150: 0.42 | I150: 0 | J150: 0 | K150: 0 | L150: 5 | M150: 6 | N150: 0.46 | O150: 0 | P150: 0 | Q150: 0.1 | R150: 0.2 | S150: 66 | T150: 22 | U150: 5.8 | V150: 4.0 | W150: 18.0 | X150: 0.4 | Y150: 2.0 | Z150: 1.6 | AA150: 2.2 | AB150: 0.7 | AC150: 0.0 | AD150: 0.0 | AE150: 0.1 | AF150: 0.4 | AG150: 0.0 | AH150: 0 | AI150: 0 | AJ150: 0 | AK150: 0 | AL150: 0 | AM150: 0 | AN150: 0 | AO150: 0 | AP150: 0 | AQ150: 0 | AR150: 0 | AS150: 0 | AT150: 0 | AU150: 0 | AV150: 0 | AW150: 0 | AX150: 0 | AY150: 0 | AZ150: 0 | BA150: 0 | BB150: 0 | BC150: 0 | BD150: 0 | BE150: 0 | BF150: 0 | BG150: 0 | BH150: 0 | BI150: 0 | BJ150: 0 | BK150: 0 | BL150: 0 | BM150: 0 | BN150: 0 | BO150: 0 | BP150: 0 | BQ150: 0 | BR150: 0 | BS150: 0 | BT150: 0 | BU150: 0 | BV150: 0 | BW150: 0 | BX150: 0 | BY150: 0 | BZ150: 0.9 | CC150: 2.27 | CE150: 0 | CF150: 0 | CG150: 0 | CH150: 0 | CI150: 0 | CJ150: 0 | CK150: 0 | CL150: 0 | CM150: 0 | CN150: 0 | CO150: 0
B151: Итого за '10:00' | C151: =SUM(C149:C150) -> 120 | D151: =SUM(D149:D150) -> 0.9 | E151: 2.7 | F151: 18.5 | G151: 102 | H151: 0.42 | I151: 0 | J151: 0 | K151: 0 | L151: 5 | M151: 13.07 | N151: 0.46 | O151: 0 | P151: 0 | Q151: 0.1 | R151: 0.2 | S151: 66 | T151: 22 | U151: 5.8 | V151: 4.0 | W151: 18.0 | X151: 0.4 | Y151: 2.0 | Z151: 1.6 | AA151: 2.2 | AB151: 0.7 | AC151: 0.0 | AD151: 0.0 | AE151: 0.1 | AF151: 0.4 | AG151: 0.0 | AH151: 0 | AI151: 0 | AJ151: 0 | AK151: 0 | AL151: 0 | AM151: 0 | AN151: 0 | AO151: 0 | AP151: 0 | AQ151: 0 | AR151: 0 | AS151: 0 | AT151: 0 | AU151: 0 | AV151: 0 | AW151: 0 | AX151: 0 | AY151: 0 | AZ151: 0 | BA151: 0 | BB151: 0 | BC151: 0 | BD151: 0 | BE151: 0 | BF151: 0 | BG151: 0 | BH151: 0 | BI151: 0 | BJ151: 0 | BK151: 0 | BL151: 0 | BM151: 0 | BN151: 0 | BO151: 0 | BP151: 0 | BQ151: 0 | BR151: 0 | BS151: 0 | BT151: 0 | BU151: 0 | BV151: 0 | BW151: 0 | BX151: 0 | BY151: 0 | BZ151: 96.01 | CB151: =$G$151/#REF!*100 ->  | CC151: 2.27 | CE151: 0 | CF151: 0 | CG151: 0 | CH151: 0 | CI151: 0 | CJ151: 0 | CK151: 0 | CL151: 0 | CM151: 0 | CN151: 0 | CO151: 0
B152: Обед
A153: ="-" -> - | B153: Хлеб пшеничный | C153: 20 | D153: 1.2 | E153: 0.1 | F153: 7.4 | G153: 36 | H153: 0 | I153: 0 | J153: 0 | K153: 0 | L153: 0.22 | M153: 7.12 | N153: 0.04 | O153: 0 | P153: 0 | Q153: 0 | R153: 0.36 | S153: 0 | T153: 0 | U153: 0.0 | V153: 0.0 | W153: 0.0 | X153: 0.0 | Y153: 0.0 | Z153: 0.0 | AA153: 0.0 | AB153: 0.0 | AC153: 0.0 | AD153: 0.0 | AE153: 0.0 | AF153: 0.0 | AG153: 0.0 | AH153: 0 | AI153: 63.86 | AJ153: 66.47 | AK153: 101.79 | AL153: 33.76 | AM153: 20.01 | AN153: 40.02 | AO153: 15.14 | AP153: 72.38 | AQ153: 44.89 | AR153: 62.64 | AS153: 51.68 | AT153: 27.14 | AU153: 48.02 | AV153: 401.59 | AW153: 0 | AX153: 130.85 | AY153: 56.9 | AZ153: 37.76 | BA153: 29.93 | BB153: 0 | BC153: 0 | BD153: 0 | BE153: 0 | BF153: 0 | BG153: 0 | BH153: 0 | BI153: 0.02 | BJ153: 0 | BK153: 0 | BL153: 0 | BM153: 0 | BN153: 0 | BO153: 0 | BP153: 0 | BQ153: 0.01 | BR153: 0 | BS153: 0 | BT153: 0.06 | BU153: 0 | BV153: 0 | BW153: 0 | BX153: 0 | BY153: 0 | BZ153: 7.82 | CC153: 0 | CE153: 0 | CF153: 0 | CG153: 0 | CH153: 380 | CI153: 146.4 | CJ153: 263.2 | CK153: 3.04 | CL153: 3.04 | CM153: 3.04 | CN153: 0 | CO153: 0
A154: ="-" -> - | B154: Хлеб ржаной | C154: 30 | D154: 1.8 | E154: 0.4 | F154: 12.5 | G154: 57 | H154: 0.06 | I154: 0 | J154: 0 | K154: 0 | L154: 0.36 | M154: 9.66 | N154: 2.49 | O154: 0 | P154: 0 | Q154: 0.3 | R154: 0.75 | S154: 183 | T154: 73.5 | U154: 10.5 | V154: 14.1 | W154: 47.4 | X154: 1.2 | Y154: 0.0 | Z154: 1.5 | AA154: 0.3 | AB154: 0.4 | AC154: 0.1 | AD154: 0.0 | AE154: 0.2 | AF154: 0.6 | AG154: 0.0 | AH154: 0 | AI154: 96.6 | AJ154: 74.4 | AK154: 128.1 | AL154: 66.9 | AM154: 27.9 | AN154: 59.4 | AO154: 24 | AP154: 111.3 | AQ154: 89.1 | AR154: 87.3 | AS154: 139.2 | AT154: 37.2 | AU154: 93 | AV154: 467.7 | AW154: 0 | AX154: 157.8 | AY154: 87.3 | AZ154: 54 | BA154: 39 | BB154: 0 | BC154: 0 | BD154: 0 | BE154: 0 | BF154: 0 | BG154: 0 | BH154: 0 | BI154: 0.04 | BJ154: 0 | BK154: 0 | BL154: 0.01 | BM154: 0 | BN154: 0 | BO154: 0 | BP154: 0 | BQ154: 0.03 | BR154: 0 | BS154: 0 | BT154: 0.14 | BU154: 0.02 | BV154: 0 | BW154: 0 | BX154: 0 | BY154: 0 | BZ154: 14.1 | CC154: 0.25 | CE154: 4 | CF154: 4 | CG154: 4 | CH154: 760 | CI154: 292.8 | CJ154: 526.4 | CK154: 7.6 | CL154: 6.32 | CM154: 6.96 | CN154: 0 | CO154: 0
A155: ="3/10" -> 3/10 | B155: Компот из яблок | C155: 180 | D155: 0.1 | E155: 0.1 | F155: 17.3 | G155: 67 | H155: 0.04 | I155: 0 | J155: 0 | K155: 0 | L155: 16.38 | M155: 0.27 | N155: 0.62 | O155: 0 | P155: 0 | Q155: 0.29 | R155: 0.19 | S155: 9.4 | T155: 99.48 | U155: 6.0 | V155: 3.1 | W155: 3.7 | X155: 0.8 | Y155: 0.0 | Z155: 9.7 | AA155: 1.8 | AB155: 0.1 | AC155: 0.0 | AD155: 0.0 | AE155: 0.1 | AF155: 0.1 | AG155: 1.4 | AH155: 0 | AI155: 4.23 | AJ155: 4.59 | AK155: 6.7 | AL155: 6.35 | AM155: 1.06 | AN155: 3.88 | AO155: 1.06 | AP155: 3.18 | AQ155: 6 | AR155: 3.53 | AS155: 27.52 | AT155: 2.47 | AU155: 4.94 | AV155: 14.82 | AW155: 0 | AX155: 4.59 | AY155: 5.64 | AZ155: 2.12 | BA155: 1.76 | BB155: 0 | BC155: 0 | BD155: 0 | BE155: 0 | BF155: 0 | BG155: 0 | BH155: 0 | BI155: 0 | BJ155: 0 | BK155: 0 | BL155: 0 | BM155: 0 | BN155: 0 | BO155: 0 | BP155: 0 | BQ155: 0 | BR155: 0 | BS155: 0 | BT155: 0 | BU155: 0 | BV155: 0 | BW155: 0 | BX155: 0 | BY155: 0 | BZ155: 220.08 | CC155: 1.62 | CE155: 4.5 | CF155: 4.5 | CG155: 4.5 | CH155: 432 | CI155: 208.98 | CJ155: 320.49 | CK155: 41.2 | CL155: 24.19 | CM155: 32.7 | CN155: 13.5 | CO155: 0
A156: ="11/2" -> 11/2 | B156: Рассольник с крупой на говяжьем бульоне | C156: 180 | D156: 2.4 | E156: 7.6 | F156: 12.4 | G156: 126 | H156: 1.87 | I156: 2.34 | J156: 0 | K156: 0 | L156: 1.53 | M156: 9.55 | N156: 1.28 | O156: 0 | P156: 0 | Q156: 0.21 | R156: 2.23 | S156: 542.77 | T156: 307.06 | U156: 14.3 | V156: 16.4 | W156: 45.7 | X156: 0.6 | Y156: 0.0 | Z156: 702.4 | AA156: 146.2 | AB156: 1.7 | AC156: 0.1 | AD156: 0.1 | AE156: 0.7 | AF156: 1.2 | AG156: 4.8 | AH156: 0 | AI156: 30.86 | AJ156: 35.97 | AK156: 47.99 | AL156: 45.82 | AM156: 10.36 | AN156: 31.71 | AO156: 14.59 | AP156: 40.2 | AQ156: 43.52 | AR156: 93.47 | AS156: 64.64 | AT156: 13.14 | AU156: 32.59 | AV156: 235.97 | AW156: 0 | AX156: 49.75 | AY156: 29.81 | AZ156: 23.89 | BA156: 13.16 | BB156: 0 | BC156: 0 | BD156: 0 | BE156: 0 | BF156: 0 | BG156: 0 | BH156: 0 | BI156: 0.24 | BJ156: 0 | BK156: 0.14 | BL156: 0.01 | BM156: 0.02 | BN156: 0 | BO156: 0 | BP156: 0 | BQ156: 0.83 | BR156: 0 | BS156: 0 | BT156: 2.18 | BU156: 0 | BV156: 0 | BW156: 0 | BX156: 0 | BY156: 0 | BZ156: 197.32 | CC156: 117.07 | CE156: 49.97 | CF156: 27.9 | CG156: 38.93 | CH156: 788.76 | CI156: 419.65 | CJ156: 604.2 | CK156: 40.53 | CL156: 19.87 | CM156: 30.2 | CN156: 0 | CO156: 1.08
A157: ="46/3" -> 46/3 | B157: Макаронные изделия отварные с маслом сливочным | C157: 150 | D157: 5.3 | E157: 3.0 | F157: 34.1 | G157: 184 | H157: 1.87 | I157: 0.08 | J157: 0 | K157: 0 | L157: 0.97 | M157: 31.42 | N157: 1.72 | O157: 0 | P157: 0 | Q157: 0 | R157: 0.68 | S157: 147.26 | T157: 56.22 | U157: 10.5 | V157: 7.2 | W157: 39.8 | X157: 0.7 | Y157: 9.0 | Z157: 9.0 | AA157: 16.9 | AB157: 0.8 | AC157: 0.1 | AD157: 0.0 | AE157: 0.5 | AF157: 1.5 | AG157: 0.0 | AH157: 0 | AI157: 229.67 | AJ157: 209.98 | AK157: 393.39 | AL157: 122.87 | AM157: 74.91 | AN157: 152.19 | AO157: 49.94 | AP157: 244.06 | AQ157: 161.39 | AR157: 194.59 | AS157: 166.92 | AT157: 98.07 | AU157: 170.55 | AV157: 1497.86 | AW157: 0 | AX157: 471.98 | AY157: 244.48 | AZ157: 122.77 | BA157: 97.19 | BB157: 0.09 | BC157: 0.04 | BD157: 0.02 | BE157: 0.05 | BF157: 0.06 | BG157: 0.26 | BH157: 0 | BI157: 0.81 | BJ157: 0 | BK157: 0.23 | BL157: 0 | BM157: 0 | BN157: 0 | BO157: 0.05 | BP157: 0.08 | BQ157: 0.6 | BR157: 0 | BS157: 0 | BT157: 0.24 | BU157: 0.01 | BV157: 0 | BW157: 0 | BX157: 0 | BY157: 0 | BZ157: 313.57 | CC157: 10.5 | CE157: 15.92 | CF157: 8.3 | CG157: 12.11 | CH157: 369.83 | CI157: 365.4 | CJ157: 367.62 | CK157: 9.36 | CL157: 4.76 | CM157: 7.06 | CN157: 0 | CO157: 0.45
A158: ="12/7" -> 12/7 | B158: Биточки (котлеты) из рыбы минтай | C158: 70 | D158: 8.5 | E158: 4.5 | F158: 9.8 | G158: 114 | H158: 0.64 | I158: 2.73 | J158: 0 | K158: 0 | L158: 0.32 | M158: 8.93 | N158: 0.59 | O158: 0 | P158: 0 | Q158: 0.07 | R158: 1.41 | S158: 175.57 | T158: 159.42 | U158: 22.5 | V158: 30.3 | W158: 125.9 | X158: 0.8 | Y158: 4.6 | Z158: 0.3 | AA158: 4.7 | AB158: 2.2 | AC158: 0.1 | AD158: 0.1 | AE158: 0.9 | AF158: 2.6 | AG158: 0.2 | AH158: 0 | AI158: 43.93 | AJ158: 45.73 | AK158: 70.02 | AL158: 23.22 | AM158: 13.77 | AN158: 27.53 | AO158: 10.41 | AP158: 49.8 | AQ158: 30.88 | AR158: 43.09 | AS158: 35.55 | AT158: 18.67 | AU158: 33.04 | AV158: 276.27 | AW158: 0 | AX158: 90.01 | AY158: 39.14 | AZ158: 25.97 | BA158: 20.59 | BB158: 0 | BC158: 0 | BD158: 0 | BE158: 0 | BF158: 0 | BG158: 0 | BH158: 0 | BI158: 0.25 | BJ158: 0 | BK158: 0.16 | BL158: 0.01 | BM158: 0.03 | BN158: 0 | BO158: 0 | BP158: 0 | BQ158: 0.93 | BR158: 0 | BS158: 0 | BT158: 2.32 | BU158: 0 | BV158: 0 | BW158: 0 | BX158: 0 | BY158: 0 | BZ158: 60.19 | CC158: 4.67 | CE158: 86.1 | CF158: 17.64 | CG158: 51.87 | CH158: 864.5 | CI158: 301.53 | CJ158: 583.01 | CK158: 20.63 | CL158: 20.63 | CM158: 20.63 | CN158: 0 | CO158: 0.42
B159: Итого за 'Обед' | C159: =SUM(C153:C158) -> 630 | D159: =SUM(D153:D158) -> 19.4 | E159: 15.6 | F159: 93.5 | G159: 584 | H159: 4.48 | I159: 5.15 | J159: 0 | K159: 0 | L159: 19.78 | M159: 66.95 | N159: 6.74 | O159: 0 | P159: 0 | Q159: 0.87 | R159: 5.62 | S159: 1058 | T159: 695.68 | U159: 63.8 | V159: 71.0 | W159: 262.5 | X159: 4.2 | Y159: 13.6 | Z159: 722.9 | AA159: 169.8 | AB159: 5.2 | AC159: 0.3 | AD159: 0.2 | AE159: 2.4 | AF159: 6.0 | AG159: 6.5 | AH159: 0 | AI159: 469.16 | AJ159: 437.14 | AK159: 747.99 | AL159: 298.92 | AM159: 148 | AN159: 314.73 | AO159: 115.13 | AP159: 520.91 | AQ159: 375.78 | AR159: 484.63 | AS159: 485.51 | AT159: 196.7 | AU159: 382.14 | AV159: 2894.21 | AW159: 0 | AX159: 904.98 | AY159: 463.28 | AZ159: 266.51 | BA159: 201.64 | BB159: 0.09 | BC159: 0.04 | BD159: 0.02 | BE159: 0.05 | BF159: 0.06 | BG159: 0.26 | BH159: 0 | BI159: 1.36 | BJ159: 0 | BK159: 0.53 | BL159: 0.03 | BM159: 0.05 | BN159: 0 | BO159: 0.05 | BP159: 0.09 | BQ159: 2.4 | BR159: 0 | BS159: 0 | BT159: 4.95 | BU159: 0.04 | BV159: 0 | BW159: 0 | BX159: 0 | BY159: 0 | BZ159: 813.08 | CB159: =$G$159/#REF!*100 ->  | CC159: 134.11 | CE159: 160.48 | CF159: 62.34 | CG159: 111.41 | CH159: 3595.08 | CI159: 1734.76 | CJ159: 2664.92 | CK159: 122.36 | CL159: 78.81 | CM159: 100.59 | CN159: 13.5 | CO159: 1.95
B160: Уплотненный полдник
A161: ="-" -> - | B161: Сок в ассортименте | C161: 180 | D161: 0.9 | E161: 0.2 | F161: 18.5 | G161: 78 | H161: 0 | I161: 0 | J161: 0 | K161: 0 | L161: 17.82 | M161: 0.36 | N161: 0.36 | O161: 0 | P161: 0 | Q161: 0.9 | R161: 0.54 | S161: 10.8 | T161: 216 | U161: 12.6 | V161: 7.2 | W161: 12.6 | X161: 2.5 | Y161: 0.0 | Z161: 0.0 | AA161: 0.0 | AB161: 0.2 | AC161: 0.0 | AD161: 0.0 | AE161: 0.2 | AF161: 0.4 | AG161: 3.6 | AH161: 0.36 | AI161: 14.4 | AJ161: 18 | AK161: 25.2 | AL161: 25.2 | AM161: 3.6 | AN161: 14.4 | AO161: 3.6 | AP161: 12.6 | AQ161: 23.4 | AR161: 14.4 | AS161: 104.4 | AT161: 9 | AU161: 19.8 | AV161: 57.6 | AW161: 0 | AX161: 18 | AY161: 21.6 | AZ161: 9 | BA161: 7.2 | BB161: 0 | BC161: 0 | BD161: 0 | BE161: 0 | BF161: 0 | BG161: 0 | BH161: 0 | BI161: 0 | BJ161: 0 | BK161: 0 | BL161: 0 | BM161: 0 | BN161: 0 | BO161: 0 | BP161: 0 | BQ161: 0 | BR161: 0 | BS161: 0 | BT161: 0 | BU161: 0 | BV161: 0 | BW161: 0 | BX161: 0 | BY161: 0 | BZ161: 158.58 | CC161: 0 | CE161: 3.6 | CF161: 3.6 | CG161: 3.6 | CH161: 360 | CI161: 163.8 | CJ161: 261.9 | CK161: 0.54 | CL161: 0.54 | CM161: 0.54 | CN161: 0 | CO161: 0
A162: ="-" -> - | B162: Хлеб ржаной | C162: 30 | D162: 1.8 | E162: 0.4 | F162: 12.5 | G162: 57 | H162: 0.06 | I162: 0 | J162: 0 | K162: 0 | L162: 0.36 | M162: 9.66 | N162: 2.49 | O162: 0 | P162: 0 | Q162: 0.3 | R162: 0.75 | S162: 183 | T162: 73.5 | U162: 10.5 | V162: 14.1 | W162: 47.4 | X162: 1.2 | Y162: 0.0 | Z162: 1.5 | AA162: 0.3 | AB162: 0.4 | AC162: 0.1 | AD162: 0.0 | AE162: 0.2 | AF162: 0.6 | AG162: 0.0 | AH162: 0 | AI162: 96.6 | AJ162: 74.4 | AK162: 128.1 | AL162: 66.9 | AM162: 27.9 | AN162: 59.4 | AO162: 24 | AP162: 111.3 | AQ162: 89.1 | AR162: 87.3 | AS162: 139.2 | AT162: 37.2 | AU162: 93 | AV162: 467.7 | AW162: 0 | AX162: 157.8 | AY162: 87.3 | AZ162: 54 | BA162: 39 | BB162: 0 | BC162: 0 | BD162: 0 | BE162: 0 | BF162: 0 | BG162: 0 | BH162: 0 | BI162: 0.04 | BJ162: 0 | BK162: 0 | BL162: 0.01 | BM162: 0 | BN162: 0 | BO162: 0 | BP162: 0 | BQ162: 0.03 | BR162: 0 | BS162: 0 | BT162: 0.14 | BU162: 0.02 | BV162: 0 | BW162: 0 | BX162: 0 | BY162: 0 | BZ162: 14.1 | CC162: 0.25 | CE162: 4 | CF162: 4 | CG162: 4 | CH162: 760 | CI162: 292.8 | CJ162: 526.4 | CK162: 7.6 | CL162: 6.32 | CM162: 6.96 | CN162: 0 | CO162: 0
A163: ="10/150" -> 10/150 | B163: Сырники из творога со сметаной | C163: 120 | D163: 25.0 | E163: 6.6 | F163: 19.7 | G163: 240 | H163: 1.64 | I163: 3.12 | J163: 0 | K163: 0 | L163: 8.29 | M163: 10.84 | N163: 0.56 | O163: 0 | P163: 0 | Q163: 1.33 | R163: 1.74 | S163: 151.12 | T163: 143.38 | U163: 126.6 | V163: 26.7 | W163: 196.4 | X163: 0.6 | Y163: 16.0 | Z163: 4.3 | AA163: 17.6 | AB163: 2.4 | AC163: 0.1 | AD163: 0.3 | AE163: 0.6 | AF163: 5.0 | AG163: 0.3 | AH163: 0 | AI163: 1126.11 | AJ163: 1121.85 | AK163: 2076.03 | AL163: 1568.78 | AM163: 536.23 | AN163: 898.25 | AO163: 209.94 | AP163: 1063.71 | AQ163: 536.48 | AR163: 930.79 | AS163: 1136.31 | AT163: 621.98 | AU163: 341.59 | AV163: 3958.22 | AW163: 0.64 | AX163: 2276.17 | AY163: 963.44 | AZ163: 1015.79 | BA163: 147.88 | BB163: 0 | BC163: 0 | BD163: 0 | BE163: 0 | BF163: 0 | BG163: 0 | BH163: 0 | BI163: 0.3 | BJ163: 0 | BK163: 0.19 | BL163: 0.01 | BM163: 0.03 | BN163: 0 | BO163: 0 | BP163: 0 | BQ163: 1.1 | BR163: 0 | BS163: 0 | BT163: 2.77 | BU163: 0 | BV163: 0 | BW163: 0 | BX163: 0 | BY163: 0 | BZ163: 87.07 | CC163: 16.68 | CE163: 13.19 | CF163: 7.26 | CG163: 10.23 | CH163: 730.08 | CI163: 511.68 | CJ163: 620.88 | CK163: 17.11 | CL163: 12.48 | CM163: 14.96 | CN163: 4.8 | CO163: 0.29
A164: ="-" -> - | C164: 10 | D164: 0.2 | E164: 1.3 | F164: 0.3 | G164: 14 | H164: 0.9 | I164: 0 | J164: 0 | K164: 0 | L164: 0.33 | M164: 0 | N164: 0 | O164: 0 | P164: 0 | Q164: 0.08 | R164: 0.05 | S164: 4 | T164: 10.21 | U164: 7.7 | V164: 0.8 | W164: 5.3 | X164: 0.0 | Y164: 6.0 | Z164: 3.2 | AA164: 10.7 | AB164: 0.0 | AC164: 0.0 | AD164: 0.0 | AE164: 0.0 | AF164: 0.1 | AG164: 0.0 | AH164: 0 | AI164: 97.29 | AJ164: 73.51 | AK164: 155.76 | AL164: 157.17 | AM164: 48.41 | AN164: 80.75 | AO164: 21.43 | AP164: 75.48 | AQ164: 108.38 | AR164: 101.8 | AS164: 178.98 | AT164: 67.49 | AU164: 92.68 | AV164: 311.14 | AW164: 0 | AX164: 80.75 | AY164: 82.91 | AZ164: 65.71 | BA164: 27.82 | BB164: 0 | BC164: 0 | BD164: 0 | BE164: 0 | BF164: 0 | BG164: 0 | BH164: 0 | BI164: 0 | BJ164: 0 | BK164: 0 | BL164: 0 | BM164: 0 | BN164: 0 | BO164: 0 | BP164: 0 | BQ164: 0 | BR164: 0 | BS164: 0 | BT164: 0 | BU164: 0.01 | BV164: 0 | BW164: 0 | BX164: 0 | BY164: 0 | BZ164: 7.75 | CC164: 6.53 | CE164: 0.7 | CF164: 0.7 | CG164: 0.7 | CH164: 20 | CI164: 8.2 | CJ164: 14.1 | CK164: 0.03 | CL164: 0.03 | CM164: 0.03 | CN164: 0 | CO164: 0
B165: Итого за 'Ужин' | C165: =SUM(C161:C164) -> 340 | D165: =SUM(D161:D164) -> 27.9 | E165: 8.5 | F165: 51.1 | G165: 390 | H165: 2.6 | I165: 3.12 | J165: 0 | K165: 0 | L165: 26.8 | M165: 20.86 | N165: 3.41 | O165: 0 | P165: 0 | Q165: 2.61 | R165: 3.08 | S165: 348.92 | T165: 443.09 | U165: 157.5 | V165: 48.8 | W165: 261.7 | X165: 4.3 | Y165: 22.0 | Z165: 9.0 | AA165: 28.6 | AB165: 3.0 | AC165: 0.1 | AD165: 0.3 | AE165: 1.0 | AF165: 6.1 | AG165: 3.9 | AH165: 0.36 | AI165: 1334.4 | AJ165: 1287.76 | AK165: 2385.09 | AL165: 1818.05 | AM165: 616.14 | AN165: 1052.8 | AO165: 258.97 | AP165: 1263.09 | AQ165: 757.36 | AR165: 1134.29 | AS165: 1558.89 | AT165: 735.67 | AU165: 547.07 | AV165: 4794.66 | AW165: 0.64 | AX165: 2532.72 | AY165: 1155.25 | AZ165: 1144.5 | BA165: 221.9 | BB165: 0 | BC165: 0 | BD165: 0 | BE165: 0 | BF165: 0 | BG165: 0 | BH165: 0 | BI165: 0.34 | BJ165: 0 | BK165: 0.19 | BL165: 0.02 | BM165: 0.03 | BN165: =SUM(BN161:BN164) -> 0 | BO165: 0 | BP165: 0 | BQ165: 1.13 | BR165: 0 | BS165: 0 | BT165: 2.91 | BU165: 0.03 | BV165: 0 | BW165: 0 | BX165: 0 | BY165: 0 | BZ165: 267.5 | CA165: 0 | CB165: 0 | CC165: 23.46 | CD165: 0 | CE165: 21.49 | CF165: 15.56 | CG165: 18.53 | CH165: 1870.08 | CI165: 976.48 | CJ165: 1423.28 | CK165: 25.28 | CL165: 19.37 | CM165: 22.49 | CN165: 4.8 | CO165: 0.29
B166: Итого за день | C166: =C147+C151+C159+C165 -> 1535 | D166: 65.8 | E166: 42.6 | F166: 210.2 | G166: 1473 | H166: 14.22 | I166: 8.37 | J166: 0 | K166: 0 | L166: 67.07 | M166: 130.33 | N166: 12.8 | O166: 0 | P166: 0 | Q166: 3.72 | R166: 12.08 | S166: 1800.47 | T166: 1559.13 | U166: 438.3 | V166: 193.2 | W166: 881.7 | X166: 11.8 | Y166: 232.6 | Z166: 793.9 | AA166: 406.6 | AB166: 9.9 | AC166: 0.6 | AD166: 1.0 | AE166: 4.0 | AF166: 17.4 | AG166: 11.1 | AH166: 0.36 | AI166: 2449.41 | AJ166: 2234 | AK166: 4008.2 | AL166: 2784.22 | AM166: 1059.44 | AN166: 1860.29 | AO166: 562.12 | AP166: 2345.69 | AQ166: 1699.21 | AR166: 2342.92 | AS166: 3032.87 | AT166: 1220.73 | AU166: 1506.41 | AV166: 9480.47 | AW166: 9.04 | AX166: 3909.32 | AY166: 2342.87 | AZ166: 1847.94 | BA166: 697.68 | BB166: 0.21 | BC166: 0.09 | BD166: 0.05 | BE166: 0.12 | BF166: 0.13 | BG166: 0.62 | BH166: 0 | BI166: 3.12 | BJ166: 0 | BK166: 1.04 | BL166: 0.04 | BM166: 0.08 | BN166: 0 | BO166: 0.12 | BP166: 0.19 | BQ166: 5.07 | BR166: 0 | BS166: 0 | BT166: 8.63 | BU166: 0.07 | BV166: 0 | BW166: 0 | BX166: 0 | BY166: 0 | BZ166: 1538.61 | CC166: 364.64 | CE166: 230.26 | CF166: 101.85 | CG166: 166.05 | CH166: 7822.76 | CI166: 3751.81 | CJ166: 5787.29 | CK166: 218.33 | CL166: 135.52 | CM166: 177.09 | CN166: 26.4 | CO166: 2.69
B168: 2 НЕДЕЛЯ
B169: 1 день
B170: Завтрак
A171: ="-" -> - | B171: Хлеб пшеничный | C171: 25 | D171: 1.5 | E171: 0.2 | F171: 9.2 | G171: 45 | H171: 0 | I171: 0 | J171: 0 | K171: 0 | L171: 0.28 | M171: 8.9 | N171: 0.05 | O171: 0 | P171: 0 | Q171: 0 | R171: 0.45 | S171: 0 | T171: 0 | U171: 0.0 | V171: 0.0 | W171: 0.0 | X171: 0.0 | Y171: 0.0 | Z171: 0.0 | AA171: 0.0 | AB171: 0.0 | AC171: 0.0 | AD171: 0.0 | AE171: 0.0 | AF171: 0.0 | AG171: 0.0 | AH171: 0 | AI171: 79.82 | AJ171: 83.09 | AK171: 127.24 | AL171: 42.2 | AM171: 25.01 | AN171: 50.03 | AO171: 18.92 | AP171: 90.48 | AQ171: 56.12 | AR171: 78.3 | AS171: 64.6 | AT171: 33.93 | AU171: 60.03 | AV171: 501.99 | AW171: 0 | AX171: 163.56 | AY171: 71.12 | AZ171: 47.2 | BA171: 37.41 | BB171: 0 | BC171: 0 | BD171: 0 | BE171: 0 | BF171: 0 | BG171: 0 | BH171: 0 | BI171: 0.02 | BJ171: 0 | BK171: 0 | BL171: 0 | BM171: 0 | BN171: 0 | BO171: 0 | BP171: 0 | BQ171: 0.02 | BR171: 0 | BS171: 0 | BT171: 0.07 | BU171: 0 | BV171: 0 | BW171: 0 | BX171: 0 | BY171: 0 | BZ171: 9.78 | CC171: 0 | CE171: 0 | CF171: 0 | CG171: 0 | CH171: 570 | CI171: 219.6 | CJ171: 394.8 | CK171: 4.56 | CL171: 4.56 | CM171: 4.56 | CN171: 0 | CO171: 0
A172: ="4/13" -> 4/13 | B172: Сыр (порциями) | C172: 10 | D172: 1.5 | E172: 2.7 | F172: 0.0 | G172: 31 | H172: 1.53 | I172: 0 | J172: 0 | K172: 0 | L172: 0 | M172: 0 | N172: 0 | O172: 0 | P172: 0 | Q172: 0.2 | R172: 0.43 | S172: 110 | T172: 10 | U172: 100.0 | V172: 5.5 | W172: 60.0 | X172: 0.1 | Y172: 21.0 | Z172: 17.0 | AA172: 23.8 | AB172: 0.0 | AC172: 0.0 | AD172: 0.0 | AE172: 0.0 | AF172: 0.7 | AG172: 0.1 | AH172: 0 | AI172: 157 | AJ172: 117 | AK172: 230 | AL172: 158 | AM172: 56 | AN172: 95 | AO172: 70 | AP172: 134 | AQ172: 76 | AR172: 87 | AS172: 156 | AT172: 70 | AU172: 51 | AV172: 517 | AW172: 0 | AX172: 273 | AY172: 129 | AZ172: 139 | BA172: 21.5 | BB172: 0 | BC172: 0.01 | BD172: 0.04 | BE172: 0.11 | BF172: 0.13 | BG172: 0.33 | BH172: 0.04 | BI172: 0.7 | BJ172: 0.01 | BK172: 0.16 | BL172: 0.01 | BM172: 0 | BN172: 0 | BO172: 0.05 | BP172: 0.07 | BQ172: 0.52 | BR172: 0 | BS172: 0 | BT172: 0.07 | BU172: 0 | BV172: 0 | BW172: 0 | BX172: 0 | BY172: 0 | BZ172: 4.08 | CC172: 23.83 | CE172: 0 | CF172: 0 | CG172: 0 | CH172: 250 | CI172: 185 | CJ172: 217.5 | CK172: 0.77 | CL172: 0.49 | CM172: 0.63 | CN172: 0 | CO172: 0
A173: ="36/10" -> 36/10 | B173: Какао с молоком (вариант 2) | C173: 180 | D173: 3.4 | E173: 2.4 | F173: 13.5 | G173: 85 | H173: 1.86 | I173: 0 | J173: 0 | K173: 0 | L173: 12.09 | M173: 0.27 | N173: 1.17 | O173: 0 | P173: 0 | Q173: 0.23 | R173: 0.87 | S173: 45.56 | T173: 164.16 | U173: 99.4 | V173: 24.4 | W173: 91.2 | X173: 0.8 | Y173: 10.8 | Z173: 7.8 | AA173: 19.9 | AB173: 0.0 | AC173: 0.0 | AD173: 0.1 | AE173: 0.1 | AF173: 1.0 | AG173: 0.5 | AH173: 0 | AI173: 0 | AJ173: 0 | AK173: 0 | AL173: 0 | AM173: 0 | AN173: 0 | AO173: 0 | AP173: 0 | AQ173: 0 | AR173: 0 | AS173: 0 | AT173: 0 | AU173: 0 | AV173: 0 | AW173: 0 | AX173: 0 | AY173: 0 | AZ173: 0 | BA173: 0 | BB173: 0 | BC173: 0 | BD173: 0 | BE173: 0 | BF173: 0 | BG173: 0 | BH173: 0 | BI173: 0 | BJ173: 0 | BK173: 0 | BL173: 0 | BM173: 0 | BN173: 0 | BO173: 0 | BP173: 0 | BQ173: 0 | BR173: 0 | BS173: 0 | BT173: 0 | BU173: 0 | BV173: 0 | BW173: 0 | BX173: 0 | BY173: 0 | BZ173: 179.29 | CC173: 12.1 | CE173: 10.25 | CF173: 3.95 | CG173: 7.1 | CH173: 792 | CI173: 288.18 | CJ173: 540.09 | CK173: 34.53 | CL173: 16.62 | CM173: 25.58 | CN173: 9 | CO173: 0
A174: ="5/4" -> 5/4 | B174: Каша манная молочная с маслом сливочным | C174: 200 | D174: 5.3 | E174: 4.6 | F174: 29.5 | G174: 179 | H174: 3.31 | I174: 0.09 | J174: 0 | K174: 0 | L174: 8.55 | M174: 19.95 | N174: 1.05 | O174: 0 | P174: 0 | Q174: 0.08 | R174: 1.28 | S174: 235.16 | T174: 140.62 | U174: 92.7 | V174: 14.9 | W174: 87.7 | X174: 0.4 | Y174: 19.2 | Z174: 16.0 | AA174: 35.6 | AB174: 0.5 | AC174: 0.1 | AD174: 0.1 | AE174: 0.4 | AF174: 1.6 | AG174: 0.4 | AH174: 0 | AI174: 148.97 | AJ174: 136.9 | AK174: 246.51 | AL174: 78.4 | AM174: 47.26 | AN174: 96.52 | AO174: 34.7 | AP174: 164.01 | AQ174: 103.63 | AR174: 142.35 | AS174: 116.45 | AT174: 64.48 | AU174: 110.69 | AV174: 967.9 | AW174: 0 | AX174: 314.64 | AY174: 161.45 | AZ174: 82.8 | BA174: 66.55 | BB174: 0.09 | BC174: 0.04 | BD174: 0.02 | BE174: 0.05 | BF174: 0.06 | BG174: 0.28 | BH174: 0 | BI174: 0.78 | BJ174: 0 | BK174: 0.24 | BL174: 0 | BM174: 0 | BN174: 0 | BO174: 0.05 | BP174: 0.08 | BQ174: 0.63 | BR174: 0 | BS174: 0 | BT174: 0.04 | BU174: 0 | BV174: 0 | BW174: 0 | BX174: 0 | BY174: 0 | BZ174: 180.69 | CC174: 21.87 | CE174: 33.38 | CF174: 14.46 | CG174: 23.92 | CH174: 1875.37 | CI174: 844.23 | CJ174: 1359.8 | CK174: 43.77 | CL174: 22.87 | CM174: 33.32 | CN174: 5 | CO174: 0.5
B175: Итого за 'Завтрак' | C175: =SUM(C171:C174) -> 415 | D175: =SUM(D171:D174) -> 11.7 | E175: 9.8 | F175: 52.3 | G175: 340 | H175: 6.7 | I175: 0.09 | J175: 0 | K175: 0 | L175: 20.92 | M175: 29.12 | N175: 2.27 | O175: 0 | P175: 0 | Q175: 0.51 | R175: 3.03 | S175: 390.72 | T175: 314.78 | U175: 292.1 | V175: 44.8 | W175: 238.9 | X175: 1.3 | Y175: 51.0 | Z175: 40.8 | AA175: 79.3 | AB175: 0.6 | AC175: 0.1 | AD175: 0.3 | AE175: 0.5 | AF175: 3.3 | AG175: 1.0 | AH175: 0 | AI175: 385.79 | AJ175: 336.99 | AK175: 603.74 | AL175: 278.59 | AM175: 128.28 | AN175: 241.54 | AO175: 123.63 | AP175: 388.49 | AQ175: 235.74 | AR175: 307.65 | AS175: 337.04 | AT175: 168.41 | AU175: 221.72 | AV175: 1986.89 | AW175: 0 | AX175: 751.2 | AY175: 361.58 | AZ175: 268.99 | BA175: 125.46 | BB175: 0.09 | BC175: 0.05 | BD175: 0.06 | BE175: 0.16 | BF175: 0.19 | BG175: 0.61 | BH175: 0.04 | BI175: 1.49 | BJ175: 0.01 | BK175: 0.4 | BL175: 0.01 | BM175: 0 | BN175: 0 | BO175: 0.1 | BP175: 0.15 | BQ175: 1.17 | BR175: 0 | BS175: 0 | BT175: 0.17 | BU175: 0.01 | BV175: 0 | BW175: 0 | BX175: 0 | BY175: 0 | BZ175: 373.83 | CB175: =$G$175/#REF!*100 ->  | CC175: 57.8 | CE175: 43.63 | CF175: 18.41 | CG175: 31.02 | CH175: 3487.37 | CI175: 1537.01 | CJ175: 2512.19 | CK175: 83.63 | CL175: 44.54 | CM175: 64.08 | CN175: 14 | CO175: 0.5
B176: 10:00
A177: ="-" -> - | B177: Фрукты (яблоки) | C177: 100 | D177: 0.4 | E177: 0.4 | F177: 11.6 | G177: 50 | H177: 0.1 | I177: 0 | J177: 0 | K177: 0 | L177: 10 | M177: 0.8 | N177: 0.8 | O177: 0 | P177: 0 | Q177: 0.8 | R177: 0.5 | S177: 26 | T177: 278 | U177: 16.0 | V177: 9.0 | W177: 11.0 | X177: 2.2 | Y177: 0.0 | Z177: 30.0 | AA177: 5.0 | AB177: 0.2 | AC177: 0.0 | AD177: 0.0 | AE177: 0.3 | AF177: 0.4 | AG177: 10.0 | AH177: 0 | AI177: 12 | AJ177: 13 | AK177: 19 | AL177: 18 | AM177: 3 | AN177: 11 | AO177: 3 | AP177: 9 | AQ177: 17 | AR177: 10 | AS177: 78 | AT177: 7 | AU177: 14 | AV177: 42 | AW177: 0 | AX177: 13 | AY177: 16 | AZ177: 6 | BA177: 5 | BB177: 0 | BC177: 0 | BD177: 0 | BE177: 0 | BF177: 0 | BG177: 0 | BH177: 0 | BI177: 0 | BJ177: 0 | BK177: 0 | BL177: 0 | BM177: 0 | BN177: 0 | BO177: 0 | BP177: 0 | BQ177: 0 | BR177: 0 | BS177: 0 | BT177: 0 | BU177: 0 | BV177: 0 | BW177: 0 | BX177: 0 | BY177: 0 | BZ177: 86.3 | CC177: 5 | CE177: 2 | CF177: 2 | CG177: 2 | CH177: 150 | CI177: 150 | CJ177: 150 | CK177: 0 | CL177: 0 | CM177: 0 | CN177: 0 | CO177: 0
B178: Итого за '10:00' | C178: =SUM(C177) -> 100 | D178: =SUM(D177) -> 0.4 | E178: 0.4 | F178: 11.6 | G178: 50 | H178: 0.1 | I178: 0 | J178: 0 | K178: 0 | L178: 10 | M178: 0.8 | N178: 0.8 | O178: 0 | P178: 0 | Q178: 0.8 | R178: 0.5 | S178: 26 | T178: 278 | U178: 16.0 | V178: 9.0 | W178: 11.0 | X178: 2.2 | Y178: 0.0 | Z178: 30.0 | AA178: 5.0 | AB178: 0.2 | AC178: 0.0 | AD178: 0.0 | AE178: 0.3 | AF178: 0.4 | AG178: 10.0 | AH178: 0 | AI178: 12 | AJ178: 13 | AK178: 19 | AL178: 18 | AM178: 3 | AN178: 11 | AO178: 3 | AP178: 9 | AQ178: 17 | AR178: 10 | AS178: 78 | AT178: 7 | AU178: 14 | AV178: 42 | AW178: 0 | AX178: 13 | AY178: 16 | AZ178: 6 | BA178: 5 | BB178: 0 | BC178: 0 | BD178: 0 | BE178: 0 | BF178: 0 | BG178: 0 | BH178: 0 | BI178: 0 | BJ178: 0 | BK178: 0 | BL178: 0 | BM178: 0 | BN178: 0 | BO178: 0 | BP178: 0 | BQ178: 0 | BR178: 0 | BS178: 0 | BT178: 0 | BU178: 0 | BV178: 0 | BW178: 0 | BX178: 0 | BY178: 0 | BZ178: 86.3 | CB178: =$G$178/#REF!*100 ->  | CC178: 5 | CE178: 2 | CF178: 2 | CG178: 2 | CH178: 150 | CI178: 150 | CJ178: 150 | CK178: 0 | CL178: 0 | CM178: 0 | CN178: 0 | CO178: 0
B179: Обед
A180: ="-" -> - | B180: Хлеб пшеничный | C180: 20 | D180: 1.2 | E180: 0.1 | F180: 7.4 | G180: 36 | H180: 0 | I180: 0 | J180: 0 | K180: 0 | L180: 0.22 | M180: 7.12 | N180: 0.04 | O180: 0 | P180: 0 | Q180: 0 | R180: 0.36 | S180: 0 | T180: 0 | U180: 0.0 | V180: 0.0 | W180: 0.0 | X180: 0.0 | Y180: 0.0 | Z180: 0.0 | AA180: 0.0 | AB180: 0.0 | AC180: 0.0 | AD180: 0.0 | AE180: 0.0 | AF180: 0.0 | AG180: 0.0 | AH180: 0 | AI180: 63.86 | AJ180: 66.47 | AK180: 101.79 | AL180: 33.76 | AM180: 20.01 | AN180: 40.02 | AO180: 15.14 | AP180: 72.38 | AQ180: 44.89 | AR180: 62.64 | AS180: 51.68 | AT180: 27.14 | AU180: 48.02 | AV180: 401.59 | AW180: 0 | AX180: 130.85 | AY180: 56.9 | AZ180: 37.76 | BA180: 29.93 | BB180: 0 | BC180: 0 | BD180: 0 | BE180: 0 | BF180: 0 | BG180: 0 | BH180: 0 | BI180: 0.02 | BJ180: 0 | BK180: 0 | BL180: 0 | BM180: 0 | BN180: 0 | BO180: 0 | BP180: 0 | BQ180: 0.01 | BR180: 0 | BS180: 0 | BT180: 0.06 | BU180: 0 | BV180: 0 | BW180: 0 | BX180: 0 | BY180: 0 | BZ180: 7.82 | CC180: 0 | CE180: 0 | CF180: 0 | CG180: 0 | CH180: 380 | CI180: 146.4 | CJ180: 263.2 | CK180: 3.04 | CL180: 3.04 | CM180: 3.04 | CN180: 0 | CO180: 0
A181: ="-" -> - | B181: Хлеб ржаной | C181: 30 | D181: 1.8 | E181: 0.4 | F181: 12.5 | G181: 57 | H181: 0.06 | I181: 0 | J181: 0 | K181: 0 | L181: 0.36 | M181: 9.66 | N181: 2.49 | O181: 0 | P181: 0 | Q181: 0.3 | R181: 0.75 | S181: 183 | T181: 73.5 | U181: 10.5 | V181: 14.1 | W181: 47.4 | X181: 1.2 | Y181: 0.0 | Z181: 1.5 | AA181: 0.3 | AB181: 0.4 | AC181: 0.1 | AD181: 0.0 | AE181: 0.2 | AF181: 0.6 | AG181: 0.0 | AH181: 0 | AI181: 96.6 | AJ181: 74.4 | AK181: 128.1 | AL181: 66.9 | AM181: 27.9 | AN181: 59.4 | AO181: 24 | AP181: 111.3 | AQ181: 89.1 | AR181: 87.3 | AS181: 139.2 | AT181: 37.2 | AU181: 93 | AV181: 467.7 | AW181: 0 | AX181: 157.8 | AY181: 87.3 | AZ181: 54 | BA181: 39 | BB181: 0 | BC181: 0 | BD181: 0 | BE181: 0 | BF181: 0 | BG181: 0 | BH181: 0 | BI181: 0.04 | BJ181: 0 | BK181: 0 | BL181: 0.01 | BM181: 0 | BN181: 0 | BO181: 0 | BP181: 0 | BQ181: 0.03 | BR181: 0 | BS181: 0 | BT181: 0.14 | BU181: 0.02 | BV181: 0 | BW181: 0 | BX181: 0 | BY181: 0 | BZ181: 14.1 | CC181: 0.25 | CE181: 4 | CF181: 4 | CG181: 4 | CH181: 760 | CI181: 292.8 | CJ181: 526.4 | CK181: 7.6 | CL181: 6.32 | CM181: 6.96 | CN181: 0 | CO181: 0
A182: ="6/10" -> 6/10 | B182: Компот из сухофруктов | C182: 180 | D182: 0.9 | E182: 0.1 | F182: 20.9 | G182: 79 | H182: 0.02 | I182: 0 | J182: 0 | K182: 0 | L182: 17.27 | M182: 0.51 | N182: 3.08 | O182: 0 | P182: 0 | Q182: 0.27 | R182: 0.73 | S182: 3.12 | T182: 306.24 | U182: 28.2 | V182: 18.0 | W182: 24.4 | X182: 0.6 | Y182: 0.0 | Z182: 567.0 | AA182: 104.9 | AB182: 1.0 | AC182: 0.0 | AD182: 0.1 | AE182: 0.5 | AF182: 0.7 | AG182: 0.4 | AH182: 0 | AI182: 0.01 | AJ182: 0.01 | AK182: 0.01 | AL182: 0.02 | AM182: 0 | AN182: 0.01 | AO182: 0 | AP182: 0.01 | AQ182: 0.01 | AR182: 0.01 | AS182: 0.05 | AT182: 0 | AU182: 0.01 | AV182: 0.02 | AW182: 0 | AX182: 0.01 | AY182: 0.01 | AZ182: 0.01 | BA182: 0 | BB182: 0 | BC182: 0 | BD182: 0 | BE182: 0 | BF182: 0 | BG182: 0 | BH182: 0 | BI182: 0 | BJ182: 0 | BK182: 0 | BL182: 0 | BM182: 0 | BN182: 0 | BO182: 0 | BP182: 0 | BQ182: 0.01 | BR182: 0 | BS182: 0 | BT182: 0.01 | BU182: 0 | BV182: 0 | BW182: 0 | BX182: 0 | BY182: 0 | BZ182: 192.61 | CC182: 94.5 | CE182: 3.95 | CF182: 3.95 | CG182: 3.95 | CH182: 454.5 | CI182: 172.98 | CJ182: 313.74 | CK182: 41.94 | CL182: 24.93 | CM182: 33.44 | CN182: 9 | CO182: 0
A183: ="6/1" -> 6/1 | B183: Салат из белокочанной капусты с морковью и растительным маслом | C183: 50 | D183: 0.8 | E183: 3.0 | F183: 4.7 | G183: 46 | H183: 0.38 | I183: 1.95 | J183: 0 | K183: 0 | L183: 3.68 | M183: 0.05 | N183: 0.92 | O183: 0 | P183: 0 | Q183: 0.13 | R183: 0.58 | S183: 101.28 | T183: 126 | U183: 20.7 | V183: 8.9 | W183: 16.0 | X183: 0.3 | Y183: 0.0 | Z183: 948.2 | AA183: 161.1 | AB183: 1.4 | AC183: 0.0 | AD183: 0.0 | AE183: 0.3 | AF183: 0.4 | AG183: 16.9 | AH183: 0 | AI183: 24.69 | AJ183: 21.12 | AK183: 26.97 | AL183: 25.4 | AM183: 8.79 | AN183: 19.05 | AO183: 4.3 | AP183: 23.01 | AQ183: 29.86 | AR183: 34.45 | AS183: 73.79 | AT183: 11.39 | AU183: 19.55 | AV183: 119.49 | AW183: 0 | AX183: 24.03 | AY183: 24.27 | AZ183: 19.79 | BA183: 8.29 | BB183: 0 | BC183: 0 | BD183: 0 | BE183: 0 | BF183: 0 | BG183: 0 | BH183: 0 | BI183: 0.18 | BJ183: 0 | BK183: 0.12 | BL183: 0.01 | BM183: 0.02 | BN183: 0 | BO183: 0 | BP183: 0 | BQ183: 0.7 | BR183: 0 | BS183: 0 | BT183: 1.73 | BU183: 0 | BV183: 0 | BW183: 0 | BX183: 0 | BY183: 0 | BZ183: 40.95 | CC183: 158.03 | CE183: 13.55 | CF183: 6.21 | CG183: 9.88 | CH183: 406.33 | CI183: 97.29 | CJ183: 251.81 | CK183: 6.53 | CL183: 6.16 | CM183: 6.34 | CN183: 1.5 | CO183: 0.25
A184: ="18/2" -> 18/2 | B184: Суп картофельный с макаронными изделиями на говяжьем бульоне | C184: 180 | D184: 2.9 | E184: 6.4 | F184: 14.6 | G184: 126 | H184: 1.6 | I184: 0.94 | J184: 0 | K184: 0 | L184: 1.75 | M184: 11.6 | N184: 1.25 | O184: 0 | P184: 0 | Q184: 0.14 | R184: 1.81 | S184: 418.59 | T184: 318.02 | U184: 13.8 | V184: 16.1 | W184: 40.5 | X184: 0.7 | Y184: 0.0 | Z184: 942.2 | AA184: 174.3 | AB184: 0.8 | AC184: 0.1 | AD184: 0.1 | AE184: 0.7 | AF184: 1.2 | AG184: 4.4 | AH184: 0 | AI184: 48.91 | AJ184: 52.8 | AK184: 84.78 | AL184: 50.35 | AM184: 16.42 | AN184: 44.18 | AO184: 17.54 | AP184: 57.87 | AQ184: 55.81 | AR184: 110.44 | AS184: 69.8 | AT184: 22.08 | AU184: 47.19 | AV184: 343.9 | AW184: 0 | AX184: 85.19 | AY184: 51.12 | AZ184: 33.84 | BA184: 21.41 | BB184: 0 | BC184: 0 | BD184: 0 | BE184: 0 | BF184: 0 | BG184: 0 | BH184: 0 | BI184: 0.14 | BJ184: 0 | BK184: 0.07 | BL184: 0 | BM184: 0.01 | BN184: 0 | BO184: 0 | BP184: 0 | BQ184: 0.42 | BR184: 0 | BS184: 0 | BT184: 0.9 | BU184: 0 | BV184: 0 | BW184: 0 | BX184: 0 | BY184: 0 | BZ184: 187.49 | CC184: 157.03 | CE184: 49.17 | CF184: 27.53 | CG184: 38.35 | CH184: 625.17 | CI184: 375.25 | CJ184: 500.21 | CK184: 38.79 | CL184: 19.02 | CM184: 28.9 | CN184: 0 | CO184: 1.08
A185: ="3/3" -> 3/3 | B185: Картофельное пюре с маслом сливочным | C185: 150 | D185: 3.1 | E185: 3.5 | F185: 22.1 | G185: 132 | H185: 2.22 | I185: 0.08 | J185: 0 | K185: 0 | L185: 2.16 | M185: 18.23 | N185: 1.7 | O185: 0 | P185: 0 | Q185: 0.29 | R185: 1.89 | S185: 77.84 | T185: 636.26 | U185: 34.0 | V185: 30.4 | W185: 86.8 | X185: 1.1 | Y185: 18.8 | Z185: 34.1 | AA185: 25.1 | AB185: 0.2 | AC185: 0.1 | AD185: 0.1 | AE185: 1.3 | AF185: 2.6 | AG185: 5.5 | AH185: 0 | AI185: 33.56 | AJ185: 52.76 | AK185: 66.83 | AL185: 78.55 | AM185: 13.43 | AN185: 52.97 | AO185: 27.18 | AP185: 54.08 | AQ185: 75.67 | AR185: 206.13 | AS185: 91.81 | AT185: 19.2 | AU185: 53.44 | AV185: 287.21 | AW185: 0 | AX185: 40.19 | AY185: 36.55 | AZ185: 39.97 | BA185: 17.03 | BB185: 0.1 | BC185: 0.04 | BD185: 0.02 | BE185: 0.05 | BF185: 0.06 | BG185: 0.29 | BH185: 0 | BI185: 0.88 | BJ185: 0 | BK185: 0.26 | BL185: 0 | BM185: 0 | BN185: 0 | BO185: 0.05 | BP185: 0.09 | BQ185: 0.85 | BR185: 0 | BS185: 0 | BT185: 0.14 | BU185: 0 | BV185: 0 | BW185: 0 | BX185: 0 | BY185: 0 | BZ185: 123.74 | CC185: 24.43 | CE185: 14.07 | CF185: 9.33 | CG185: 11.7 | CH185: 481.65 | CI185: 423.36 | CJ185: 452.5 | CK185: 19.53 | CL185: 2.87 | CM185: 11.2 | CN185: 0 | CO185: 0.23
A186: ="1/27" -> 1/27 | B186: Котлеты "Крестьянские" из мясо говядины и птиц | C186: 70 | D186: 11.1 | E186: 12.9 | F186: 9.6 | G186: 198 | H186: 4.29 | I186: 24.43 | J186: 0 | K186: 0 | L186: 0.63 | M186: 7.88 | N186: 1.09 | O186: 0 | P186: 0 | Q186: 0.08 | R186: 1.24 | S186: 203.16 | T186: 164.2 | U186: 12.6 | V186: 16.7 | W186: 113.8 | X186: 1.6 | Y186: 25.0 | Z186: 3.5 | AA186: 25.8 | AB186: 2.3 | AC186: 0.1 | AD186: 0.1 | AE186: 3.5 | AF186: 6.7 | AG186: 0.4 | AH186: 0 | AI186: 567.21 | AJ186: 450.68 | AK186: 872.53 | AL186: 1125 | AM186: 272.04 | AN186: 495.14 | AO186: 156.72 | AP186: 475.02 | AQ186: 663.01 | AR186: 689.9 | AS186: 979.84 | AT186: 338.15 | AU186: 710.27 | AV186: 1809.83 | AW186: 114.5 | AX186: 535.04 | AY186: 502.3 | AZ186: 388.01 | BA186: 152.33 | BB186: 0 | BC186: 0 | BD186: 0 | BE186: 0 | BF186: 0 | BG186: 0 | BH186: 0 | BI186: 0.27 | BJ186: 0 | BK186: 0.17 | BL186: 0.01 | BM186: 0.03 | BN186: 0 | BO186: 0 | BP186: 0 | BQ186: 0.99 | BR186: 0 | BS186: 0 | BT186: 2.47 | BU186: 0 | BV186: 0 | BW186: 0 | BX186: 0 | BY186: 0 | BZ186: 56.16 | CC186: 25.57 | CE186: 18.26 | CF186: 9.65 | CG186: 13.96 | CH186: 2109.43 | CI186: 1279.73 | CJ186: 1694.58 | CK186: 14.61 | CL186: 10.31 | CM186: 12.46 | CN186: 0 | CO186: 0.35
B187: Итого за 'Обед' | C187: =SUM(C180:C186) -> 680 | D187: 21.8 | E187: 26.3 | F187: 91.7 | G187: 673 | H187: 8.57 | I187: 27.4 | J187: 0 | K187: 0 | L187: 26.07 | M187: 55.05 | N187: 10.57 | O187: 0 | P187: 0 | Q187: 1.21 | R187: 7.36 | S187: 986.99 | T187: 1624.22 | U187: 119.7 | V187: 104.1 | W187: 328.9 | X187: 5.4 | Y187: 43.7 | Z187: 2496.4 | AA187: 491.5 | AB187: 6.1 | AC187: 0.4 | AD187: 0.4 | AE187: 6.5 | AF187: 12.3 | AG187: 27.7 | AH187: 0 | AI187: 1497.38 | AJ187: 1417.09 | AK187: 2312.51 | AL187: 2575.55 | AM187: 446.38 | AN187: 1177.62 | AO187: 360.16 | AP187: 1417.33 | AQ187: 1417.08 | AR187: 1991.63 | AS187: 2787.28 | AT187: 789.42 | AU187: 1373.19 | AV187: 5310.22 | AW187: 142.71 | AX187: 1281.47 | AY187: 1227.57 | AZ187: 977.58 | BA187: 420.24 | BB187: 0.11 | BC187: 0.02 | BD187: 0.02 | BE187: 0.05 | BF187: 0.07 | BG187: 0.22 | BH187: 0 | BI187: 1.25 | BJ187: 0 | BK187: 0.44 | BL187: 0.03 | BM187: 0.03 | BN187: 0 | BO187: 0.02 | BP187: 0.09 | BQ187: 2.14 | BR187: 0 | BS187: 0 | BT187: 3.69 | BU187: 0.12 | BV187: 0 | BW187: 0 | BX187: 0 | BY187: 0 | BZ187: 581.62 | CB187: =$G$187/#REF!*100 ->  | CC187: 272.24 | CE187: 93.95 | CF187: 57.71 | CG187: 75.83 | CH187: 4139.82 | CI187: 2154.36 | CJ187: 3147.09 | CK187: 116.89 | CL187: 71.87 | CM187: 94.38 | CN187: 9 | CO187: 1.81
B188: Уплотненный полдник
A189: ="27/12" -> 27/12 | B189: Оладьи | C189: 70 | D189: 3.8 | E189: 4.3 | F189: 23.3 | G189: 147 | H189: 0.65 | I189: 2.73 | J189: 0 | K189: 0 | L189: 1.4 | M189: 20.8 | N189: 1.07 | O189: 0 | P189: 0 | Q189: 0 | R189: 0.83 | S189: 247.83 | T189: 41.19 | U189: 8.4 | V189: 5.2 | W189: 30.2 | X189: 0.4 | Y189: 2.7 | Z189: 0.8 | AA189: 4.7 | AB189: 2.4 | AC189: 0.0 | AD189: 0.0 | AE189: 0.4 | AF189: 1.2 | AG189: 0.0 | AH189: 0 | AI189: 172.68 | AJ189: 154.06 | AK189: 287.43 | AL189: 108.79 | AM189: 59.86 | AN189: 115.98 | AO189: 36.97 | AP189: 175.94 | AQ189: 126.28 | AR189: 149 | AS189: 144.56 | AT189: 75.28 | AU189: 126.43 | AV189: 1033.3 | AW189: 3.45 | AX189: 321.17 | AY189: 181.03 | AZ189: 93.08 | BA189: 70.65 | BB189: 0 | BC189: 0 | BD189: 0 | BE189: 0 | BF189: 0 | BG189: 0 | BH189: 0 | BI189: 0.27 | BJ189: 0 | BK189: 0.15 | BL189: 0.01 | BM189: 0.03 | BN189: 0 | BO189: 0 | BP189: 0 | BQ189: 0.91 | BR189: 0 | BS189: 0 | BT189: 2.64 | BU189: 0.01 | BV189: 0 | BW189: 0 | BX189: 0 | BY189: 0 | BZ189: 40.34 | CC189: 2.83 | CE189: 26.12 | CF189: 13.46 | CG189: 19.79 | CH189: 687.55 | CI189: 249.84 | CJ189: 468.7 | CK189: 3.8 | CL189: 2.14 | CM189: 3.31 | CN189: 1.19 | CO189: 0.63
A190: ="27/10" -> 27/10 | B190: Чай полусладкий | C190: 180 | D190: 0.2 | E190: 0.0 | F190: 4.5 | G190: 18 | H190: 0 | I190: 0 | J190: 0 | K190: 0 | L190: 4.44 | M190: 0 | N190: 0.09 | O190: 0 | P190: 0 | Q190: 0 | R190: 0.05 | S190: 0.04 | T190: 0.13 | U190: 0.1 | V190: 0.0 | W190: 0.0 | X190: 0.0 | Y190: 0.0 | Z190: 0.0 | AA190: 0.0 | AB190: 0.0 | AC190: 0.0 | AD190: 0.0 | AE190: 0.0 | AF190: 0.0 | AG190: 0.0 | AH190: 0 | AI190: 0 | AJ190: 0 | AK190: 0 | AL190: 0 | AM190: 0 | AN190: 0 | AO190: 0 | AP190: 0 | AQ190: 0 | AR190: 0 | AS190: 0 | AT190: 0 | AU190: 0 | AV190: 0 | AW190: 0 | AX190: 0 | AY190: 0 | AZ190: 0 | BA190: 0 | BB190: 0 | BC190: 0 | BD190: 0 | BE190: 0 | BF190: 0 | BG190: 0 | BH190: 0 | BI190: 0 | BJ190: 0 | BK190: 0 | BL190: 0 | BM190: 0 | BN190: 0 | BO190: 0 | BP190: 0 | BQ190: 0 | BR190: 0 | BS190: 0 | BT190: 0 | BU190: 0 | BV190: 0 | BW190: 0 | BX190: 0 | BY190: 0 | BZ190: 180.08 | CC190: 0 | CE190: 3.69 | CF190: 3.69 | CG190: 3.69 | CH190: 398.25 | CI190: 156.6 | CJ190: 277.43 | CK190: 39.61 | CL190: 23.41 | CM190: 31.51 | CN190: 4.5 | CO190: 0
A191: ="9/4" -> 9/4 | B191: Каша рисовая молочная вязкая с маслом сливочным | C191: 180 | D191: 4.7 | E191: 5.2 | F191: 36.5 | G191: 211 | H191: 3.39 | I191: 0.1 | J191: 0 | K191: 0 | L191: 7.91 | M191: 27.42 | N191: 1.13 | O191: 0 | P191: 0 | Q191: 0.07 | R191: 1.27 | S191: 211.28 | T191: 138.28 | U191: 84.4 | V191: 27.9 | W191: 113.3 | X191: 0.5 | Y191: 31.5 | Z191: 18.2 | AA191: 35.1 | AB191: 0.2 | AC191: 0.1 | AD191: 0.1 | AE191: 0.6 | AF191: 1.9 | AG191: 0.4 | AH191: 0 | AI191: 164.85 | AJ191: 129.87 | AK191: 243.96 | AL191: 102.89 | AM191: 62.84 | AN191: 95.21 | AO191: 40.7 | AP191: 145.44 | AQ191: 152.94 | AR191: 199.07 | AS191: 212.08 | AT191: 67.52 | AU191: 125.24 | AV191: 471.96 | AW191: 0 | AX191: 130.18 | AY191: 130.45 | AZ191: 114.4 | BA191: 53.61 | BB191: 0.12 | BC191: 0.05 | BD191: 0.03 | BE191: 0.07 | BF191: 0.08 | BG191: 0.35 | BH191: 0 | BI191: 1.04 | BJ191: 0 | BK191: 0.32 | BL191: 0 | BM191: 0 | BN191: 0 | BO191: 0.07 | BP191: 0.1 | BQ191: 0.92 | BR191: 0 | BS191: 0 | BT191: 0.11 | BU191: 0 | BV191: 0 | BW191: 0 | BX191: 0 | BY191: 0 | BZ191: 134.25 | CC191: 34.54 | CE191: 17.73 | CF191: 8.49 | CG191: 13.11 | CH191: 1334.29 | CI191: 616.06 | CJ191: 975.17 | CK191: 18.69 | CL191: 8.15 | CM191: 13.42 | CN191: 4.5 | CO191: 0.45
B192: Итого за 'Ужин' | C192: =SUM(C189:C191) -> 430 | D192: =SUM(D189:D191) -> 8.7 | E192: 9.6 | F192: 64.3 | G192: 376 | H192: 4.04 | I192: 2.83 | J192: 0 | K192: 0 | L192: 13.75 | M192: 48.22 | N192: 2.29 | O192: 0 | P192: 0 | Q192: 0.07 | R192: 2.15 | S192: 459.15 | T192: 179.6 | U192: 93.0 | V192: 33.1 | W192: 143.5 | X192: 0.9 | Y192: 34.2 | Z192: 19.0 | AA192: 39.8 | AB192: 2.6 | AC192: 0.1 | AD192: 0.1 | AE192: 1.0 | AF192: 3.0 | AG192: 0.4 | AH192: 0 | AI192: 337.52 | AJ192: 283.94 | AK192: 531.39 | AL192: 211.67 | AM192: 122.71 | AN192: 211.19 | AO192: 77.68 | AP192: 321.38 | AQ192: 279.22 | AR192: 348.07 | AS192: 356.63 | AT192: 142.8 | AU192: 251.67 | AV192: 1505.26 | AW192: 3.45 | AX192: 451.35 | AY192: 311.48 | AZ192: 207.48 | BA192: 124.26 | BB192: 0.12 | BC192: 0.05 | BD192: 0.03 | BE192: 0.07 | BF192: 0.08 | BG192: 0.35 | BH192: 0 | BI192: 1.31 | BJ192: 0 | BK192: 0.47 | BL192: 0.01 | BM192: 0.03 | BN192: 0 | BO192: 0.07 | BP192: 0.11 | BQ192: 1.82 | BR192: 0 | BS192: 0 | BT192: 2.75 | BU192: 0.01 | BV192: 0 | BW192: 0 | BX192: 0 | BY192: 0 | BZ192: 354.67 | CB192: =$G$192/#REF!*100 ->  | CC192: 37.37 | CE192: 47.54 | CF192: 25.64 | CG192: 36.59 | CH192: 2420.09 | CI192: 1022.5 | CJ192: 1721.3 | CK192: 62.1 | CL192: 33.69 | CM192: 48.23 | CN192: 10.19 | CO192: 1.08
B193: Итого за день | C193: =C175+C178+C187+C192 -> 1625 | D193: 42.5 | E193: 46.1 | F193: 219.9 | G193: 1439 | H193: 19.41 | I193: 30.32 | J193: 0 | K193: 0 | L193: 70.74 | M193: 133.19 | N193: 15.93 | O193: 0 | P193: 0 | Q193: 2.59 | R193: 13.04 | S193: 1862.86 | T193: 2396.6 | U193: 520.8 | V193: 191.0 | W193: 722.3 | X193: 9.8 | Y193: 128.9 | Z193: 2586.2 | AA193: 615.6 | AB193: 9.5 | AC193: 0.6 | AD193: 0.8 | AE193: 8.3 | AF193: 18.9 | AG193: 39.0 | AH193: 0 | AI193: 2232.7 | AJ193: 2051.02 | AK193: 3466.65 | AL193: 3083.81 | AM193: 700.36 | AN193: 1641.35 | AO193: 564.47 | AP193: 2136.21 | AQ193: 1949.04 | AR193: 2657.35 | AS193: 3558.96 | AT193: 1107.64 | AU193: 1860.59 | AV193: 8844.37 | AW193: 146.15 | AX193: 2497.02 | AY193: 1916.62 | AZ193: 1460.05 | BA193: 674.96 | BB193: 0.32 | BC193: 0.13 | BD193: 0.11 | BE193: 0.28 | BF193: 0.33 | BG193: 1.19 | BH193: 0.04 | BI193: 4.05 | BJ193: 0.01 | BK193: 1.31 | BL193: 0.05 | BM193: 0.06 | BN193: 0 | BO193: 0.2 | BP193: 0.35 | BQ193: 5.13 | BR193: 0 | BS193: 0 | BT193: 6.62 | BU193: 0.14 | BV193: 0 | BW193: 0 | BX193: 0 | BY193: 0 | BZ193: 1396.43 | CC193: 372.4 | CE193: 187.12 | CF193: 103.76 | CG193: 145.44 | CH193: 10197.28 | CI193: 4863.86 | CJ193: 7530.57 | CK193: 262.62 | CL193: 150.11 | CM193: 206.7 | CN193: 33.19 | CO193: 3.39
B195: 2 день
B196: Завтрак
A197: ="-" -> - | B197: Батон | C197: 30 | D197: 2.3 | E197: 1.5 | F197: 11.2 | G197: 66 | H197: 0.15 | I197: 0 | J197: 0 | K197: 0 | L197: 0.99 | M197: 9.24 | N197: 0.96 | O197: 0 | P197: 0 | Q197: 0.09 | R197: 0.48 | S197: 128.7 | T197: 39.3 | U197: 6.6 | V197: 9.9 | W197: 25.5 | X197: 0.6 | Y197: 0.0 | Z197: 0.0 | AA197: 0.0 | AB197: 0.5 | AC197: 0.1 | AD197: 0.0 | AE197: 0.5 | AF197: 0.9 | AG197: 0.0 | AH197: 0 | AI197: 111.6 | AJ197: 115.8 | AK197: 177.3 | AL197: 59.7 | AM197: 35.1 | AN197: 70.2 | AO197: 26.4 | AP197: 126 | AQ197: 78.3 | AR197: 108.9 | AS197: 90.3 | AT197: 48.3 | AU197: 84 | AV197: 697.5 | AW197: 0 | AX197: 227.1 | AY197: 99.3 | AZ197: 66.6 | BA197: 51.9 | BB197: 0 | BC197: 0 | BD197: 0 | BE197: 0 | BF197: 0 | BG197: 0.01 | BH197: 0 | BI197: 0.1 | BJ197: 0 | BK197: 0.05 | BL197: 0 | BM197: 0 | BN197: 0 | BO197: 0 | BP197: 0 | BQ197: 0.35 | BR197: 0 | BS197: 0 | BT197: 0.26 | BU197: 0.01 | BV197: 0 | BW197: 0 | BX197: 0 | BY197: 0 | BZ197: 10.23 | CC197: 0 | CE197: 0 | CF197: 0 | CG197: 0 | CH197: 570 | CI197: 219.6 | CJ197: 394.8 | CK197: 4.56 | CL197: 4.56 | CM197: 4.56 | CN197: 0 | CO197: 0
A198: ="-" -> - | B198: Масло сливочное | C198: 5 | D198: 0.0 | E198: 3.6 | F198: 0.1 | G198: 33 | H198: 2.36 | I198: 0.11 | J198: 0 | K198: 0 | L198: 0.07 | M198: 0 | N198: 0 | O198: 0 | P198: 0 | Q198: 0 | R198: 0.07 | S198: 0.75 | T198: 1.5 | U198: 1.2 | V198: 0.0 | W198: 1.5 | X198: 0.0 | Y198: 20.0 | Z198: 15.0 | AA198: 22.5 | AB198: 0.1 | AC198: 0.0 | AD198: 0.0 | AE198: 0.0 | AF198: 0.0 | AG198: 0.0 | AH198: 0 | AI198: 2.1 | AJ198: 2.05 | AK198: 3.8 | AL198: 2.25 | AM198: 0.85 | AN198: 2.35 | AO198: 2.15 | AP198: 2.1 | AQ198: 1.8 | AR198: 1.3 | AS198: 2.85 | AT198: 1.75 | AU198: 1.2 | AV198: 7.1 | AW198: 0 | AX198: 2.4 | AY198: 2.7 | AZ198: 2.1 | BA198: 0.5 | BB198: 0.13 | BC198: 0.06 | BD198: 0.03 | BE198: 0.08 | BF198: 0.09 | BG198: 0.4 | BH198: 0 | BI198: 1.1 | BJ198: 0 | BK198: 0.34 | BL198: 0 | BM198: 0 | BN198: 0 | BO198: 0.08 | BP198: 0.12 | BQ198: 0.9 | BR198: 0 | BS198: 0 | BT198: 0.05 | BU198: 0 | BV198: 0 | BW198: 0 | BX198: 0 | BY198: 0 | BZ198: 1.25 | CC198: 22.5 | CE198: 0.2 | CF198: 0.05 | CG198: 0.13 | CH198: 10 | CI198: 4.1 | CJ198: 7.05 | CK198: 0.86 | CL198: 0.44 | CM198: 0.65 | CN198: 0 | CO198: 0
A199: ="29/10" -> 29/10 | B199: Чай с лимоном | C199: 180 | D199: 0.2 | E199: 0.1 | F199: 8.9 | G199: 36 | H199: 0 | I199: 0 | J199: 0 | K199: 0 | L199: 8.75 | M199: 0 | N199: 0.18 | O199: 0 | P199: 0 | Q199: 0.25 | R199: 0.08 | S199: 0.57 | T199: 7.35 | U199: 2.0 | V199: 0.5 | W199: 0.9 | X199: 0.1 | Y199: 0.0 | Z199: 0.4 | AA199: 0.1 | AB199: 0.0 | AC199: 0.0 | AD199: 0.0 | AE199: 0.0 | AF199: 0.0 | AG199: 0.7 | AH199: 0 | AI199: 0.6 | AJ199: 0.69 | AK199: 0.56 | AL199: 1.03 | AM199: 0.26 | AN199: 1.08 | AO199: 0 | AP199: 1.38 | AQ199: 0 | AR199: 0 | AS199: 0 | AT199: 0.77 | AU199: 0 | AV199: 0 | AW199: 0 | AX199: 0 | AY199: 0 | AZ199: 0 | BA199: 0 | BB199: 0 | BC199: 0 | BD199: 0 | BE199: 0 | BF199: 0 | BG199: 0 | BH199: 0 | BI199: 0 | BJ199: 0 | BK199: 0 | BL199: 0 | BM199: 0 | BN199: 0 | BO199: 0 | BP199: 0 | BQ199: 0 | BR199: 0 | BS199: 0 | BT199: 0 | BU199: 0 | BV199: 0 | BW199: 0 | BX199: 0 | BY199: 0 | BZ199: 179.55 | CC199: 0.07 | CE199: 3.85 | CF199: 3.72 | CG199: 3.79 | CH199: 434.63 | CI199: 165.16 | CJ199: 299.9 | CK199: 39.92 | CL199: 23.87 | CM199: 31.9 | CN199: 8.78 | CO199: 0
A200: ="17/4" -> 17/4 | B200: Каша молочная ассорти (рис, пшено) с маслом сливочным | C200: 200 | D200: 5.9 | E200: 6.1 | F200: 31.6 | G200: 203 | H200: 4.19 | I200: 0.11 | J200: 0 | K200: 0 | L200: 9.44 | M200: 21.12 | N200: 1.03 | O200: 0 | P200: 0 | Q200: 0.1 | R200: 1.6 | S200: 249.05 | T200: 181.02 | U200: 116.1 | V200: 32.8 | W200: 139.6 | X200: 0.7 | Y200: 24.2 | Z200: 23.2 | AA200: 45.5 | AB200: 0.2 | AC200: 0.1 | AD200: 0.1 | AE200: 0.5 | AF200: 2.2 | AG200: 0.5 | AH200: 0 | AI200: 145.14 | AJ200: 125.26 | AK200: 364.96 | AL200: 90.21 | AM200: 76.22 | AN200: 107.49 | AO200: 48.27 | AP200: 157.73 | AQ200: 248.68 | AR200: 149.04 | AS200: 194.91 | AT200: 72.05 | AU200: 99.83 | AV200: 572.37 | AW200: 0 | AX200: 193.45 | AY200: 174.09 | AZ200: 116.09 | BA200: 51.94 | BB200: 0.12 | BC200: 0.05 | BD200: 0.03 | BE200: 0.07 | BF200: 0.08 | BG200: 0.35 | BH200: 0 | BI200: 1.04 | BJ200: 0 | BK200: 0.31 | BL200: 0 | BM200: 0 | BN200: 0 | BO200: 0.07 | BP200: 0.1 | BQ200: 0.92 | BR200: 0 | BS200: 0 | BT200: 0.42 | BU200: 0.01 | BV200: 0 | BW200: 0 | BX200: 0 | BY200: 0 | BZ200: 166.8 | CC200: 28.11 | CE200: 32.08 | CF200: 14.79 | CG200: 23.43 | CH200: 2008.07 | CI200: 899.37 | CJ200: 1453.72 | CK200: 33.91 | CL200: 15.31 | CM200: 24.61 | CN200: 5 | CO200: 0.5
B201: Итого за 'Завтрак' | C201: =SUM(C197:C200) -> 415 | D201: =SUM(D197:D200) -> 8.4 | E201: 11.3 | F201: 51.8 | G201: 338 | H201: 6.7 | I201: 0.22 | J201: 0 | K201: 0 | L201: 19.25 | M201: 30.36 | N201: 2.17 | O201: 0 | P201: 0 | Q201: 0.44 | R201: 2.23 | S201: 379.07 | T201: 229.17 | U201: 125.9 | V201: 43.2 | W201: 167.5 | X201: 1.4 | Y201: 44.2 | Z201: 38.6 | AA201: 68.1 | AB201: 0.7 | AC201: 0.2 | AD201: 0.2 | AE201: =SUM(AE197:AE200) -> 1.0 | AF201: =SUM(AF197:AF200) -> 3.1 | AG201: =SUM(AG197:AG200) -> 1.2 | AH201: 0 | AI201: 259.44 | AJ201: 243.79 | AK201: 546.62 | AL201: 153.19 | AM201: 112.43 | AN201: 181.11 | AO201: 76.82 | AP201: 287.21 | AQ201: 328.78 | AR201: 259.24 | AS201: 288.06 | AT201: 122.88 | AU201: 185.03 | AV201: 1276.97 | AW201: 0 | AX201: 422.95 | AY201: 276.09 | AZ201: 184.79 | BA201: 104.34 | BB201: 0.25 | BC201: 0.12 | BD201: 0.06 | BE201: 0.14 | BF201: 0.16 | BG201: 0.76 | BH201: 0 | BI201: 2.24 | BJ201: 0 | BK201: 0.7 | BL201: 0.01 | BM201: 0 | BN201: 0 | BO201: 0.14 | BP201: 0.22 | BQ201: 2.17 | BR201: 0 | BS201: 0 | BT201: 0.73 | BU201: 0.02 | BV201: 0 | BW201: 0 | BX201: 0 | BY201: 0 | BZ201: 357.82 | CB201: =$G$201/#REF!*100 ->  | CC201: 50.67 | CE201: 36.13 | CF201: 18.56 | CG201: 27.34 | CH201: 3022.7 | CI201: 1288.23 | CJ201: 2155.46 | CK201: 79.24 | CL201: 44.18 | CM201: 61.71 | CN201: 13.78 | CO201: 0.5
B202: 10:00
A203: ="-" -> - | B203: Ряженка | C203: 100 | D203: 3.0 | E203: 2.5 | F203: 4.2 | G203: 51 | H203: 0.1 | I203: 0 | J203: 0 | K203: 0 | L203: 4.2 | M203: 0 | N203: 0 | O203: 0 | P203: 0 | Q203: 0.1 | R203: 0.4 | S203: 2 | T203: 238 | U203: 15.0 | V203: 9.0 | W203: 12.0 | X203: 0.4 | Y203: 0.0 | Z203: 30.0 | AA203: 5.0 | AB203: 0.1 | AC203: 0.0 | AD203: 0.0 | AE203: 0.6 | AF203: 0.7 | AG203: 15.0 | AH203: 0 | AI203: 0 | AJ203: 0 | AK203: 450 | AL203: 387 | AM203: 115 | AN203: 216 | AO203: 72 | AP203: 225 | AQ203: 160 | AR203: 174 | AS203: 344 | AT203: 156 | AU203: 93 | AV203: 897 | AW203: 0 | AX203: 518 | AY203: 278 | AZ203: 242 | BA203: 50 | BB203: 0.1 | BC203: 0.07 | BD203: 0.04 | BE203: 0.08 | BF203: 0.09 | BG203: 0.45 | BH203: 0.03 | BI203: 0.56 | BJ203: 0.02 | BK203: 0.31 | BL203: 0.04 | BM203: 0 | BN203: 0 | BO203: 0.04 | BP203: 0.08 | BQ203: 0.69 | BR203: 0.01 | BS203: 0 | BT203: 0.02 | BU203: 0.03 | BV203: 0.08 | BW203: 0 | BX203: 0 | BY203: 0 | BZ203: 93 | CC203: 5 | CE203: 0 | CF203: 0 | CG203: 0 | CH203: 0 | CI203: 0 | CJ203: 0 | CK203: 0 | CL203: 0 | CM203: 0 | CN203: 0 | CO203: 0
A204: ="-" -> - | B204: Печенье | C204: 20 | D204: 0.4 | E204: 2.6 | F204: 11.5 | G204: 70 | H204: 0.42 | I204: 0 | J204: 0 | K204: 0 | L204: 5 | M204: 6 | N204: 0.46 | O204: 0 | P204: 0 | Q204: 0.1 | R204: 0.2 | S204: 66 | T204: 22 | U204: 5.8 | V204: 4.0 | W204: 18.0 | X204: 0.4 | Y204: 2.0 | Z204: 1.6 | AA204: 2.2 | AB204: 0.7 | AC204: 0.0 | AD204: 0.0 | AE204: 0.1 | AF204: 0.4 | AG204: 0.0 | AH204: 0 | AI204: 0 | AJ204: 0 | AK204: 0 | AL204: 0 | AM204: 0 | AN204: 0 | AO204: 0 | AP204: 0 | AQ204: 0 | AR204: 0 | AS204: 0 | AT204: 0 | AU204: 0 | AV204: 0 | AW204: 0 | AX204: 0 | AY204: 0 | AZ204: 0 | BA204: 0 | BB204: 0 | BC204: 0 | BD204: 0 | BE204: 0 | BF204: 0 | BG204: 0 | BH204: 0 | BI204: 0 | BJ204: 0 | BK204: 0 | BL204: 0 | BM204: 0 | BN204: 0 | BO204: 0 | BP204: 0 | BQ204: 0 | BR204: 0 | BS204: 0 | BT204: 0 | BU204: 0 | BV204: 0 | BW204: 0 | BX204: 0 | BY204: 0 | BZ204: 0.9 | CC204: 2.27 | CE204: 0 | CF204: 0 | CG204: 0 | CH204: 0 | CI204: 0 | CJ204: 0 | CK204: 0 | CL204: 0 | CM204: 0 | CN204: 0 | CO204: 0
B205: Итого за '10:00' | C205: =SUM(C203:C204) -> 120 | D205: =SUM(D203:D204) -> 3.4 | E205: 5.1 | F205: 15.7 | G205: 121 | H205: 0.52 | I205: 0 | J205: 0 | K205: 0 | L205: 9.2 | M205: 6 | N205: 0.46 | O205: 0 | P205: 0 | Q205: 0.2 | R205: 0.6 | S205: 68 | T205: 260 | U205: 20.8 | V205: 13.0 | W205: 30.0 | X205: 0.8 | Y205: 2.0 | Z205: 31.6 | AA205: 7.2 | AB205: 0.8 | AC205: 0.1 | AD205: 0.0 | AE205: 0.7 | AF205: 1.1 | AG205: 15.0 | AH205: 0 | AI205: 0 | AJ205: 0 | AK205: 450 | AL205: 387 | AM205: 115 | AN205: 216 | AO205: 72 | AP205: 225 | AQ205: 160 | AR205: 174 | AS205: 344 | AT205: 156 | AU205: 93 | AV205: 897 | AW205: 0 | AX205: 518 | AY205: 278 | AZ205: 242 | BA205: 50 | BB205: 0.1 | BC205: 0.07 | BD205: 0.04 | BE205: 0.08 | BF205: 0.09 | BG205: 0.45 | BH205: 0.03 | BI205: 0.56 | BJ205: 0.02 | BK205: 0.31 | BL205: 0.04 | BM205: 0 | BN205: 0 | BO205: 0.04 | BP205: 0.08 | BQ205: 0.69 | BR205: 0.01 | BS205: 0 | BT205: 0.02 | BU205: 0.03 | BV205: 0.08 | BW205: 0 | BX205: 0 | BY205: 0 | BZ205: 93.9 | CB205: =$G$205/#REF!*100 ->  | CC205: 7.27 | CE205: 0 | CF205: 0 | CG205: 0 | CH205: 0 | CI205: 0 | CJ205: 0 | CK205: 0 | CL205: 0 | CM205: 0 | CN205: 0 | CO205: 0
B206: Обед
A207: ="-" -> - | B207: Хлеб пшеничный | C207: 20 | D207: 1.2 | E207: 0.1 | F207: 7.4 | G207: 36 | H207: 0 | I207: 0 | J207: 0 | K207: 0 | L207: 0.22 | M207: 7.12 | N207: 0.04 | O207: 0 | P207: 0 | Q207: 0 | R207: 0.36 | S207: 0 | T207: 0 | U207: 0.0 | V207: 0.0 | W207: 0.0 | X207: 0.0 | Y207: 0.0 | Z207: 0.0 | AA207: 0.0 | AB207: 0.0 | AC207: 0.0 | AD207: 0.0 | AE207: 0.0 | AF207: 0.0 | AG207: 0.0 | AH207: 0 | AI207: 63.86 | AJ207: 66.47 | AK207: 101.79 | AL207: 33.76 | AM207: 20.01 | AN207: 40.02 | AO207: 15.14 | AP207: 72.38 | AQ207: 44.89 | AR207: 62.64 | AS207: 51.68 | AT207: 27.14 | AU207: 48.02 | AV207: 401.59 | AW207: 0 | AX207: 130.85 | AY207: 56.9 | AZ207: 37.76 | BA207: 29.93 | BB207: 0 | BC207: 0 | BD207: 0 | BE207: 0 | BF207: 0 | BG207: 0 | BH207: 0 | BI207: 0.02 | BJ207: 0 | BK207: 0 | BL207: 0 | BM207: 0 | BN207: 0 | BO207: 0 | BP207: 0 | BQ207: 0.01 | BR207: 0 | BS207: 0 | BT207: 0.06 | BU207: 0 | BV207: 0 | BW207: 0 | BX207: 0 | BY207: 0 | BZ207: 7.82 | CC207: 0 | CE207: 0 | CF207: 0 | CG207: 0 | CH207: 380 | CI207: 146.4 | CJ207: 263.2 | CK207: 3.04 | CL207: 3.04 | CM207: 3.04 | CN207: 0 | CO207: 0
A208: ="-" -> - | B208: Хлеб ржаной | C208: 30 | D208: 1.8 | E208: 0.4 | F208: 12.5 | G208: 57 | H208: 0.06 | I208: 0 | J208: 0 | K208: 0 | L208: 0.36 | M208: 9.66 | N208: 2.49 | O208: 0 | P208: 0 | Q208: 0.3 | R208: 0.75 | S208: 183 | T208: 73.5 | U208: 10.5 | V208: 14.1 | W208: 47.4 | X208: 1.2 | Y208: 0.0 | Z208: 1.5 | AA208: 0.3 | AB208: 0.4 | AC208: 0.1 | AD208: 0.0 | AE208: 0.2 | AF208: 0.6 | AG208: 0.0 | AH208: 0 | AI208: 96.6 | AJ208: 74.4 | AK208: 128.1 | AL208: 66.9 | AM208: 27.9 | AN208: 59.4 | AO208: 24 | AP208: 111.3 | AQ208: 89.1 | AR208: 87.3 | AS208: 139.2 | AT208: 37.2 | AU208: 93 | AV208: 467.7 | AW208: 0 | AX208: 157.8 | AY208: 87.3 | AZ208: 54 | BA208: 39 | BB208: 0 | BC208: 0 | BD208: 0 | BE208: 0 | BF208: 0 | BG208: 0 | BH208: 0 | BI208: 0.04 | BJ208: 0 | BK208: 0 | BL208: 0.01 | BM208: 0 | BN208: 0 | BO208: 0 | BP208: 0 | BQ208: 0.03 | BR208: 0 | BS208: 0 | BT208: 0.14 | BU208: 0.02 | BV208: 0 | BW208: 0 | BX208: 0 | BY208: 0 | BZ208: 14.1 | CC208: 0.25 | CE208: 4 | CF208: 4 | CG208: 4 | CH208: 760 | CI208: 292.8 | CJ208: 526.4 | CK208: 7.6 | CL208: 6.32 | CM208: 6.96 | CN208: 0 | CO208: 0
A209: ="3/10" -> 3/10 | B209: Компот из яблок | C209: 180 | D209: 0.1 | E209: 0.1 | F209: 17.3 | G209: 67 | H209: 0.04 | I209: 0 | J209: 0 | K209: 0 | L209: 16.38 | M209: 0.27 | N209: 0.62 | O209: 0 | P209: 0 | Q209: 0.29 | R209: 0.19 | S209: 9.4 | T209: 99.48 | U209: 6.0 | V209: 3.1 | W209: 3.7 | X209: 0.8 | Y209: 0.0 | Z209: 9.7 | AA209: 1.8 | AB209: 0.1 | AC209: 0.0 | AD209: 0.0 | AE209: 0.1 | AF209: 0.1 | AG209: 1.4 | AH209: 0 | AI209: 4.23 | AJ209: 4.59 | AK209: 6.7 | AL209: 6.35 | AM209: 1.06 | AN209: 3.88 | AO209: 1.06 | AP209: 3.18 | AQ209: 6 | AR209: 3.53 | AS209: 27.52 | AT209: 2.47 | AU209: 4.94 | AV209: 14.82 | AW209: 0 | AX209: 4.59 | AY209: 5.64 | AZ209: 2.12 | BA209: 1.76 | BB209: 0 | BC209: 0 | BD209: 0 | BE209: 0 | BF209: 0 | BG209: 0 | BH209: 0 | BI209: 0 | BJ209: 0 | BK209: 0 | BL209: 0 | BM209: 0 | BN209: 0 | BO209: 0 | BP209: 0 | BQ209: 0 | BR209: 0 | BS209: 0 | BT209: 0 | BU209: 0 | BV209: 0 | BW209: 0 | BX209: 0 | BY209: 0 | BZ209: 220.08 | CC209: 1.62 | CE209: 4.5 | CF209: 4.5 | CG209: 4.5 | CH209: 432 | CI209: 208.98 | CJ209: 320.49 | CK209: 41.2 | CL209: 24.19 | CM209: 32.7 | CN209: 13.5 | CO209: 0
A210: ="4/2" -> 4/2 | B210: Борщ с картофелем на говяжьем бульоне | C210: 180 | D210: 2.1 | E210: 6.2 | F210: 9.5 | G210: 99 | H210: 1.64 | I210: 1.4 | J210: 0 | K210: 0 | L210: 6.01 | M210: 2.04 | N210: 1.48 | O210: 0 | P210: 0 | Q210: 0.19 | R210: 1.83 | S210: 436.05 | T210: 223.51 | U210: 24.3 | V210: 14.8 | W210: 31.0 | X210: 0.7 | Y210: 0.0 | Z210: 729.2 | AA210: 151.9 | AB210: 1.1 | AC210: 0.0 | AD210: 0.1 | AE210: 0.4 | AF210: 0.7 | AG210: 5.7 | AH210: 0 | AI210: 28.5 | AJ210: 30.8 | AK210: 36.55 | AL210: 43.86 | AM210: 10.36 | AN210: 28.02 | AO210: 8.12 | AP210: 27.41 | AQ210: 31.54 | AR210: 55.71 | AS210: 130.69 | AT210: 10.44 | AU210: 24.17 | AV210: 157.1 | AW210: 0 | AX210: 26.8 | AY210: 30.93 | AZ210: 25.59 | BA210: 9.34 | BB210: 0 | BC210: 0 | BD210: 0 | BE210: 0 | BF210: 0 | BG210: 0 | BH210: 0 | BI210: 0.13 | BJ210: 0 | BK210: 0.08 | BL210: 0.01 | BM210: 0.01 | BN210: 0 | BO210: 0 | BP210: 0 | BQ210: 0.47 | BR210: 0 | BS210: 0 | BT210: 1.29 | BU210: 0 | BV210: 0 | BW210: 0 | BX210: 0 | BY210: 0 | BZ210: 207.15 | CC210: 121.54 | CE210: 47.66 | CF210: 25.2 | CG210: 36.43 | CH210: 545.04 | CI210: 170.64 | CJ210: 357.84 | CK210: 6.8 | CL210: 3.82 | CM210: 5.31 | CN210: 1.8 | CO210: 1.08
... 112 more rows

Sheet Лист1
A1: средний БЖУ за 12 дней от 3х лет
B2: Выход, г | C2: Белки, г | D2: Жиры, г | E2: Угле-воды, г | F2: ЭЦ, ккал
A3: СРЕДНИЙ по меню за завтрак | B3: =('01.09.25'!C17+'01.09.25'!C43+'01.09.25'!C70+'01.09.25'!C95+'01.09.25'!C121+'01.09.25'!C147+'01.09.25'!C175+'01.09.25'!C201+'01.09.25'!C227+'01.09.25'!C254+'01.09.25'!C279+'01.09.25'!C306)/12 -> 417 | C3: =('01.09.25'!D17+'01.09.25'!D43+'01.09.25'!D70+'01.09.25'!D95+'01.09.25'!D121+'01.09.25'!D147+'01.09.25'!D175+'01.09.25'!D201+'01.09.25'!D227+'01.09.25'!D254+'01.09.25'!D279+'01.09.25'!D306)/12 -> 10.7 | D3: =('01.09.25'!E17+'01.09.25'!E43+'01.09.25'!E70+'01.09.25'!E95+'01.09.25'!E121+'01.09.25'!E147+'01.09.25'!E175+'01.09.25'!E201+'01.09.25'!E227+'01.09.25'!E254+'01.09.25'!E279+'01.09.25'!E306)/12 -> 11.2 | E3: =('01.09.25'!F17+'01.09.25'!F43+'01.09.25'!F70+'01.09.25'!F95+'01.09.25'!F121+'01.09.25'!F147+'01.09.25'!F175+'01.09.25'!F201+'01.09.25'!F227+'01.09.25'!F254+'01.09.25'!F279+'01.09.25'!F306)/12 -> 51.1 | F3: =('01.09.25'!G17+'01.09.25'!G43+'01.09.25'!G70+'01.09.25'!G95+'01.09.25'!G121+'01.09.25'!G147+'01.09.25'!G175+'01.09.25'!G201+'01.09.25'!G227+'01.09.25'!G254+'01.09.25'!G279+'01.09.25'!G306)/12 -> 344
A4: 2ой завтрак | B4: =('01.09.25'!C20+'01.09.25'!C47+'01.09.25'!C73+'01.09.25'!C98+'01.09.25'!C124+'01.09.25'!C151+'01.09.25'!C178+'01.09.25'!C205+'01.09.25'!C230+'01.09.25'!C258+'01.09.25'!C282+'01.09.25'!C309)/12 -> 107 | C4: =('01.09.25'!D20+'01.09.25'!D47+'01.09.25'!D73+'01.09.25'!D98+'01.09.25'!D124+'01.09.25'!D151+'01.09.25'!D178+'01.09.25'!D205+'01.09.25'!D230+'01.09.25'!D258+'01.09.25'!D282+'01.09.25'!D309)/12 -> 2.0 | D4: =('01.09.25'!E20+'01.09.25'!E47+'01.09.25'!E73+'01.09.25'!E98+'01.09.25'!E124+'01.09.25'!E151+'01.09.25'!E178+'01.09.25'!E205+'01.09.25'!E230+'01.09.25'!E258+'01.09.25'!E282+'01.09.25'!E309)/12 -> 2.0 | E4: =('01.09.25'!F20+'01.09.25'!F47+'01.09.25'!F73+'01.09.25'!F98+'01.09.25'!F124+'01.09.25'!F151+'01.09.25'!F178+'01.09.25'!F205+'01.09.25'!F230+'01.09.25'!F258+'01.09.25'!F282+'01.09.25'!F309)/12 -> 13.9 | F4: =('01.09.25'!G20+'01.09.25'!G47+'01.09.25'!G73+'01.09.25'!G98+'01.09.25'!G124+'01.09.25'!G151+'01.09.25'!G178+'01.09.25'!G205+'01.09.25'!G230+'01.09.25'!G258+'01.09.25'!G282+'01.09.25'!G309)/12 -> 85
A5: обед | B5: =('01.09.25'!C28+'01.09.25'!C56+'01.09.25'!C81+'01.09.25'!C107+'01.09.25'!C132+'01.09.25'!C159+'01.09.25'!C187+'01.09.25'!C212+'01.09.25'!C240+'01.09.25'!C265+'01.09.25'!C291+'01.09.25'!C317)/12 -> 649 | C5: =('01.09.25'!D28+'01.09.25'!D56+'01.09.25'!D81+'01.09.25'!D107+'01.09.25'!D132+'01.09.25'!D159+'01.09.25'!D187+'01.09.25'!D212+'01.09.25'!D240+'01.09.25'!D265+'01.09.25'!D291+'01.09.25'!D317)/12 -> 20.4 | D5: =('01.09.25'!E28+'01.09.25'!E56+'01.09.25'!E81+'01.09.25'!E107+'01.09.25'!E132+'01.09.25'!E159+'01.09.25'!E187+'01.09.25'!E212+'01.09.25'!E240+'01.09.25'!E265+'01.09.25'!E291+'01.09.25'!E317)/12 -> 21.7 | E5: =('01.09.25'!F28+'01.09.25'!F56+'01.09.25'!F81+'01.09.25'!F107+'01.09.25'!F132+'01.09.25'!F159+'01.09.25'!F187+'01.09.25'!F212+'01.09.25'!F240+'01.09.25'!F265+'01.09.25'!F291+'01.09.25'!F317)/12 -> 87.4 | F5: =('01.09.25'!G28+'01.09.25'!G56+'01.09.25'!G81+'01.09.25'!G107+'01.09.25'!G132+'01.09.25'!G159+'01.09.25'!G187+'01.09.25'!G212+'01.09.25'!G240+'01.09.25'!G265+'01.09.25'!G291+'01.09.25'!G317)/12 -> 611
A6: уполд.полд. | B6: =('01.09.25'!C34+'01.09.25'!C61+'01.09.25'!C86+'01.09.25'!C112+'01.09.25'!C138+'01.09.25'!C165+'01.09.25'!C192+'01.09.25'!C218+'01.09.25'!C245+'01.09.25'!C270+'01.09.25'!C297+'01.09.25'!C323)/12 -> 376 | C6: =('01.09.25'!D34+'01.09.25'!D61+'01.09.25'!D86+'01.09.25'!D112+'01.09.25'!D138+'01.09.25'!D165+'01.09.25'!D192+'01.09.25'!D218+'01.09.25'!D245+'01.09.25'!D270+'01.09.25'!D297+'01.09.25'!D323)/12 -> 14.9 | D6: =('01.09.25'!E34+'01.09.25'!E61+'01.09.25'!E86+'01.09.25'!E112+'01.09.25'!E138+'01.09.25'!E165+'01.09.25'!E192+'01.09.25'!E218+'01.09.25'!E245+'01.09.25'!E270+'01.09.25'!E297+'01.09.25'!E323)/12 -> 11.5 | E6: =('01.09.25'!F34+'01.09.25'!F61+'01.09.25'!F86+'01.09.25'!F112+'01.09.25'!F138+'01.09.25'!F165+'01.09.25'!F192+'01.09.25'!F218+'01.09.25'!F245+'01.09.25'!F270+'01.09.25'!F297+'01.09.25'!F323)/12 -> 49.2 | F6: =('01.09.25'!G34+'01.09.25'!G61+'01.09.25'!G86+'01.09.25'!G112+'01.09.25'!G138+'01.09.25'!G165+'01.09.25'!G192+'01.09.25'!G218+'01.09.25'!G245+'01.09.25'!G270+'01.09.25'!G297+'01.09.25'!G323)/12 -> 357
A8: ПО САНПИН 75% за завтрак | B8: 400 | C8: 10.8 | D8: 12.0 | E8: 52.2 | F8: 360
A9: 2ой завтрак | B9: 100 | C9: 2.7 | D9: 3.0 | E9: 13.1 | F9: 90
A10: обед | B10: 600 | C10: 18.9 | D10: 21.0 | E10: 91.4 | F10: 630
A11: уполд.полд. | B11: 250 | C11: 8.0 | D11: 9.0 | E11: 39.0 | F11: 270
A13: РАЗНИЦА завтрак | B13: =B8-B3 -> -17 | C13: 0 | D13: 1 | E13: 1 | F13: 16
A14: 2ой завтрак | B14: -7 | C14: 1 | D14: 1 | E14: -1 | F14: 5
A15: обед | B15: -49 | C15: -1 | D15: -1 | E15: 4 | F15: 19
A16: уполд.полд. | B16: -126 | C16: -7 | D16: -3 | E16: -10 | F16: -87
A18: НОРМА +/ - 5% за завтрак | B18: 0 | C18: 0 | D18: 0 | E18: 0 | F18: 0
A19: 2ой завтрак | B19: -2 | C19: 0 | D19: 0 | E19: -0.8 | F19: 0
A20: обед | B20: -7 | C20: -1.5 | D20: 0 | E20: 0 | F20: 0
A21: уполд.полд. | B21: -262 | C21: -6.5 | D21: -2.4 | E21: -6.1 | F21: -60
